DEPARTMENT,ENTITY,Date of Payment,Expense Type,Project,Expense Area,Supplier,Transaction Number,Amount,
United Kingdom Atomic energy Authority,United Kingdom Atomic energy Authority,30/06/2014,MATERIALS & SPARES,29030,FUSION,600 UK,5100306008,22.04,
United Kingdom Atomic energy Authority,United Kingdom Atomic energy Authority,14/07/2014,MATERIALS & SPARES,29030,FUSION,600 UK,5100306476,615,
United Kingdom Atomic energy Authority,United Kingdom Atomic energy Authority,14/07/2014,MATERIALS & SPARES,29030,FUSION,600 UK,5100306477,6.8,
United Kingdom Atomic energy Authority,United Kingdom Atomic energy Authority,14/07/2014,MATERIALS & SPARES,25103,FUSION,A and J Non Ferrous LLP,5100306784,259.24,
United Kingdom Atomic energy Authority,United Kingdom Atomic energy Authority,23/07/2014,MATERIALS & SPARES,25103,FUSION,A and J Non Ferrous LLP,5100307199,186,
United Kingdom Atomic energy Authority,United Kingdom Atomic energy Authority,30/06/2014,PLANT SPARES,25103,FUSION,A W CLARKE,5100305099,2700,
United Kingdom Atomic energy Authority,United Kingdom Atomic energy Authority,30/06/2014,PLANT SPARES,25103,FUSION,A W CLARKE,5100305100,102,
United Kingdom Atomic energy Authority,United Kingdom Atomic energy Authority,30/06/2014,PLANT SPARES,25103,FUSION,A W CLARKE,5100305101,762,
United Kingdom Atomic energy Authority,United Kingdom Atomic energy Authority,30/06/2014,PLANT SPARES,25103,FUSION,A W CLARKE,5100305102,1025,
United Kingdom Atomic energy Authority,United Kingdom Atomic energy Authority,30/06/2014,PLANT SPARES,25103,FUSION,A W CLARKE,5100305103,96.25,
United Kingdom Atomic energy Authority,United Kingdom Atomic energy Authority,30/06/2014,PLANT SPARES,25103,FUSION,A W CLARKE,5100305104,5125,
United Kingdom Atomic energy Authority,United Kingdom Atomic energy Authority,30/06/2014,PLANT SPARES,25103,FUSION,A W CLARKE,5100305371,1584,
United Kingdom Atomic energy Authority,United Kingdom Atomic energy Authority,02/07/2014,PLANT SPARES,25103,FUSION,A W CLARKE,5100305372,1380,
United Kingdom Atomic energy Authority,United Kingdom Atomic energy Authority,02/07/2014,PLANT SPARES,25103,FUSION,A W CLARKE,5100305451,265.7,
United Kingdom Atomic energy Authority,United Kingdom Atomic energy Authority,07/07/2014,PLANT SPARES,25103,FUSION,A W CLARKE,5100306019,1233,
United Kingdom Atomic energy Authority,United Kingdom Atomic energy Authority,14/07/2014,PLANT SPARES,25103,FUSION,A W CLARKE,5100306025,4013,
United Kingdom Atomic energy Authority,United Kingdom Atomic energy Authority,23/07/2014,PLANT & EQUIPMENT,23104,FUSION,AALCO LIMITED,5100306652,127,
United Kingdom Atomic energy Authority,United Kingdom Atomic energy Authority,21/07/2014,PLANT & EQUIPMENT,23106,FUSION,AALCO LIMITED,5100306653,22.5,
United Kingdom Atomic energy Authority,United Kingdom Atomic energy Authority,21/07/2014,PLANT & EQUIPMENT,23106,FUSION,AALCO LIMITED,5100306942,295,
United Kingdom Atomic energy Authority,United Kingdom Atomic energy Authority,21/07/2014,PLANT & EQUIPMENT,23151,FUSION,AALCO LIMITED,5100306941,135,
United Kingdom Atomic energy Authority,United Kingdom Atomic energy Authority,14/07/2014,PLANT & EQUIPMENT,25704,FUSION,AALCO LIMITED,5100306655,93.3,
United Kingdom Atomic energy Authority,United Kingdom Atomic energy Authority,14/07/2014,PLANT & EQUIPMENT,25704,FUSION,AALCO LIMITED,5100306657,163.8,
United Kingdom Atomic energy Authority,United Kingdom Atomic energy Authority,14/07/2014,PLANT & EQUIPMENT,25704,FUSION,AALCO LIMITED,5100306658,112,
United Kingdom Atomic energy Authority,United Kingdom Atomic energy Authority,14/07/2014,PLANT & EQUIPMENT,25704,FUSION,AALCO LIMITED,5100306659,168,
United Kingdom Atomic energy Authority,United Kingdom Atomic energy Authority,21/07/2014,CONSUMABLES,23129,FUSION,ABLOY SECURITY,5100306944,53.67,
United Kingdom Atomic energy Authority,United Kingdom Atomic energy Authority,30/06/2014,MATERIALS & SPARES,25103,FUSION,ACRONA ENGINEERING LTD,5100305810,1874.39,
United Kingdom Atomic energy Authority,United Kingdom Atomic energy Authority,30/06/2014,MATERIALS & SPARES,23161,FUSION,ADHECTIC LIMITED,5100305916,171.58,
United Kingdom Atomic energy Authority,United Kingdom Atomic energy Authority,30/06/2014,PLANT & EQUIPMENT,29030,FUSION,ADVENT RESEARCH MATERIALS LTD,5100305813,381,
United Kingdom Atomic energy Authority,United Kingdom Atomic energy Authority,07/07/2014,CONSUMABLES,29030,FUSION,AGATE PRODUCTS LTD,5100306257,297,
United Kingdom Atomic energy Authority,United Kingdom Atomic energy Authority,21/07/2014,PLANT & EQUIPMENT,23121,FUSION,ALGAR ELECTRIC MOTORS LTD,5100307032,1590,
United Kingdom Atomic energy Authority,United Kingdom Atomic energy Authority,07/07/2014,MATERIALS & SPARES,25103,FUSION,ALPHA ENGINEERING SUPPLIES,5100306226,544,
United Kingdom Atomic energy Authority,United Kingdom Atomic energy Authority,30/06/2014,MATERIALS & SPARES,23161,FUSION,ALPHA PACKAGING,5100305808,489.87,
United Kingdom Atomic energy Authority,United Kingdom Atomic energy Authority,30/06/2014,MATERIALS & SPARES,23161,FUSION,ALPHA PACKAGING,5100305809,489.87,
United Kingdom Atomic energy Authority,United Kingdom Atomic energy Authority,02/07/2014,PROFESSIONAL SERVICES,23153,FUSION,AMEC NUCLEAR UK LIMITED,5100306030,13391.5,
United Kingdom Atomic energy Authority,United Kingdom Atomic energy Authority,23/07/2014,PROFESSIONAL SERVICES,25103,FUSION,AMEC NUCLEAR UK LIMITED,5100307104,34486.81,
United Kingdom Atomic energy Authority,United Kingdom Atomic energy Authority,21/07/2014,MATERIALS & SPARES,23128,FUSION,AMPLICON LIVELINE LTD,5100306771,755.75,
United Kingdom Atomic energy Authority,United Kingdom Atomic energy Authority,21/07/2014,MATERIALS & SPARES,25103,FUSION,AMR SHEET METAL FABRICATIONS LTD,5100306640,5260.5,
United Kingdom Atomic energy Authority,United Kingdom Atomic energy Authority,30/06/2014,MATERIALS & SPARES,23161,FUSION,ANIXTER (UK) LTD,5100305128,860,
United Kingdom Atomic energy Authority,United Kingdom Atomic energy Authority,21/07/2014,MATERIALS & SPARES,25103,FUSION,ANIXTER (UK) LTD,5100306879,473.25,
United Kingdom Atomic energy Authority,United Kingdom Atomic energy Authority,21/07/2014,SOFTWARE,25204,FUSION,ANSYS UK LTD,5100306954,37980,
United Kingdom Atomic energy Authority,United Kingdom Atomic energy Authority,07/07/2014,SOFTWARE,23108,FUSION,APPLIED CAE,5100306168,4950,
United Kingdom Atomic energy Authority,United Kingdom Atomic energy Authority,14/07/2014,SOFTWARE,23108,FUSION,APPLIED CAE,5100306540,2041,
United Kingdom Atomic energy Authority,United Kingdom Atomic energy Authority,23/07/2014,SOFTWARE,23108,FUSION,APPLIED CAE,5100307107,1250,
United Kingdom Atomic energy Authority,United Kingdom Atomic energy Authority,30/06/2014,PERSONAL PROTECTIVE EQUIPMENT,21033,SUPPORT SERVICES,ARCO LTD,5100305816,26.52,
United Kingdom Atomic energy Authority,United Kingdom Atomic energy Authority,30/06/2014,PERSONAL PROTECTIVE EQUIPMENT,21033,SUPPORT SERVICES,ARCO LTD,5100305817,100.88,
United Kingdom Atomic energy Authority,United Kingdom Atomic energy Authority,21/07/2014,PERSONAL PROTECTIVE EQUIPMENT,21033,SUPPORT SERVICES,ARCO LTD,5100306936,53.04,
United Kingdom Atomic energy Authority,United Kingdom Atomic energy Authority,21/07/2014,PERSONAL PROTECTIVE EQUIPMENT,21033,SUPPORT SERVICES,ARCO LTD,5100307100,273.89,
United Kingdom Atomic energy Authority,United Kingdom Atomic energy Authority,14/07/2014,PERSONAL PROTECTIVE EQUIPMENT,23103,FUSION,ARCO LTD,5100306454,139.3,
United Kingdom Atomic energy Authority,United Kingdom Atomic energy Authority,30/06/2014,PERSONAL PROTECTIVE EQUIPMENT,23105,FUSION,ARCO LTD,5100305522,74.84,
United Kingdom Atomic energy Authority,United Kingdom Atomic energy Authority,02/07/2014,PERSONAL PROTECTIVE EQUIPMENT,23105,FUSION,ARCO LTD,5100306033,31.2,
United Kingdom Atomic energy Authority,United Kingdom Atomic energy Authority,14/07/2014,PERSONAL PROTECTIVE EQUIPMENT,23129,FUSION,ARCO LTD,5100306467,11.99,
United Kingdom Atomic energy Authority,United Kingdom Atomic energy Authority,14/07/2014,PERSONAL PROTECTIVE EQUIPMENT,23129,FUSION,ARCO LTD,5100306782,27.8,
United Kingdom Atomic energy Authority,United Kingdom Atomic energy Authority,30/06/2014,PERSONAL PROTECTIVE EQUIPMENT,23151,FUSION,ARCO LTD,5100306032,13.44,
United Kingdom Atomic energy Authority,United Kingdom Atomic energy Authority,30/06/2014,PERSONAL PROTECTIVE EQUIPMENT,23151,FUSION,ARCO LTD,5100306034,71.96,
United Kingdom Atomic energy Authority,United Kingdom Atomic energy Authority,07/07/2014,PERSONAL PROTECTIVE EQUIPMENT,23151,FUSION,ARCO LTD,5100306145,89.54,
United Kingdom Atomic energy Authority,United Kingdom Atomic energy Authority,14/07/2014,PERSONAL PROTECTIVE EQUIPMENT,23151,FUSION,ARCO LTD,5100306729,15.01,
United Kingdom Atomic energy Authority,United Kingdom Atomic energy Authority,14/07/2014,PERSONAL PROTECTIVE EQUIPMENT,23151,FUSION,ARCO LTD,5100306730,59.24,
United Kingdom Atomic energy Authority,United Kingdom Atomic energy Authority,21/07/2014,PERSONAL PROTECTIVE EQUIPMENT,23151,FUSION,ARCO LTD,5100306875,20.4,
United Kingdom Atomic energy Authority,United Kingdom Atomic energy Authority,21/07/2014,PERSONAL PROTECTIVE EQUIPMENT,23151,FUSION,ARCO LTD,5100306937,95.17,
United Kingdom Atomic energy Authority,United Kingdom Atomic energy Authority,30/06/2014,PERSONAL PROTECTIVE EQUIPMENT,23161,FUSION,ARCO LTD,5100305776,974,
United Kingdom Atomic energy Authority,United Kingdom Atomic energy Authority,30/06/2014,PERSONAL PROTECTIVE EQUIPMENT,23161,FUSION,ARCO LTD,5100305944,75.99,
United Kingdom Atomic energy Authority,United Kingdom Atomic energy Authority,30/06/2014,PERSONAL PROTECTIVE EQUIPMENT,23161,FUSION,ARCO LTD,5100306031,32.79,
United Kingdom Atomic energy Authority,United Kingdom Atomic energy Authority,30/06/2014,PERSONAL PROTECTIVE EQUIPMENT,23161,FUSION,ARCO LTD,5100306101,20.14,
United Kingdom Atomic energy Authority,United Kingdom Atomic energy Authority,07/07/2014,PERSONAL PROTECTIVE EQUIPMENT,23161,FUSION,ARCO LTD,5100306146,441.45,
United Kingdom Atomic energy Authority,United Kingdom Atomic energy Authority,07/07/2014,PERSONAL PROTECTIVE EQUIPMENT,23161,FUSION,ARCO LTD,5100306150,682.2,
United Kingdom Atomic energy Authority,United Kingdom Atomic energy Authority,07/07/2014,PERSONAL PROTECTIVE EQUIPMENT,23161,FUSION,ARCO LTD,5100306151,12.28,
United Kingdom Atomic energy Authority,United Kingdom Atomic energy Authority,09/07/2014,PERSONAL PROTECTIVE EQUIPMENT,23161,FUSION,ARCO LTD,5100306407,347.25,
United Kingdom Atomic energy Authority,United Kingdom Atomic energy Authority,14/07/2014,PERSONAL PROTECTIVE EQUIPMENT,23161,FUSION,ARCO LTD,5100306469,124.78,
United Kingdom Atomic energy Authority,United Kingdom Atomic energy Authority,14/07/2014,PERSONAL PROTECTIVE EQUIPMENT,23161,FUSION,ARCO LTD,5100306470,140.72,
United Kingdom Atomic energy Authority,United Kingdom Atomic energy Authority,14/07/2014,PERSONAL PROTECTIVE EQUIPMENT,23161,FUSION,ARCO LTD,5100306710,126.36,
United Kingdom Atomic energy Authority,United Kingdom Atomic energy Authority,14/07/2014,PERSONAL PROTECTIVE EQUIPMENT,23161,FUSION,ARCO LTD,5100306711,1748.52,
United Kingdom Atomic energy Authority,United Kingdom Atomic energy Authority,16/07/2014,PERSONAL PROTECTIVE EQUIPMENT,23161,FUSION,ARCO LTD,5100306778,72,
United Kingdom Atomic energy Authority,United Kingdom Atomic energy Authority,21/07/2014,PERSONAL PROTECTIVE EQUIPMENT,23161,FUSION,ARCO LTD,5100306935,54.39,
United Kingdom Atomic energy Authority,United Kingdom Atomic energy Authority,21/07/2014,PERSONAL PROTECTIVE EQUIPMENT,23161,FUSION,ARCO LTD,5100306938,25.84,
United Kingdom Atomic energy Authority,United Kingdom Atomic energy Authority,21/07/2014,PERSONAL PROTECTIVE EQUIPMENT,23161,FUSION,ARCO LTD,5100306939,169,
United Kingdom Atomic energy Authority,United Kingdom Atomic energy Authority,23/07/2014,PERSONAL PROTECTIVE EQUIPMENT,23161,FUSION,ARCO LTD,5100307098,19.16,
United Kingdom Atomic energy Authority,United Kingdom Atomic energy Authority,23/07/2014,PERSONAL PROTECTIVE EQUIPMENT,23161,FUSION,ARCO LTD,5100307101,17.75,
United Kingdom Atomic energy Authority,United Kingdom Atomic energy Authority,30/06/2014,PERSONAL PROTECTIVE EQUIPMENT,25103,FUSION,ARCO LTD,5100305775,68.58,
United Kingdom Atomic energy Authority,United Kingdom Atomic energy Authority,30/06/2014,PERSONAL PROTECTIVE EQUIPMENT,29030,FUSION,ARCO LTD,5100305818,16,
United Kingdom Atomic energy Authority,United Kingdom Atomic energy Authority,14/07/2014,STATIONERY,21034,FUSION,ARTISAN LITHO PRINT  DESIGN,5100306230,150,
United Kingdom Atomic energy Authority,United Kingdom Atomic energy Authority,14/07/2014,STATIONERY,21034,FUSION,ARTISAN LITHO PRINT  DESIGN,5100306660,224,
United Kingdom Atomic energy Authority,United Kingdom Atomic energy Authority,30/06/2014,REPAIRS & MAINTENANCE,23132,FUSION,ASAP Computer Services,5100305969,970,
United Kingdom Atomic energy Authority,United Kingdom Atomic energy Authority,16/07/2014,REPAIRS & MAINTENANCE,23123,FUSION,ASTEC IT SOLUTIONS LTD,5100306247,657,
United Kingdom Atomic energy Authority,United Kingdom Atomic energy Authority,23/07/2014,REPAIRS & MAINTENANCE,23123,FUSION,ASTEC IT SOLUTIONS LTD,5100306249,1440,
United Kingdom Atomic energy Authority,United Kingdom Atomic energy Authority,25/07/2014,PLANT & EQUIPMENT,23617,FUSION,Autoclock Systems Ltd,1900060041,6820.8,CUL13422
United Kingdom Atomic energy Authority,United Kingdom Atomic energy Authority,30/06/2014,CATERING,23126,FUSION,AVENANCE PLC,5100305967,1148.01,
United Kingdom Atomic energy Authority,United Kingdom Atomic energy Authority,30/06/2014,CATERING,23126,FUSION,AVENANCE PLC,5100305971,570.83,
United Kingdom Atomic energy Authority,United Kingdom Atomic energy Authority,30/06/2014,CATERING,28040,PROPERTY,AVENANCE PLC,5100305968,6609.17,
United Kingdom Atomic energy Authority,United Kingdom Atomic energy Authority,30/06/2014,CATERING,28040,PROPERTY,AVENANCE PLC,5100305970,611.56,
United Kingdom Atomic energy Authority,United Kingdom Atomic energy Authority,30/06/2014,CATERING,28040,PROPERTY,AVENANCE PLC,5100305972,1581.18,
United Kingdom Atomic energy Authority,United Kingdom Atomic energy Authority,14/07/2014,PLANT SPARES,23121,FUSION,AVNET EMG LTD,5100306696,284.64,
United Kingdom Atomic energy Authority,United Kingdom Atomic energy Authority,09/07/2014,PLANT SPARES,25103,FUSION,AVNET EMG LTD,5100306026,605,
United Kingdom Atomic energy Authority,United Kingdom Atomic energy Authority,30/06/2014,PLANT SPARES,23151,FUSION,AXTEC WEIGHT TECHNOLOGY ,5100305825,92.9,
United Kingdom Atomic energy Authority,United Kingdom Atomic energy Authority,07/07/2014,IT EQUIPMENT NON CAPITAL,23132,FUSION,AZTEX SOLUTIONS LIMITED,5100305811,5101.8,
United Kingdom Atomic energy Authority,United Kingdom Atomic energy Authority,14/07/2014,IT EQUIPMENT NON CAPITAL,23132,FUSION,AZTEX SOLUTIONS LIMITED,5100306496,1525,
United Kingdom Atomic energy Authority,United Kingdom Atomic energy Authority,02/07/2014,TREATED WATER,23125,FUSION,B & V WATER TREATMENT,5100306077,1185.81,
United Kingdom Atomic energy Authority,United Kingdom Atomic energy Authority,14/07/2014,TREATED WATER,23125,FUSION,B & V WATER TREATMENT,5100306444,888.92,
United Kingdom Atomic energy Authority,United Kingdom Atomic energy Authority,02/07/2014,CONFERENCES/MEETINGS,23131,FUSION,Barcelo Turismo Y Congresos SL,1900059903,520.12,CUL13307
United Kingdom Atomic energy Authority,United Kingdom Atomic energy Authority,01/07/2014,CONFERENCES/MEETINGS,25700,FUSION,Barcelo Turismo Y Congresos SL,1900059901,520.5,CUL13280
United Kingdom Atomic energy Authority,United Kingdom Atomic energy Authority,21/07/2014,REPAIRS & MAINTENANCE,23151,FUSION,BATT CABLES PLC,5100306981,6431.86,
United Kingdom Atomic energy Authority,United Kingdom Atomic energy Authority,07/07/2014,PLANT SPARES,25103,FUSION,BATT CABLES PLC,5100306265,3124.09,
United Kingdom Atomic energy Authority,United Kingdom Atomic energy Authority,09/07/2014,PROFESSIONAL SERVICES,21032,SUPPORT SERVICES,BDO LLP,5100305407,7720.6,
United Kingdom Atomic energy Authority,United Kingdom Atomic energy Authority,14/07/2014,PROFESSIONAL SERVICES,21032,SUPPORT SERVICES,BDO LLP,5100306515,6723,
United Kingdom Atomic energy Authority,United Kingdom Atomic energy Authority,07/07/2014,PLANT SPARES,23103,FUSION,Beacon Group International Ltd,5100306144,131.06,
United Kingdom Atomic energy Authority,United Kingdom Atomic energy Authority,14/07/2014,PLANT SPARES,23103,FUSION,Beacon Group International Ltd,5100306601,157.25,
United Kingdom Atomic energy Authority,United Kingdom Atomic energy Authority,30/06/2014,MATERIALS & SPARES,25704,FUSION,BECK & POLLITZER ENG.,5100306017,27412,
United Kingdom Atomic energy Authority,United Kingdom Atomic energy Authority,09/07/2014,PLANT SPARES,23105,FUSION,BECKHOFF AUTOMATION LTD,5100306583,2025,
United Kingdom Atomic energy Authority,United Kingdom Atomic energy Authority,30/06/2014,PLANT & EQUIPMENT,25103,FUSION,BELLEVILLE SPRINGS LTD,5100305986,21.5,
United Kingdom Atomic energy Authority,United Kingdom Atomic energy Authority,09/07/2014,MATERIALS & SPARES,25103,FUSION,BELMOUNT FABRICATIONS,5100306422,5600,
United Kingdom Atomic energy Authority,United Kingdom Atomic energy Authority,30/06/2014,CONSUMABLES,23151,FUSION,BERKSHIRE PALLETS LTD,5100306074,1062.5,
United Kingdom Atomic energy Authority,United Kingdom Atomic energy Authority,23/07/2014,MATERIALS & SPARES,23164,FUSION,BERYLLIANT INC,5100306336,1864.48,
United Kingdom Atomic energy Authority,United Kingdom Atomic energy Authority,07/07/2014,MATERIALS & SPARES,25103,FUSION,Biscor Ltd,1900059932,1223.64,CUL13311
United Kingdom Atomic energy Authority,United Kingdom Atomic energy Authority,30/06/2014,PLANT & EQUIPMENT,23106,FUSION,BLACK BOX UK LTD,5100305960,1405,
United Kingdom Atomic energy Authority,United Kingdom Atomic energy Authority,21/07/2014,PLANT & EQUIPMENT,23106,FUSION,BLACK BOX UK LTD,5100306889,377.08,
United Kingdom Atomic energy Authority,United Kingdom Atomic energy Authority,14/07/2014,HIRED STAFF,0,FUSION,BLACK DIAMOND UMBRELLA LTD,5100306672,1196.63,
United Kingdom Atomic energy Authority,United Kingdom Atomic energy Authority,14/07/2014,HIRED STAFF,0,FUSION,BLACK DIAMOND UMBRELLA LTD,5100306673,1196.63,
United Kingdom Atomic energy Authority,United Kingdom Atomic energy Authority,14/07/2014,HIRED STAFF,0,FUSION,BLACK DIAMOND UMBRELLA LTD,5100306675,1196.63,
United Kingdom Atomic energy Authority,United Kingdom Atomic energy Authority,14/07/2014,HIRED STAFF,0,FUSION,BLACK DIAMOND UMBRELLA LTD,5100306676,1053.03,
United Kingdom Atomic energy Authority,United Kingdom Atomic energy Authority,14/07/2014,HIRED STAFF,0,FUSION,BLACK DIAMOND UMBRELLA LTD,5100306681,851.63,
United Kingdom Atomic energy Authority,United Kingdom Atomic energy Authority,14/07/2014,HIRED STAFF,0,FUSION,BLACK DIAMOND UMBRELLA LTD,5100306683,851.63,
United Kingdom Atomic energy Authority,United Kingdom Atomic energy Authority,14/07/2014,HIRED STAFF,0,FUSION,BLACK DIAMOND UMBRELLA LTD,5100306686,777.82,
United Kingdom Atomic energy Authority,United Kingdom Atomic energy Authority,14/07/2014,HIRED STAFF,0,FUSION,BLACK DIAMOND UMBRELLA LTD,5100306690,851.63,
United Kingdom Atomic energy Authority,United Kingdom Atomic energy Authority,14/07/2014,HIRED STAFF,0,FUSION,BLACK DIAMOND UMBRELLA LTD,5100306691,4060.9,
United Kingdom Atomic energy Authority,United Kingdom Atomic energy Authority,14/07/2014,HIRED STAFF,0,FUSION,BLACK DIAMOND UMBRELLA LTD,5100306692,5187.76,
United Kingdom Atomic energy Authority,United Kingdom Atomic energy Authority,14/07/2014,LAUNDRY,23161,FUSION,BLUEBELL LAUNDRY,5100306509,129.42,
United Kingdom Atomic energy Authority,United Kingdom Atomic energy Authority,02/07/2014,IT EQUIPMENT NON CAPITAL,23132,FUSION,BLUEFORT SECURITY,5100305878,4319.18,
United Kingdom Atomic energy Authority,United Kingdom Atomic energy Authority,30/06/2014,PROFESSIONAL SERVICES,23103,FUSION,BNS NUCLEAR SERVICES,5100306002,71718.99,
United Kingdom Atomic energy Authority,United Kingdom Atomic energy Authority,07/07/2014,PROFESSIONAL SERVICES,23103,FUSION,BNS NUCLEAR SERVICES,5100306149,31962.84,
United Kingdom Atomic energy Authority,United Kingdom Atomic energy Authority,30/06/2014,GASES,23103,FUSION,BOC LTD,5100305943,120.46,
United Kingdom Atomic energy Authority,United Kingdom Atomic energy Authority,07/07/2014,GASES,23103,FUSION,BOC LTD,5100306427,78.92,
United Kingdom Atomic energy Authority,United Kingdom Atomic energy Authority,30/06/2014,GASES,23122,FUSION,BOC LTD,5100305550,3625.96,
United Kingdom Atomic energy Authority,United Kingdom Atomic energy Authority,30/06/2014,GASES,23123,FUSION,BOC LTD,5100305206,212.04,
United Kingdom Atomic energy Authority,United Kingdom Atomic energy Authority,23/07/2014,GASES,23123,FUSION,BOC LTD,5100306828,41253.33,
United Kingdom Atomic energy Authority,United Kingdom Atomic energy Authority,30/06/2014,GASES,23124,FUSION,BOC LTD,5100305918,6194.2,
United Kingdom Atomic energy Authority,United Kingdom Atomic energy Authority,21/07/2014,GASES,23125,FUSION,BOC LTD,5100307080,11.68,
United Kingdom Atomic energy Authority,United Kingdom Atomic energy Authority,02/07/2014,GASES,23128,FUSION,BOC LTD,5100306006,3625.96,
United Kingdom Atomic energy Authority,United Kingdom Atomic energy Authority,02/07/2014,GASES,23131,FUSION,BOC LTD,5100306047,7920,
United Kingdom Atomic energy Authority,United Kingdom Atomic energy Authority,21/07/2014,GASES,23131,FUSION,BOC LTD,5100306824,280.01,
United Kingdom Atomic energy Authority,United Kingdom Atomic energy Authority,21/07/2014,GASES,23131,FUSION,BOC LTD,5100306869,1590.6,
United Kingdom Atomic energy Authority,United Kingdom Atomic energy Authority,14/07/2014,GASES,23150,FUSION,BOC LTD,5100306777,238.47,
United Kingdom Atomic energy Authority,United Kingdom Atomic energy Authority,21/07/2014,GASES,23150,FUSION,BOC LTD,5100306813,151.56,
United Kingdom Atomic energy Authority,United Kingdom Atomic energy Authority,21/07/2014,GASES,23150,FUSION,BOC LTD,5100306818,195.08,
United Kingdom Atomic energy Authority,United Kingdom Atomic energy Authority,21/07/2014,GASES,23150,FUSION,BOC LTD,5100306858,207.55,
United Kingdom Atomic energy Authority,United Kingdom Atomic energy Authority,21/07/2014,GASES,23150,FUSION,BOC LTD,5100306861,361.02,
United Kingdom Atomic energy Authority,United Kingdom Atomic energy Authority,21/07/2014,GASES,23150,FUSION,BOC LTD,5100306863,154.45,
United Kingdom Atomic energy Authority,United Kingdom Atomic energy Authority,30/06/2014,GASES,23151,FUSION,BOC LTD,5100305669,9.6,
United Kingdom Atomic energy Authority,United Kingdom Atomic energy Authority,30/06/2014,GASES,23151,FUSION,BOC LTD,5100306004,74.76,
United Kingdom Atomic energy Authority,United Kingdom Atomic energy Authority,21/07/2014,GASES,23151,FUSION,BOC LTD,5100306823,35.08,
United Kingdom Atomic energy Authority,United Kingdom Atomic energy Authority,16/07/2014,GASES,23152,FUSION,BOC LTD,5100306005,6194.2,
United Kingdom Atomic energy Authority,United Kingdom Atomic energy Authority,21/07/2014,GASES,23152,FUSION,BOC LTD,5100306825,227.06,
United Kingdom Atomic energy Authority,United Kingdom Atomic energy Authority,21/07/2014,GASES,23161,FUSION,BOC LTD,5100306816,56.16,
United Kingdom Atomic energy Authority,United Kingdom Atomic energy Authority,09/07/2014,GASES,23164,FUSION,BOC LTD,5100306207,1374.78,
United Kingdom Atomic energy Authority,United Kingdom Atomic energy Authority,21/07/2014,GASES,23164,FUSION,BOC LTD,5100306821,239.72,
United Kingdom Atomic energy Authority,United Kingdom Atomic energy Authority,16/07/2014,GASES,25702,FUSION,BOC LTD,5100306814,192.07,
United Kingdom Atomic energy Authority,United Kingdom Atomic energy Authority,21/07/2014,GASES,25702,FUSION,BOC LTD,5100306815,54.96,
United Kingdom Atomic energy Authority,United Kingdom Atomic energy Authority,21/07/2014,GASES,25702,FUSION,BOC LTD,5100307081,249.61,
United Kingdom Atomic energy Authority,United Kingdom Atomic energy Authority,30/06/2014,GASES,29030,FUSION,BOC LTD,5100305912,100.79,
United Kingdom Atomic energy Authority,United Kingdom Atomic energy Authority,30/06/2014,MATERIALS & SPARES,23129,FUSION,BRAMMER UK LTD,5100305961,372.71,
United Kingdom Atomic energy Authority,United Kingdom Atomic energy Authority,21/07/2014,UTILITIES/ELECTRICITY,28050,PROPERTY,BRITISH GAS BUSINESS,5100306804,58.94,
United Kingdom Atomic energy Authority,United Kingdom Atomic energy Authority,21/07/2014,UTILITIES/ELECTRICITY,28050,PROPERTY,BRITISH GAS BUSINESS,5100306805,505.75,
United Kingdom Atomic energy Authority,United Kingdom Atomic energy Authority,21/07/2014,UTILITIES/ELECTRICITY,28050,PROPERTY,BRITISH GAS BUSINESS,5100306806,260.52,
United Kingdom Atomic energy Authority,United Kingdom Atomic energy Authority,21/07/2014,UTILITIES/ELECTRICITY,28050,PROPERTY,BRITISH GAS BUSINESS,5100306807,72.68,
United Kingdom Atomic energy Authority,United Kingdom Atomic energy Authority,21/07/2014,UTILITIES/ELECTRICITY,28050,PROPERTY,BRITISH GAS BUSINESS,5100306808,34.43,
United Kingdom Atomic energy Authority,United Kingdom Atomic energy Authority,21/07/2014,UTILITIES/ELECTRICITY,28050,PROPERTY,BRITISH GAS BUSINESS,5100306809,486.52,
United Kingdom Atomic energy Authority,United Kingdom Atomic energy Authority,21/07/2014,UTILITIES/ELECTRICITY,28050,PROPERTY,BRITISH GAS BUSINESS,5100306810,68.17,
United Kingdom Atomic energy Authority,United Kingdom Atomic energy Authority,21/07/2014,UTILITIES/ELECTRICITY,28050,PROPERTY,BRITISH GAS BUSINESS,5100306811,359.8,
United Kingdom Atomic energy Authority,United Kingdom Atomic energy Authority,21/07/2014,UTILITIES/ELECTRICITY,28050,PROPERTY,BRITISH GAS BUSINESS,5100306812,406.46,
United Kingdom Atomic energy Authority,United Kingdom Atomic energy Authority,21/07/2014,MATERIALS & SPARES,23151,FUSION,BSS OXFORD,5100306838,531.65,
United Kingdom Atomic energy Authority,United Kingdom Atomic energy Authority,21/07/2014,MATERIALS & SPARES,23151,FUSION,BSS OXFORD,5100306892,169.8,
United Kingdom Atomic energy Authority,United Kingdom Atomic energy Authority,21/07/2014,MATERIALS & SPARES,23151,FUSION,BSS OXFORD,5100307070,41,
United Kingdom Atomic energy Authority,United Kingdom Atomic energy Authority,07/07/2014,MATERIALS & SPARES,25103,FUSION,BSS OXFORD,5100306382,38.87,
United Kingdom Atomic energy Authority,United Kingdom Atomic energy Authority,02/07/2014,MATERIALS & SPARES,23103,FUSION,BUDGET FORKTRUCKS LTD,5100306052,390,
United Kingdom Atomic energy Authority,United Kingdom Atomic energy Authority,16/07/2014,MATERIALS & SPARES,23105,FUSION,BUDGET FORKTRUCKS LTD,5100306952,1195,
United Kingdom Atomic energy Authority,United Kingdom Atomic energy Authority,09/07/2014,MATERIALS & SPARES,23150,FUSION,BUDGET FORKTRUCKS LTD,5100304599,1267.5,
United Kingdom Atomic energy Authority,United Kingdom Atomic energy Authority,02/07/2014,MATERIALS & SPARES,23150,FUSION,BUDGET FORKTRUCKS LTD,5100305948,-160,
United Kingdom Atomic energy Authority,United Kingdom Atomic energy Authority,02/07/2014,MATERIALS & SPARES,23151,FUSION,BUDGET FORKTRUCKS LTD,5100306049,312,
United Kingdom Atomic energy Authority,United Kingdom Atomic energy Authority,09/07/2014,MATERIALS & SPARES,23151,FUSION,BUDGET FORKTRUCKS LTD,5100306051,342.33,
United Kingdom Atomic energy Authority,United Kingdom Atomic energy Authority,02/07/2014,MATERIALS & SPARES,25103,FUSION,BUDGET FORKTRUCKS LTD,5100306048,268.67,
United Kingdom Atomic energy Authority,United Kingdom Atomic energy Authority,02/07/2014,MATERIALS & SPARES,25103,FUSION,BUDGET FORKTRUCKS LTD,5100306050,342.33,
United Kingdom Atomic energy Authority,United Kingdom Atomic energy Authority,16/07/2014,CATERING SUPPLIES,21033,SUPPORT SERVICES,BWT UK LTD,5100306500,2754,
United Kingdom Atomic energy Authority,United Kingdom Atomic energy Authority,16/07/2014,CATERING SUPPLIES,21033,SUPPORT SERVICES,BWT UK LTD,5100306503,1239.27,
United Kingdom Atomic energy Authority,United Kingdom Atomic energy Authority,21/07/2014,MATERIALS & SPARES,29030,FUSION,CADPOINT LTD,5100307009,6600,
United Kingdom Atomic energy Authority,United Kingdom Atomic energy Authority,09/07/2014,REPAIRS & MAINTENANCE,23161,FUSION,CALZONI HYDRO S.p.A,5100306235,1786.84,
United Kingdom Atomic energy Authority,United Kingdom Atomic energy Authority,09/07/2014,REPAIRS & MAINTENANCE,23161,FUSION,CALZONI HYDRO S.p.A,5100306236,714.63,
United Kingdom Atomic energy Authority,United Kingdom Atomic energy Authority,30/06/2014,TRAINING COURSE FEES,21033,SUPPORT SERVICES,CANON FIRE PROTECTION,5100305871,320,
United Kingdom Atomic energy Authority,United Kingdom Atomic energy Authority,30/06/2014,CONSUMABLES,29030,FUSION,CARILLON INDUSTRIAL SERVICES LTD,5100306018,156.82,
United Kingdom Atomic energy Authority,United Kingdom Atomic energy Authority,30/06/2014,CONSUMABLES,29030,FUSION,CARILLON INDUSTRIAL SERVICES LTD,5100306020,53.16,
United Kingdom Atomic energy Authority,United Kingdom Atomic energy Authority,30/06/2014,CONSUMABLES,29030,FUSION,CARILLON INDUSTRIAL SERVICES LTD,5100306024,68.95,
United Kingdom Atomic energy Authority,United Kingdom Atomic energy Authority,07/07/2014,CONSUMABLES,29030,FUSION,CARILLON INDUSTRIAL SERVICES LTD,5100306264,53.33,
United Kingdom Atomic energy Authority,United Kingdom Atomic energy Authority,07/07/2014,CONSUMABLES,29030,FUSION,CARILLON INDUSTRIAL SERVICES LTD,5100306268,39.06,
United Kingdom Atomic energy Authority,United Kingdom Atomic energy Authority,07/07/2014,CONSUMABLES,29030,FUSION,CARILLON INDUSTRIAL SERVICES LTD,5100306269,45.84,
United Kingdom Atomic energy Authority,United Kingdom Atomic energy Authority,14/07/2014,CONSUMABLES,29030,FUSION,CARILLON INDUSTRIAL SERVICES LTD,5100306700,45.79,
United Kingdom Atomic energy Authority,United Kingdom Atomic energy Authority,21/07/2014,CONSUMABLES,29030,FUSION,CARILLON INDUSTRIAL SERVICES LTD,5100307058,23.96,
United Kingdom Atomic energy Authority,United Kingdom Atomic energy Authority,21/07/2014,MATERIALS & SPARES,23164,FUSION,CASELLA CEL LTD,5100306848,824,
United Kingdom Atomic energy Authority,United Kingdom Atomic energy Authority,07/07/2014,COMPENSATION ,21032,SUPPORT SERVICES,CATER LEYDON MILLARD LTD,5100306287,140,
United Kingdom Atomic energy Authority,United Kingdom Atomic energy Authority,07/07/2014,COMPENSATION ,21032,SUPPORT SERVICES,CATER LEYDON MILLARD LTD,5100306289,2365,
United Kingdom Atomic energy Authority,United Kingdom Atomic energy Authority,30/06/2014,MATERIALS & SPARES,23161,FUSION,CBL ELECTRIC VEHICLES LTD,5100305059,414.3,
United Kingdom Atomic energy Authority,United Kingdom Atomic energy Authority,09/07/2014,MATERIALS & SPARES,23161,FUSION,CBL ELECTRIC VEHICLES LTD,5100306340,177.6,
United Kingdom Atomic energy Authority,United Kingdom Atomic energy Authority,07/07/2014,PROFESSIONAL SERVICES,23151,FUSION,CELTECH CONSULTANCY LTD,5100306167,1800,
United Kingdom Atomic energy Authority,United Kingdom Atomic energy Authority,09/07/2014,HEALTH PHYSICS,25836,FUSION,CENTRAL RESEARCH LABORATORIES(CRL),5100306232,16339.26,
United Kingdom Atomic energy Authority,United Kingdom Atomic energy Authority,14/07/2014,MATERIALS & SPARES,23161,FUSION,CHANNEL SAFETY SERVICES LTD,5100306629,300,
United Kingdom Atomic energy Authority,United Kingdom Atomic energy Authority,21/07/2014,MATERIALS: HAZARDOUS,23151,FUSION,CHEMTECH WASTE MANAGEMENT,5100305524,4544.98,
United Kingdom Atomic energy Authority,United Kingdom Atomic energy Authority,30/06/2014,PROFESSIONAL SERVICES,23120,FUSION,City Security system Ltd,5100305989,785,
United Kingdom Atomic energy Authority,United Kingdom Atomic energy Authority,07/07/2014,LAUNDRY,29030,FUSION,CLEAN LINEN SERVICES LTD,5100306102,65.96,
United Kingdom Atomic energy Authority,United Kingdom Atomic energy Authority,23/07/2014,MATERIALS & SPARES,23161,FUSION,CMR CONTROLS,5100307108,79.5,
United Kingdom Atomic energy Authority,United Kingdom Atomic energy Authority,22/07/2014,PLANT & EQUIPMENT,23151,FUSION,CMR Electrical Ltd,1900060011,598.5,CUL13395
United Kingdom Atomic energy Authority,United Kingdom Atomic energy Authority,09/07/2014,EFDA SECONDEE CONTRACT,0,,CNR CONSIGLIO NAZIONALE DELLE RICER,5100305976,21211.21,
United Kingdom Atomic energy Authority,United Kingdom Atomic energy Authority,30/06/2014,UTILITIES/GAS,28050,PROPERTY,COFELY LTD,5100305992,26582.5,
United Kingdom Atomic energy Authority,United Kingdom Atomic energy Authority,02/07/2014,UTILITIES/GAS,28050,PROPERTY,COFELY LTD,5100305993,20601.97,
United Kingdom Atomic energy Authority,United Kingdom Atomic energy Authority,14/07/2014,UTILITIES/GAS,28200,PROPERTY,COFELY LTD,5100306486,28092,
United Kingdom Atomic energy Authority,United Kingdom Atomic energy Authority,23/07/2014,REPAIRS & MAINTENANCE,28200,PROPERTY,COLAS LTD,5100306559,10466.88,
United Kingdom Atomic energy Authority,United Kingdom Atomic energy Authority,16/07/2014,PLANT & EQUIPMENT,23150,FUSION,COLE-PALMER INSTRUMENTAL COMPANY LTD,5100306736,30.96,
United Kingdom Atomic energy Authority,United Kingdom Atomic energy Authority,23/07/2014,EFDA SECONDEE CONTRACT,0,,COMMISSARIAT L ENERGIE ATOMIQUE CEA,5100306626,7503.52,
United Kingdom Atomic energy Authority,United Kingdom Atomic energy Authority,23/07/2014,MATERIALS & SPARES,25701,FUSION,COMMNETWORKS LTD,5100307089,133.75,
United Kingdom Atomic energy Authority,United Kingdom Atomic energy Authority,21/07/2014,MATERIALS & SPARES,25103,FUSION,COMPLETE PCB SERVICES LTD,5100306978,849.05,
United Kingdom Atomic energy Authority,United Kingdom Atomic energy Authority,23/07/2014,SOFTWARE,23121,FUSION,COMPUTER SIMULATION TECHNOLOGY,5100306962,143.1,
United Kingdom Atomic energy Authority,United Kingdom Atomic energy Authority,21/07/2014,PLANT SPARES,23103,FUSION,CONDEC INDUSTRIAL MAINTENANCE,5100307072,265,
United Kingdom Atomic energy Authority,United Kingdom Atomic energy Authority,30/06/2014,PLANT SPARES,23151,FUSION,CONDEC INDUSTRIAL MAINTENANCE,5100306016,2700,
United Kingdom Atomic energy Authority,United Kingdom Atomic energy Authority,21/07/2014,PLANT SPARES,23617,FUSION,CONDEC INDUSTRIAL MAINTENANCE,5100307071,345,
United Kingdom Atomic energy Authority,United Kingdom Atomic energy Authority,30/06/2014,PROFESSIONAL SERVICES,25103,FUSION,CONNAUGHT COMPLIANCE SERVICES LTD,5100305966,760,
United Kingdom Atomic energy Authority,United Kingdom Atomic energy Authority,07/07/2014,PROFESSIONAL SERVICES,28020,PROPERTY,CONNAUGHT COMPLIANCE SERVICES LTD,5100306245,760,
United Kingdom Atomic energy Authority,United Kingdom Atomic energy Authority,09/07/2014,SOFTWARE,21033,SUPPORT SERVICES,CORPORTE BENCHMARKING SERVICES,5100305951,2425,
United Kingdom Atomic energy Authority,United Kingdom Atomic energy Authority,07/07/2014,MATERIALS & SPARES,23120,FUSION,CPC PLC,5100306372,128.26,
United Kingdom Atomic energy Authority,United Kingdom Atomic energy Authority,07/07/2014,MATERIALS & SPARES,25702,FUSION,CPC PLC,5100306154,17.81,
United Kingdom Atomic energy Authority,United Kingdom Atomic energy Authority,07/07/2014,MATERIALS & SPARES,25702,FUSION,CPC PLC,5100306157,17.81,
United Kingdom Atomic energy Authority,United Kingdom Atomic energy Authority,07/07/2014,MATERIALS & SPARES,25702,FUSION,CPC PLC,5100306158,20.56,
United Kingdom Atomic energy Authority,United Kingdom Atomic energy Authority,14/07/2014,MATERIALS & SPARES,25702,FUSION,CPC PLC,5100306699,143.97,
United Kingdom Atomic energy Authority,United Kingdom Atomic energy Authority,30/06/2014,MATERIALS & SPARES,25952,FUSION,CPC PLC,5100305884,294.59,
United Kingdom Atomic energy Authority,United Kingdom Atomic energy Authority,07/07/2014,PLANT & EQUIPMENT,23621,FUSION,CRDM LIMITED,5100306370,8595.5,
United Kingdom Atomic energy Authority,United Kingdom Atomic energy Authority,21/07/2014,PLANT & EQUIPMENT,23621,FUSION,CRDM LIMITED,5100307074,296.5,
United Kingdom Atomic energy Authority,United Kingdom Atomic energy Authority,07/07/2014,MATERIALS & SPARES,23103,FUSION,CROMWELL LTD,5100306136,71.04,
United Kingdom Atomic energy Authority,United Kingdom Atomic energy Authority,07/07/2014,MATERIALS & SPARES,23103,FUSION,CROMWELL LTD,5100306137,90,
United Kingdom Atomic energy Authority,United Kingdom Atomic energy Authority,07/07/2014,MATERIALS & SPARES,23103,FUSION,CROMWELL LTD,5100306389,78.95,
United Kingdom Atomic energy Authority,United Kingdom Atomic energy Authority,07/07/2014,MATERIALS & SPARES,23103,FUSION,CROMWELL LTD,5100306396,28.52,
United Kingdom Atomic energy Authority,United Kingdom Atomic energy Authority,14/07/2014,MATERIALS & SPARES,23103,FUSION,CROMWELL LTD,5100306590,130.85,
United Kingdom Atomic energy Authority,United Kingdom Atomic energy Authority,14/07/2014,MATERIALS & SPARES,23103,FUSION,CROMWELL LTD,5100306592,18.1,
United Kingdom Atomic energy Authority,United Kingdom Atomic energy Authority,21/07/2014,MATERIALS & SPARES,23103,FUSION,CROMWELL LTD,5100307065,9.24,
United Kingdom Atomic energy Authority,United Kingdom Atomic energy Authority,21/07/2014,MATERIALS & SPARES,23103,FUSION,CROMWELL LTD,5100307066,111.65,
United Kingdom Atomic energy Authority,United Kingdom Atomic energy Authority,07/07/2014,MATERIALS & SPARES,23106,FUSION,CROMWELL LTD,5100306394,66.9,
United Kingdom Atomic energy Authority,United Kingdom Atomic energy Authority,21/07/2014,MATERIALS & SPARES,23106,FUSION,CROMWELL LTD,5100307067,156.64,
United Kingdom Atomic energy Authority,United Kingdom Atomic energy Authority,21/07/2014,MATERIALS & SPARES,23106,FUSION,CROMWELL LTD,5100307069,35.44,
United Kingdom Atomic energy Authority,United Kingdom Atomic energy Authority,07/07/2014,MATERIALS & SPARES,23126,FUSION,CROMWELL LTD,5100306393,18.5,
United Kingdom Atomic energy Authority,United Kingdom Atomic energy Authority,07/07/2014,MATERIALS & SPARES,23151,FUSION,CROMWELL LTD,5100306133,105.51,
United Kingdom Atomic energy Authority,United Kingdom Atomic energy Authority,09/07/2014,MATERIALS & SPARES,23151,FUSION,CROMWELL LTD,5100306139,81.8,
United Kingdom Atomic energy Authority,United Kingdom Atomic energy Authority,07/07/2014,MATERIALS & SPARES,23151,FUSION,CROMWELL LTD,5100306390,65.68,
United Kingdom Atomic energy Authority,United Kingdom Atomic energy Authority,07/07/2014,MATERIALS & SPARES,23151,FUSION,CROMWELL LTD,5100306392,375.25,
United Kingdom Atomic energy Authority,United Kingdom Atomic energy Authority,14/07/2014,MATERIALS & SPARES,23151,FUSION,CROMWELL LTD,5100306589,17.65,
United Kingdom Atomic energy Authority,United Kingdom Atomic energy Authority,14/07/2014,MATERIALS & SPARES,23151,FUSION,CROMWELL LTD,5100306591,255,
United Kingdom Atomic energy Authority,United Kingdom Atomic energy Authority,14/07/2014,MATERIALS & SPARES,23152,FUSION,CROMWELL LTD,5100306638,181.9,
United Kingdom Atomic energy Authority,United Kingdom Atomic energy Authority,07/07/2014,MATERIALS & SPARES,23161,FUSION,CROMWELL LTD,5100306135,64.2,
United Kingdom Atomic energy Authority,United Kingdom Atomic energy Authority,14/07/2014,MATERIALS & SPARES,23161,FUSION,CROMWELL LTD,5100306388,257.4,
United Kingdom Atomic energy Authority,United Kingdom Atomic energy Authority,14/07/2014,MATERIALS & SPARES,23161,FUSION,CROMWELL LTD,5100306588,189.5,
United Kingdom Atomic energy Authority,United Kingdom Atomic energy Authority,07/07/2014,MATERIALS & SPARES,25103,FUSION,CROMWELL LTD,5100306132,66.72,
United Kingdom Atomic energy Authority,United Kingdom Atomic energy Authority,07/07/2014,MATERIALS & SPARES,25103,FUSION,CROMWELL LTD,5100306138,670.8,
United Kingdom Atomic energy Authority,United Kingdom Atomic energy Authority,07/07/2014,MATERIALS & SPARES,25103,FUSION,CROMWELL LTD,5100306391,96.28,
United Kingdom Atomic energy Authority,United Kingdom Atomic energy Authority,07/07/2014,MATERIALS & SPARES,25103,FUSION,CROMWELL LTD,5100306395,33.66,
United Kingdom Atomic energy Authority,United Kingdom Atomic energy Authority,14/07/2014,MATERIALS & SPARES,25103,FUSION,CROMWELL LTD,5100306593,106.6,
United Kingdom Atomic energy Authority,United Kingdom Atomic energy Authority,21/07/2014,MATERIALS & SPARES,25103,FUSION,CROMWELL LTD,5100307068,83.94,
United Kingdom Atomic energy Authority,United Kingdom Atomic energy Authority,21/07/2014,MATERIALS & SPARES,29030,FUSION,CROSSMAN ENGINEERING,5100306891,153.12,
United Kingdom Atomic energy Authority,United Kingdom Atomic energy Authority,14/07/2014,REPAIRS & MAINTENANCE,23120,FUSION,CROWCON DETECTION INSTRUMENTS LTD,5100306499,1000,
United Kingdom Atomic energy Authority,United Kingdom Atomic energy Authority,21/07/2014,PROFESSIONAL SERVICES,21033,SUPPORT SERVICES,CSC COMPUTER SERVICES,5100306972,17161.6,
United Kingdom Atomic energy Authority,United Kingdom Atomic energy Authority,21/07/2014,PROFESSIONAL SERVICES,21033,SUPPORT SERVICES,CSC COMPUTER SERVICES,5100306974,29687.39,
United Kingdom Atomic energy Authority,United Kingdom Atomic energy Authority,21/07/2014,PROFESSIONAL SERVICES,21033,SUPPORT SERVICES,CSC COMPUTER SERVICES,5100306976,4277.28,
United Kingdom Atomic energy Authority,United Kingdom Atomic energy Authority,09/07/2014,PROFESSIONAL SERVICES,63517,SUPPORT SERVICES,CSC COMPUTER SERVICES,5100306112,49.15,
United Kingdom Atomic energy Authority,United Kingdom Atomic energy Authority,09/07/2014,PROFESSIONAL SERVICES,63517,SUPPORT SERVICES,CSC COMPUTER SERVICES,5100306148,3017.35,
United Kingdom Atomic energy Authority,United Kingdom Atomic energy Authority,30/06/2014,PROFESSIONAL SERVICES,21033,SUPPORT SERVICES,CSS WORKSAFE,5100305665,1500,
United Kingdom Atomic energy Authority,United Kingdom Atomic energy Authority,30/06/2014,PROFESSIONAL SERVICES,21033,SUPPORT SERVICES,CSS WORKSAFE,5100305668,750,
United Kingdom Atomic energy Authority,United Kingdom Atomic energy Authority,21/07/2014,PLANT & EQUIPMENT,25103,FUSION,Cutting Edge Diamond Drilling Ltd,5100306847,330.76,
United Kingdom Atomic energy Authority,United Kingdom Atomic energy Authority,30/06/2014,PLANT SPARES,29030,FUSION,CUTWEL LTD,5100305946,23.08,
United Kingdom Atomic energy Authority,United Kingdom Atomic energy Authority,07/07/2014,PLANT SPARES,29030,FUSION,CUTWEL LTD,5100305987,505.29,
United Kingdom Atomic energy Authority,United Kingdom Atomic energy Authority,07/07/2014,PLANT SPARES,29030,FUSION,CUTWEL LTD,5100306115,207.98,
United Kingdom Atomic energy Authority,United Kingdom Atomic energy Authority,14/07/2014,PLANT SPARES,29030,FUSION,CUTWEL LTD,5100306631,51.55,
United Kingdom Atomic energy Authority,United Kingdom Atomic energy Authority,14/07/2014,BUILDING REPAIRS,23151,FUSION,D CLOUGH LTD,5100306274,2224.36,
United Kingdom Atomic energy Authority,United Kingdom Atomic energy Authority,30/06/2014,PLANT & EQUIPMENT,23131,FUSION,DATA TRACK PROCESS INSTRUMENTS LIM,5100305997,283,
United Kingdom Atomic energy Authority,United Kingdom Atomic energy Authority,07/07/2014,PLANT & EQUIPMENT,23131,FUSION,DATA TRACK PROCESS INSTRUMENTS LIM,5100306271,283,
United Kingdom Atomic energy Authority,United Kingdom Atomic energy Authority,16/07/2014,OTHER EXTERNAL COSTS,25701,FUSION,David Bailey Developments Ltd,1900059994,1912,CUL13382
United Kingdom Atomic energy Authority,United Kingdom Atomic energy Authority,07/07/2014,PLANT & EQUIPMENT,29030,FUSION,DAVIS INDUSTRIAL PLASTICS,5100306341,132.32,
United Kingdom Atomic energy Authority,United Kingdom Atomic energy Authority,21/07/2014,PLANT & EQUIPMENT,29030,FUSION,DAVIS INDUSTRIAL PLASTICS,5100306876,88.43,
United Kingdom Atomic energy Authority,United Kingdom Atomic energy Authority,02/07/2014,PLANT & EQUIPMENT,23134,FUSION,DIAMOND POINT INTERNATIONAL EUROPE,5100306010,18943.02,
United Kingdom Atomic energy Authority,United Kingdom Atomic energy Authority,02/07/2014,PLANT & EQUIPMENT,23134,FUSION,DIAMOND POINT INTERNATIONAL EUROPE,5100306227,-12628.68,
United Kingdom Atomic energy Authority,United Kingdom Atomic energy Authority,02/07/2014,PLANT & EQUIPMENT,23134,FUSION,DIAMOND POINT INTERNATIONAL EUROPE,5100306250,12628.68,
United Kingdom Atomic energy Authority,United Kingdom Atomic energy Authority,02/07/2014,PLANT & EQUIPMENT,23134,FUSION,DIAMOND POINT INTERNATIONAL EUROPE,5100306252,-18943.02,
United Kingdom Atomic energy Authority,United Kingdom Atomic energy Authority,09/07/2014,PLANT & EQUIPMENT,23134,FUSION,DIAMOND POINT INTERNATIONAL EUROPE,5100306253,19337.87,
United Kingdom Atomic energy Authority,United Kingdom Atomic energy Authority,09/07/2014,PLANT & EQUIPMENT,23134,FUSION,DIAMOND POINT INTERNATIONAL EUROPE,5100306256,-12891.91,
United Kingdom Atomic energy Authority,United Kingdom Atomic energy Authority,02/07/2014,MATERIALS & SPARES,23128,FUSION,DILO ARMATURAN AND ANLAGEN GMBH,5100305563,498.96,
United Kingdom Atomic energy Authority,United Kingdom Atomic energy Authority,21/07/2014,PROFESSIONAL SERVICES,21033,SUPPORT SERVICES,DISCLOSURE SCOTLAND,5100306845,550,
United Kingdom Atomic energy Authority,United Kingdom Atomic energy Authority,07/07/2014,TRAINING COURSE FEES,23131,FUSION,Doulos Ltd,1900059935,1500,CUL13316
United Kingdom Atomic energy Authority,United Kingdom Atomic energy Authority,11/07/2014,COMPENSATION ,63608,SUPPORT SERVICES,COMPENSATION AND CLAIMANT,1900059966,3325,CUL13350
United Kingdom Atomic energy Authority,United Kingdom Atomic energy Authority,30/06/2014,PLANT SPARES,23122,FUSION,DRAWTREND LTD,5100305963,3220,
United Kingdom Atomic energy Authority,United Kingdom Atomic energy Authority,30/06/2014,MATERIALS & SPARES,29030,FUSION,DURBIN METAL INDUSTRIES LTD,5100305858,41.95,
United Kingdom Atomic energy Authority,United Kingdom Atomic energy Authority,30/06/2014,MATERIALS & SPARES,29030,FUSION,DURBIN METAL INDUSTRIES LTD,5100305903,14.9,
United Kingdom Atomic energy Authority,United Kingdom Atomic energy Authority,09/07/2014,PLANT & EQUIPMENT,25103,FUSION,DYNEX SEMICONDUTOR,5100306164,14500,
United Kingdom Atomic energy Authority,United Kingdom Atomic energy Authority,09/07/2014,EFDA SECONDEE CONTRACT,0,,ECOLE ROYALE MILITAIRE,5100305801,33015.38,
United Kingdom Atomic energy Authority,United Kingdom Atomic energy Authority,14/07/2014,UTILITIES/ELECTRICITY,23101,FUSION,EDF ENERGY,5100306381,77107.66,
United Kingdom Atomic energy Authority,United Kingdom Atomic energy Authority,09/07/2014,UTILITIES/ELECTRICITY,28050,PROPERTY,EDF ENERGY,5100306375,1766.92,
United Kingdom Atomic energy Authority,United Kingdom Atomic energy Authority,09/07/2014,UTILITIES/ELECTRICITY,28050,PROPERTY,EDF ENERGY,5100306376,28960.84,
United Kingdom Atomic energy Authority,United Kingdom Atomic energy Authority,09/07/2014,UTILITIES/ELECTRICITY,28050,PROPERTY,EDF ENERGY,5100306377,2334.36,
United Kingdom Atomic energy Authority,United Kingdom Atomic energy Authority,09/07/2014,UTILITIES/ELECTRICITY,28050,PROPERTY,EDF ENERGY,5100306378,821.43,
United Kingdom Atomic energy Authority,United Kingdom Atomic energy Authority,09/07/2014,UTILITIES/ELECTRICITY,28050,PROPERTY,EDF ENERGY,5100306379,1260.53,
United Kingdom Atomic energy Authority,United Kingdom Atomic energy Authority,09/07/2014,UTILITIES/ELECTRICITY,28050,PROPERTY,EDF ENERGY,5100306380,220.66,
United Kingdom Atomic energy Authority,United Kingdom Atomic energy Authority,09/07/2014,UTILITIES/ELECTRICITY,28050,PROPERTY,EDF ENERGY,5100306400,17389.52,
United Kingdom Atomic energy Authority,United Kingdom Atomic energy Authority,09/07/2014,UTILITIES/ELECTRICITY,28050,PROPERTY,EDF ENERGY,5100306403,24847.2,
United Kingdom Atomic energy Authority,United Kingdom Atomic energy Authority,02/07/2014,PLANT SPARES,23131,FUSION,EDINBURGH INSTRUMENTS,5100305779,2900,
United Kingdom Atomic energy Authority,United Kingdom Atomic energy Authority,30/06/2014,PROFESSIONAL SERVICES,25103,FUSION,EDM PRECISION TECHNOLOGIES,5100305666,11982,
United Kingdom Atomic energy Authority,United Kingdom Atomic energy Authority,30/06/2014,PLANT & EQUIPMENT,23128,FUSION,EDMUNDSON ELECTRICALS LTD,5100306067,177,
United Kingdom Atomic energy Authority,United Kingdom Atomic energy Authority,07/07/2014,PLANT & EQUIPMENT,23129,FUSION,EDMUNDSON ELECTRICALS LTD,5100306203,105.82,
United Kingdom Atomic energy Authority,United Kingdom Atomic energy Authority,14/07/2014,PLANT & EQUIPMENT,23129,FUSION,EDMUNDSON ELECTRICALS LTD,5100306726,109,
United Kingdom Atomic energy Authority,United Kingdom Atomic energy Authority,21/07/2014,PLANT & EQUIPMENT,23131,FUSION,EDMUNDSON ELECTRICALS LTD,5100306887,161.11,
United Kingdom Atomic energy Authority,United Kingdom Atomic energy Authority,21/07/2014,PLANT & EQUIPMENT,23151,FUSION,EDMUNDSON ELECTRICALS LTD,5100307054,74.16,
United Kingdom Atomic energy Authority,United Kingdom Atomic energy Authority,02/07/2014,PLANT & EQUIPMENT,23161,FUSION,EDMUNDSON ELECTRICALS LTD,5100305310,290,
United Kingdom Atomic energy Authority,United Kingdom Atomic energy Authority,30/06/2014,PLANT & EQUIPMENT,23161,FUSION,EDMUNDSON ELECTRICALS LTD,5100305877,772.22,
United Kingdom Atomic energy Authority,United Kingdom Atomic energy Authority,07/07/2014,PLANT & EQUIPMENT,23161,FUSION,EDMUNDSON ELECTRICALS LTD,5100306065,453.14,
United Kingdom Atomic energy Authority,United Kingdom Atomic energy Authority,07/07/2014,PLANT & EQUIPMENT,23161,FUSION,EDMUNDSON ELECTRICALS LTD,5100306068,29.06,
United Kingdom Atomic energy Authority,United Kingdom Atomic energy Authority,07/07/2014,PLANT & EQUIPMENT,23161,FUSION,EDMUNDSON ELECTRICALS LTD,5100306198,91.54,
United Kingdom Atomic energy Authority,United Kingdom Atomic energy Authority,02/07/2014,PLANT & EQUIPMENT,23161,FUSION,EDMUNDSON ELECTRICALS LTD,5100306199,-290,
United Kingdom Atomic energy Authority,United Kingdom Atomic energy Authority,07/07/2014,PLANT & EQUIPMENT,23161,FUSION,EDMUNDSON ELECTRICALS LTD,5100306200,8.85,
United Kingdom Atomic energy Authority,United Kingdom Atomic energy Authority,07/07/2014,PLANT & EQUIPMENT,23161,FUSION,EDMUNDSON ELECTRICALS LTD,5100306201,22.23,
United Kingdom Atomic energy Authority,United Kingdom Atomic energy Authority,07/07/2014,PLANT & EQUIPMENT,23161,FUSION,EDMUNDSON ELECTRICALS LTD,5100306202,431.16,
United Kingdom Atomic energy Authority,United Kingdom Atomic energy Authority,07/07/2014,PLANT & EQUIPMENT,23161,FUSION,EDMUNDSON ELECTRICALS LTD,5100306204,18.59,
United Kingdom Atomic energy Authority,United Kingdom Atomic energy Authority,07/07/2014,PLANT & EQUIPMENT,23161,FUSION,EDMUNDSON ELECTRICALS LTD,5100306206,41.71,
United Kingdom Atomic energy Authority,United Kingdom Atomic energy Authority,14/07/2014,PLANT & EQUIPMENT,23161,FUSION,EDMUNDSON ELECTRICALS LTD,5100306405,41.93,
United Kingdom Atomic energy Authority,United Kingdom Atomic energy Authority,14/07/2014,PLANT & EQUIPMENT,23161,FUSION,EDMUNDSON ELECTRICALS LTD,5100306516,6.12,
United Kingdom Atomic energy Authority,United Kingdom Atomic energy Authority,14/07/2014,PLANT & EQUIPMENT,23161,FUSION,EDMUNDSON ELECTRICALS LTD,5100306709,2967,
United Kingdom Atomic energy Authority,United Kingdom Atomic energy Authority,16/07/2014,PLANT & EQUIPMENT,23161,FUSION,EDMUNDSON ELECTRICALS LTD,5100306727,869.34,
United Kingdom Atomic energy Authority,United Kingdom Atomic energy Authority,14/07/2014,PLANT & EQUIPMENT,23161,FUSION,EDMUNDSON ELECTRICALS LTD,5100306733,97.81,
United Kingdom Atomic energy Authority,United Kingdom Atomic energy Authority,14/07/2014,PLANT & EQUIPMENT,23161,FUSION,EDMUNDSON ELECTRICALS LTD,5100306734,302.89,
United Kingdom Atomic energy Authority,United Kingdom Atomic energy Authority,14/07/2014,PLANT & EQUIPMENT,23161,FUSION,EDMUNDSON ELECTRICALS LTD,5100306735,108.72,
United Kingdom Atomic energy Authority,United Kingdom Atomic energy Authority,21/07/2014,PLANT & EQUIPMENT,23161,FUSION,EDMUNDSON ELECTRICALS LTD,5100306902,557.19,
United Kingdom Atomic energy Authority,United Kingdom Atomic energy Authority,23/07/2014,PLANT & EQUIPMENT,25103,FUSION,EDMUNDSON ELECTRICALS LTD,5100305199,995.72,
United Kingdom Atomic energy Authority,United Kingdom Atomic energy Authority,23/07/2014,PLANT & EQUIPMENT,25103,FUSION,EDMUNDSON ELECTRICALS LTD,5100305552,35.35,
United Kingdom Atomic energy Authority,United Kingdom Atomic energy Authority,23/07/2014,PLANT & EQUIPMENT,25103,FUSION,EDMUNDSON ELECTRICALS LTD,5100305790,71.15,
United Kingdom Atomic energy Authority,United Kingdom Atomic energy Authority,30/06/2014,PLANT & EQUIPMENT,25103,FUSION,EDMUNDSON ELECTRICALS LTD,5100305791,36.78,
United Kingdom Atomic energy Authority,United Kingdom Atomic energy Authority,30/06/2014,PLANT & EQUIPMENT,25103,FUSION,EDMUNDSON ELECTRICALS LTD,5100305792,1579.88,
United Kingdom Atomic energy Authority,United Kingdom Atomic energy Authority,23/07/2014,PLANT & EQUIPMENT,25103,FUSION,EDMUNDSON ELECTRICALS LTD,5100305873,39.58,
United Kingdom Atomic energy Authority,United Kingdom Atomic energy Authority,09/07/2014,PLANT & EQUIPMENT,25103,FUSION,EDMUNDSON ELECTRICALS LTD,5100305875,383.61,
United Kingdom Atomic energy Authority,United Kingdom Atomic energy Authority,30/06/2014,PLANT & EQUIPMENT,25103,FUSION,EDMUNDSON ELECTRICALS LTD,5100306055,207.2,
United Kingdom Atomic energy Authority,United Kingdom Atomic energy Authority,02/07/2014,PLANT & EQUIPMENT,25103,FUSION,EDMUNDSON ELECTRICALS LTD,5100306063,447.89,
United Kingdom Atomic energy Authority,United Kingdom Atomic energy Authority,30/06/2014,PLANT & EQUIPMENT,25103,FUSION,EDMUNDSON ELECTRICALS LTD,5100306064,26.4,
United Kingdom Atomic energy Authority,United Kingdom Atomic energy Authority,02/07/2014,PLANT & EQUIPMENT,25103,FUSION,EDMUNDSON ELECTRICALS LTD,5100306066,493.52,
United Kingdom Atomic energy Authority,United Kingdom Atomic energy Authority,30/06/2014,PLANT & EQUIPMENT,25103,FUSION,EDMUNDSON ELECTRICALS LTD,5100306069,25.32,
United Kingdom Atomic energy Authority,United Kingdom Atomic energy Authority,23/07/2014,PLANT & EQUIPMENT,25103,FUSION,EDMUNDSON ELECTRICALS LTD,5100306170,195.46,
United Kingdom Atomic energy Authority,United Kingdom Atomic energy Authority,07/07/2014,PLANT & EQUIPMENT,25103,FUSION,EDMUNDSON ELECTRICALS LTD,5100306195,560.74,
United Kingdom Atomic energy Authority,United Kingdom Atomic energy Authority,09/07/2014,PLANT & EQUIPMENT,25103,FUSION,EDMUNDSON ELECTRICALS LTD,5100306205,992,
United Kingdom Atomic energy Authority,United Kingdom Atomic energy Authority,02/07/2014,PLANT & EQUIPMENT,25103,FUSION,EDMUNDSON ELECTRICALS LTD,5100306225,-51.5,
United Kingdom Atomic energy Authority,United Kingdom Atomic energy Authority,14/07/2014,PLANT & EQUIPMENT,25103,FUSION,EDMUNDSON ELECTRICALS LTD,5100306406,35.31,
United Kingdom Atomic energy Authority,United Kingdom Atomic energy Authority,09/07/2014,PLANT & EQUIPMENT,25103,FUSION,EDMUNDSON ELECTRICALS LTD,5100306408,267.16,
United Kingdom Atomic energy Authority,United Kingdom Atomic energy Authority,16/07/2014,PLANT & EQUIPMENT,25103,FUSION,EDMUNDSON ELECTRICALS LTD,5100306708,32.23,
United Kingdom Atomic energy Authority,United Kingdom Atomic energy Authority,21/07/2014,PLANT & EQUIPMENT,25103,FUSION,EDMUNDSON ELECTRICALS LTD,5100306731,259.25,
United Kingdom Atomic energy Authority,United Kingdom Atomic energy Authority,14/07/2014,PLANT & EQUIPMENT,25103,FUSION,EDMUNDSON ELECTRICALS LTD,5100306732,32.21,
United Kingdom Atomic energy Authority,United Kingdom Atomic energy Authority,21/07/2014,PLANT & EQUIPMENT,25103,FUSION,EDMUNDSON ELECTRICALS LTD,5100306831,80.81,
United Kingdom Atomic energy Authority,United Kingdom Atomic energy Authority,21/07/2014,PLANT & EQUIPMENT,25103,FUSION,EDMUNDSON ELECTRICALS LTD,5100306832,46.46,
United Kingdom Atomic energy Authority,United Kingdom Atomic energy Authority,21/07/2014,PLANT & EQUIPMENT,25103,FUSION,EDMUNDSON ELECTRICALS LTD,5100306833,519.07,
United Kingdom Atomic energy Authority,United Kingdom Atomic energy Authority,21/07/2014,PLANT & EQUIPMENT,25103,FUSION,EDMUNDSON ELECTRICALS LTD,5100306834,51.74,
United Kingdom Atomic energy Authority,United Kingdom Atomic energy Authority,21/07/2014,PLANT & EQUIPMENT,25103,FUSION,EDMUNDSON ELECTRICALS LTD,5100306835,67.06,
United Kingdom Atomic energy Authority,United Kingdom Atomic energy Authority,21/07/2014,PLANT & EQUIPMENT,25103,FUSION,EDMUNDSON ELECTRICALS LTD,5100306836,23.91,
United Kingdom Atomic energy Authority,United Kingdom Atomic energy Authority,21/07/2014,PLANT & EQUIPMENT,25103,FUSION,EDMUNDSON ELECTRICALS LTD,5100306837,30.8,
United Kingdom Atomic energy Authority,United Kingdom Atomic energy Authority,21/07/2014,PLANT & EQUIPMENT,25103,FUSION,EDMUNDSON ELECTRICALS LTD,5100306885,116.85,
United Kingdom Atomic energy Authority,United Kingdom Atomic energy Authority,21/07/2014,PLANT & EQUIPMENT,25103,FUSION,EDMUNDSON ELECTRICALS LTD,5100306895,7.08,
United Kingdom Atomic energy Authority,United Kingdom Atomic energy Authority,23/07/2014,PLANT & EQUIPMENT,25103,FUSION,EDMUNDSON ELECTRICALS LTD,5100307111,58.72,
United Kingdom Atomic energy Authority,United Kingdom Atomic energy Authority,23/07/2014,PLANT & EQUIPMENT,25103,FUSION,EDMUNDSON ELECTRICALS LTD,5100307112,652.57,
United Kingdom Atomic energy Authority,United Kingdom Atomic energy Authority,23/07/2014,PLANT & EQUIPMENT,25103,FUSION,EDMUNDSON ELECTRICALS LTD,5100307113,51.4,
United Kingdom Atomic energy Authority,United Kingdom Atomic energy Authority,21/07/2014,PLANT & EQUIPMENT,23151,FUSION,EDWARDS LIMITED,5100307064,3512.48,
United Kingdom Atomic energy Authority,United Kingdom Atomic energy Authority,30/06/2014,F&F,21033,SUPPORT SERVICES,EFG MATTHEWS OFFICE FURNITURE LTD,5100305958,386.1,
United Kingdom Atomic energy Authority,United Kingdom Atomic energy Authority,07/07/2014,F&F,21033,SUPPORT SERVICES,EFG MATTHEWS OFFICE FURNITURE LTD,5100306258,144.3,
United Kingdom Atomic energy Authority,United Kingdom Atomic energy Authority,07/07/2014,F&F,21033,SUPPORT SERVICES,EFG MATTHEWS OFFICE FURNITURE LTD,5100306425,420,
United Kingdom Atomic energy Authority,United Kingdom Atomic energy Authority,09/07/2014,F&F,21033,SUPPORT SERVICES,EFG MATTHEWS OFFICE FURNITURE LTD,5100306526,-94.5,
United Kingdom Atomic energy Authority,United Kingdom Atomic energy Authority,09/07/2014,F&F,21033,SUPPORT SERVICES,EFG MATTHEWS OFFICE FURNITURE LTD,5100306527,94.5,
United Kingdom Atomic energy Authority,United Kingdom Atomic energy Authority,14/07/2014,F&F,21033,SUPPORT SERVICES,EFG MATTHEWS OFFICE FURNITURE LTD,5100306706,510.8,
United Kingdom Atomic energy Authority,United Kingdom Atomic energy Authority,21/07/2014,F&F,21033,SUPPORT SERVICES,EFG MATTHEWS OFFICE FURNITURE LTD,5100306872,380,
United Kingdom Atomic energy Authority,United Kingdom Atomic energy Authority,21/07/2014,F&F,21033,SUPPORT SERVICES,EFG MATTHEWS OFFICE FURNITURE LTD,5100307062,644,
United Kingdom Atomic energy Authority,United Kingdom Atomic energy Authority,21/07/2014,F&F,21033,SUPPORT SERVICES,EFG MATTHEWS OFFICE FURNITURE LTD,5100307063,258.7,
United Kingdom Atomic energy Authority,United Kingdom Atomic energy Authority,07/07/2014,F&F,23105,FUSION,EFG MATTHEWS OFFICE FURNITURE LTD,5100306262,427.8,
United Kingdom Atomic energy Authority,United Kingdom Atomic energy Authority,21/07/2014,F&F,23106,FUSION,EFG MATTHEWS OFFICE FURNITURE LTD,5100307061,232,
United Kingdom Atomic energy Authority,United Kingdom Atomic energy Authority,30/06/2014,F&F,23108,FUSION,EFG MATTHEWS OFFICE FURNITURE LTD,5100305957,189,
United Kingdom Atomic energy Authority,United Kingdom Atomic energy Authority,07/07/2014,F&F,23108,FUSION,EFG MATTHEWS OFFICE FURNITURE LTD,5100306142,848.2,
United Kingdom Atomic energy Authority,United Kingdom Atomic energy Authority,07/07/2014,F&F,23109,FUSION,EFG MATTHEWS OFFICE FURNITURE LTD,5100306147,77.6,
United Kingdom Atomic energy Authority,United Kingdom Atomic energy Authority,21/07/2014,F&F,23109,FUSION,EFG MATTHEWS OFFICE FURNITURE LTD,5100307060,118.35,
United Kingdom Atomic energy Authority,United Kingdom Atomic energy Authority,21/07/2014,F&F,23126,FUSION,EFG MATTHEWS OFFICE FURNITURE LTD,5100306873,455,
United Kingdom Atomic energy Authority,United Kingdom Atomic energy Authority,07/07/2014,F&F,23151,FUSION,EFG MATTHEWS OFFICE FURNITURE LTD,5100306254,82.1,
United Kingdom Atomic energy Authority,United Kingdom Atomic energy Authority,14/07/2014,F&F,23151,FUSION,EFG MATTHEWS OFFICE FURNITURE LTD,5100306585,85,
United Kingdom Atomic energy Authority,United Kingdom Atomic energy Authority,07/07/2014,F&F,23183,FUSION,EFG MATTHEWS OFFICE FURNITURE LTD,5100306140,652.2,
United Kingdom Atomic energy Authority,United Kingdom Atomic energy Authority,30/06/2014,F&F,28020,PROPERTY,EFG MATTHEWS OFFICE FURNITURE LTD,5100305956,791.5,
United Kingdom Atomic energy Authority,United Kingdom Atomic energy Authority,21/07/2014,MATERIALS & SPARES,29030,FUSION,ELEMENT SIX BV,5100307005,1624,
United Kingdom Atomic energy Authority,United Kingdom Atomic energy Authority,09/07/2014,MATERIALS & SPARES,23134,FUSION,Emcel Filters Ltd,1900059957,4896,CUL13341
United Kingdom Atomic energy Authority,United Kingdom Atomic energy Authority,24/07/2014,SUBSISTENCE,21032,SUPPORT SERVICES,EMPLOYEES EXPENSES,100730755,3.8,
United Kingdom Atomic energy Authority,United Kingdom Atomic energy Authority,24/07/2014,SUBSISTENCE,21032,SUPPORT SERVICES,EMPLOYEES EXPENSES,100730755,1.92,
United Kingdom Atomic energy Authority,United Kingdom Atomic energy Authority,24/07/2014,RAIL TRAVEL,21032,SUPPORT SERVICES,EMPLOYEES EXPENSES,100730755,21,
United Kingdom Atomic energy Authority,United Kingdom Atomic energy Authority,24/07/2014,ROAD TRAVEL,21032,SUPPORT SERVICES,EMPLOYEES EXPENSES,100730755,6,
United Kingdom Atomic energy Authority,United Kingdom Atomic energy Authority,10/07/2014,PROFESSIONAL SUBSCRIPTION,21032,SUPPORT SERVICES,EMPLOYEES EXPENSES,100730524,190,
United Kingdom Atomic energy Authority,United Kingdom Atomic energy Authority,24/07/2014,PROFESSIONAL SUBSCRIPTION,21032,SUPPORT SERVICES,EMPLOYEES EXPENSES,100730766,165,
United Kingdom Atomic energy Authority,United Kingdom Atomic energy Authority,03/07/2014,SUBSISTENCE,21033,SUPPORT SERVICES,EMPLOYEES EXPENSES,100730353,2.3,
United Kingdom Atomic energy Authority,United Kingdom Atomic energy Authority,03/07/2014,SUBSISTENCE,21033,SUPPORT SERVICES,EMPLOYEES EXPENSES,100730353,3.92,
United Kingdom Atomic energy Authority,United Kingdom Atomic energy Authority,05/07/2014,SUBSISTENCE,21033,SUPPORT SERVICES,EMPLOYEES EXPENSES,100730460,51.6,
United Kingdom Atomic energy Authority,United Kingdom Atomic energy Authority,05/07/2014,SUBSISTENCE,21033,SUPPORT SERVICES,EMPLOYEES EXPENSES,100730472,113,
United Kingdom Atomic energy Authority,United Kingdom Atomic energy Authority,03/07/2014,MILEAGE ALLOWANCE,21033,SUPPORT SERVICES,EMPLOYEES EXPENSES,100730353,136.8,
United Kingdom Atomic energy Authority,United Kingdom Atomic energy Authority,03/07/2014,MILEAGE ALLOWANCE,21033,SUPPORT SERVICES,EMPLOYEES EXPENSES,100730371,35.1,
United Kingdom Atomic energy Authority,United Kingdom Atomic energy Authority,03/07/2014,MILEAGE ALLOWANCE,21033,SUPPORT SERVICES,EMPLOYEES EXPENSES,100730373,85.5,
United Kingdom Atomic energy Authority,United Kingdom Atomic energy Authority,03/07/2014,MILEAGE ALLOWANCE,21033,SUPPORT SERVICES,EMPLOYEES EXPENSES,100730374,58.59,
United Kingdom Atomic energy Authority,United Kingdom Atomic energy Authority,05/07/2014,MILEAGE ALLOWANCE,21033,SUPPORT SERVICES,EMPLOYEES EXPENSES,100730470,14.4,
United Kingdom Atomic energy Authority,United Kingdom Atomic energy Authority,12/07/2014,MILEAGE ALLOWANCE,21033,SUPPORT SERVICES,EMPLOYEES EXPENSES,100730568,12.6,
United Kingdom Atomic energy Authority,United Kingdom Atomic energy Authority,05/07/2014,RAIL TRAVEL,21033,SUPPORT SERVICES,EMPLOYEES EXPENSES,100730460,34.2,
United Kingdom Atomic energy Authority,United Kingdom Atomic energy Authority,05/07/2014,ROAD TRAVEL,21033,SUPPORT SERVICES,EMPLOYEES EXPENSES,100730460,10.17,
United Kingdom Atomic energy Authority,United Kingdom Atomic energy Authority,05/07/2014,ROAD TRAVEL,21033,SUPPORT SERVICES,EMPLOYEES EXPENSES,100730470,7,
United Kingdom Atomic energy Authority,United Kingdom Atomic energy Authority,05/07/2014,ROAD TRAVEL,21033,SUPPORT SERVICES,EMPLOYEES EXPENSES,100730472,13.17,
United Kingdom Atomic energy Authority,United Kingdom Atomic energy Authority,25/07/2014,SUBSISTENCE,21034,FUSION,EMPLOYEES EXPENSES,100732859,5,
United Kingdom Atomic energy Authority,United Kingdom Atomic energy Authority,25/07/2014,SUBSISTENCE,21034,FUSION,EMPLOYEES EXPENSES,100732860,5,
United Kingdom Atomic energy Authority,United Kingdom Atomic energy Authority,25/07/2014,SUBSISTENCE,21034,FUSION,EMPLOYEES EXPENSES,100732860,124.17,
United Kingdom Atomic energy Authority,United Kingdom Atomic energy Authority,25/07/2014,SUBSISTENCE,21034,FUSION,EMPLOYEES EXPENSES,100732861,9.41,
United Kingdom Atomic energy Authority,United Kingdom Atomic energy Authority,25/07/2014,MILEAGE ALLOWANCE,21034,FUSION,EMPLOYEES EXPENSES,100732859,202.05,
United Kingdom Atomic energy Authority,United Kingdom Atomic energy Authority,25/07/2014,MILEAGE ALLOWANCE,21034,FUSION,EMPLOYEES EXPENSES,100732860,155.25,
United Kingdom Atomic energy Authority,United Kingdom Atomic energy Authority,25/07/2014,MILEAGE ALLOWANCE,21034,FUSION,EMPLOYEES EXPENSES,100732861,18,
United Kingdom Atomic energy Authority,United Kingdom Atomic energy Authority,25/07/2014,RAIL TRAVEL,21034,FUSION,EMPLOYEES EXPENSES,100732861,66,
United Kingdom Atomic energy Authority,United Kingdom Atomic energy Authority,25/07/2014,ROAD TRAVEL,21034,FUSION,EMPLOYEES EXPENSES,100732861,6,
United Kingdom Atomic energy Authority,United Kingdom Atomic energy Authority,03/07/2014,SUBSISTENCE,23109,FUSION,EMPLOYEES EXPENSES,100730377,25.3,
United Kingdom Atomic energy Authority,United Kingdom Atomic energy Authority,03/07/2014,SUBSISTENCE,23109,FUSION,EMPLOYEES EXPENSES,100730377,199.47,
United Kingdom Atomic energy Authority,United Kingdom Atomic energy Authority,18/07/2014,TAXIS,23119,FUSION,EMPLOYEES EXPENSES,100730679,10,
United Kingdom Atomic energy Authority,United Kingdom Atomic energy Authority,03/07/2014,SUBSISTENCE,23119,FUSION,EMPLOYEES EXPENSES,100730354,25,
United Kingdom Atomic energy Authority,United Kingdom Atomic energy Authority,18/07/2014,SUBSISTENCE,23119,FUSION,EMPLOYEES EXPENSES,100730679,395,
United Kingdom Atomic energy Authority,United Kingdom Atomic energy Authority,18/07/2014,SUBSISTENCE,23119,FUSION,EMPLOYEES EXPENSES,100730679,60.37,
United Kingdom Atomic energy Authority,United Kingdom Atomic energy Authority,03/07/2014,MILEAGE ALLOWANCE,23119,FUSION,EMPLOYEES EXPENSES,100730354,175.5,
United Kingdom Atomic energy Authority,United Kingdom Atomic energy Authority,18/07/2014,RAIL TRAVEL,23119,FUSION,EMPLOYEES EXPENSES,100730679,23.8,
United Kingdom Atomic energy Authority,United Kingdom Atomic energy Authority,18/07/2014,ROAD TRAVEL,23119,FUSION,EMPLOYEES EXPENSES,100730679,6.7,
United Kingdom Atomic energy Authority,United Kingdom Atomic energy Authority,18/07/2014,PROFESSIONAL SUBSCRIPTION,23119,FUSION,EMPLOYEES EXPENSES,100730678,48,
United Kingdom Atomic energy Authority,United Kingdom Atomic energy Authority,05/07/2014,MILEAGE ALLOWANCE,23123,FUSION,EMPLOYEES EXPENSES,100730468,20.4,
United Kingdom Atomic energy Authority,United Kingdom Atomic energy Authority,12/07/2014,MILEAGE ALLOWANCE,23124,FUSION,EMPLOYEES EXPENSES,100730572,81,
United Kingdom Atomic energy Authority,United Kingdom Atomic energy Authority,05/07/2014,OTHER EMPLOYEE EXPENSES,23126,FUSION,EMPLOYEES EXPENSES,100730467,47.99,
United Kingdom Atomic energy Authority,United Kingdom Atomic energy Authority,05/07/2014,PROFESSIONAL SUBSCRIPTION,23127,FUSION,EMPLOYEES EXPENSES,100730466,158,
United Kingdom Atomic energy Authority,United Kingdom Atomic energy Authority,25/07/2014,SUBSISTENCE,23131,FUSION,EMPLOYEES EXPENSES,100732871,4.8,
United Kingdom Atomic energy Authority,United Kingdom Atomic energy Authority,25/07/2014,SUBSISTENCE,23131,FUSION,EMPLOYEES EXPENSES,100732871,10.42,
United Kingdom Atomic energy Authority,United Kingdom Atomic energy Authority,25/07/2014,MILEAGE ALLOWANCE,23131,FUSION,EMPLOYEES EXPENSES,100732867,43.65,
United Kingdom Atomic energy Authority,United Kingdom Atomic energy Authority,05/07/2014,SUBSISTENCE,23150,FUSION,EMPLOYEES EXPENSES,100730463,5,
United Kingdom Atomic energy Authority,United Kingdom Atomic energy Authority,05/07/2014,SUBSISTENCE,23150,FUSION,EMPLOYEES EXPENSES,100730463,79.17,
United Kingdom Atomic energy Authority,United Kingdom Atomic energy Authority,12/07/2014,SUBSISTENCE,23150,FUSION,EMPLOYEES EXPENSES,100730559,2.99,
United Kingdom Atomic energy Authority,United Kingdom Atomic energy Authority,12/07/2014,SUBSISTENCE,23150,FUSION,EMPLOYEES EXPENSES,100730571,9.66,
United Kingdom Atomic energy Authority,United Kingdom Atomic energy Authority,05/07/2014,ROAD TRAVEL,23150,FUSION,EMPLOYEES EXPENSES,100730463,9.17,
United Kingdom Atomic energy Authority,United Kingdom Atomic energy Authority,12/07/2014,ROAD TRAVEL,23150,FUSION,EMPLOYEES EXPENSES,100730559,53.17,
United Kingdom Atomic energy Authority,United Kingdom Atomic energy Authority,12/07/2014,ROAD TRAVEL,23150,FUSION,EMPLOYEES EXPENSES,100730571,55.52,
United Kingdom Atomic energy Authority,United Kingdom Atomic energy Authority,12/07/2014,OTHER EMPLOYEE EXPENSES,23150,FUSION,EMPLOYEES EXPENSES,100730559,26.62,
United Kingdom Atomic energy Authority,United Kingdom Atomic energy Authority,05/07/2014,SUBSISTENCE,23151,FUSION,EMPLOYEES EXPENSES,100730469,5,
United Kingdom Atomic energy Authority,United Kingdom Atomic energy Authority,05/07/2014,SUBSISTENCE,23151,FUSION,EMPLOYEES EXPENSES,100730469,94.04,
United Kingdom Atomic energy Authority,United Kingdom Atomic energy Authority,10/07/2014,SUBSISTENCE,23151,FUSION,EMPLOYEES EXPENSES,100730518,5,
United Kingdom Atomic energy Authority,United Kingdom Atomic energy Authority,10/07/2014,SUBSISTENCE,23151,FUSION,EMPLOYEES EXPENSES,100730518,104.11,
United Kingdom Atomic energy Authority,United Kingdom Atomic energy Authority,24/07/2014,SUBSISTENCE,23151,FUSION,EMPLOYEES EXPENSES,100730772,10,
United Kingdom Atomic energy Authority,United Kingdom Atomic energy Authority,24/07/2014,SUBSISTENCE,23151,FUSION,EMPLOYEES EXPENSES,100730772,196.08,
United Kingdom Atomic energy Authority,United Kingdom Atomic energy Authority,03/07/2014,ROAD TRAVEL,23151,FUSION,EMPLOYEES EXPENSES,100730364,15.98,
United Kingdom Atomic energy Authority,United Kingdom Atomic energy Authority,10/07/2014,ROAD TRAVEL,23151,FUSION,EMPLOYEES EXPENSES,100730518,55.92,
United Kingdom Atomic energy Authority,United Kingdom Atomic energy Authority,24/07/2014,ROAD TRAVEL,23151,FUSION,EMPLOYEES EXPENSES,100730772,5,
United Kingdom Atomic energy Authority,United Kingdom Atomic energy Authority,24/07/2014,ROAD TRAVEL,23151,FUSION,EMPLOYEES EXPENSES,100730772,82.08,
United Kingdom Atomic energy Authority,United Kingdom Atomic energy Authority,25/07/2014,CAR HIRE,23152,FUSION,EMPLOYEES EXPENSES,100732874,249.44,
United Kingdom Atomic energy Authority,United Kingdom Atomic energy Authority,25/07/2014,TAXIS,23152,FUSION,EMPLOYEES EXPENSES,100732874,32.72,
United Kingdom Atomic energy Authority,United Kingdom Atomic energy Authority,24/07/2014,SUBSISTENCE,23152,FUSION,EMPLOYEES EXPENSES,100730758,173.55,
United Kingdom Atomic energy Authority,United Kingdom Atomic energy Authority,24/07/2014,SUBSISTENCE,23152,FUSION,EMPLOYEES EXPENSES,100730758,1.25,
United Kingdom Atomic energy Authority,United Kingdom Atomic energy Authority,25/07/2014,SUBSISTENCE,23152,FUSION,EMPLOYEES EXPENSES,100732874,209.96,
United Kingdom Atomic energy Authority,United Kingdom Atomic energy Authority,25/07/2014,ROAD TRAVEL,23152,FUSION,EMPLOYEES EXPENSES,100732874,69.13,
United Kingdom Atomic energy Authority,United Kingdom Atomic energy Authority,05/07/2014,TAXIS,23153,FUSION,EMPLOYEES EXPENSES,100730464,13.5,
United Kingdom Atomic energy Authority,United Kingdom Atomic energy Authority,05/07/2014,SUBSISTENCE,23153,FUSION,EMPLOYEES EXPENSES,100730464,5,
United Kingdom Atomic energy Authority,United Kingdom Atomic energy Authority,05/07/2014,SUBSISTENCE,23153,FUSION,EMPLOYEES EXPENSES,100730464,124.83,
United Kingdom Atomic energy Authority,United Kingdom Atomic energy Authority,24/07/2014,SUBSISTENCE,23161,FUSION,EMPLOYEES EXPENSES,100730768,15,
United Kingdom Atomic energy Authority,United Kingdom Atomic energy Authority,18/07/2014,RAIL TRAVEL,23168,FUSION,EMPLOYEES EXPENSES,100730673,368,
United Kingdom Atomic energy Authority,United Kingdom Atomic energy Authority,18/07/2014,ROAD TRAVEL,23168,FUSION,EMPLOYEES EXPENSES,100730673,55.5,
United Kingdom Atomic energy Authority,United Kingdom Atomic energy Authority,03/07/2014,ROAD TRAVEL,23621,FUSION,EMPLOYEES EXPENSES,100730362,31.38,
United Kingdom Atomic energy Authority,United Kingdom Atomic energy Authority,24/07/2014,SUBSISTENCE,24501,FUSION,EMPLOYEES EXPENSES,100730760,14.86,
United Kingdom Atomic energy Authority,United Kingdom Atomic energy Authority,24/07/2014,SUBSISTENCE,24501,FUSION,EMPLOYEES EXPENSES,100730761,3.4,
United Kingdom Atomic energy Authority,United Kingdom Atomic energy Authority,24/07/2014,SUBSISTENCE,24501,FUSION,EMPLOYEES EXPENSES,100730761,6.67,
United Kingdom Atomic energy Authority,United Kingdom Atomic energy Authority,25/07/2014,SUBSISTENCE,24501,FUSION,EMPLOYEES EXPENSES,100732869,392.22,
United Kingdom Atomic energy Authority,United Kingdom Atomic energy Authority,25/07/2014,SUBSISTENCE,24501,FUSION,EMPLOYEES EXPENSES,100732878,471.85,
United Kingdom Atomic energy Authority,United Kingdom Atomic energy Authority,24/07/2014,MILEAGE ALLOWANCE,24501,FUSION,EMPLOYEES EXPENSES,100730760,68.4,
United Kingdom Atomic energy Authority,United Kingdom Atomic energy Authority,24/07/2014,MILEAGE ALLOWANCE,24501,FUSION,EMPLOYEES EXPENSES,100730761,60.3,
United Kingdom Atomic energy Authority,United Kingdom Atomic energy Authority,18/07/2014,SUBSISTENCE,25103,FUSION,EMPLOYEES EXPENSES,100730669,8.15,
United Kingdom Atomic energy Authority,United Kingdom Atomic energy Authority,18/07/2014,SUBSISTENCE,25103,FUSION,EMPLOYEES EXPENSES,100730669,4.54,
United Kingdom Atomic energy Authority,United Kingdom Atomic energy Authority,24/07/2014,SUBSISTENCE,25103,FUSION,EMPLOYEES EXPENSES,100730759,5.95,
United Kingdom Atomic energy Authority,United Kingdom Atomic energy Authority,24/07/2014,SUBSISTENCE,25103,FUSION,EMPLOYEES EXPENSES,100730759,3.54,
United Kingdom Atomic energy Authority,United Kingdom Atomic energy Authority,18/07/2014,ROAD TRAVEL,25103,FUSION,EMPLOYEES EXPENSES,100730669,42.82,
United Kingdom Atomic energy Authority,United Kingdom Atomic energy Authority,24/07/2014,ROAD TRAVEL,25103,FUSION,EMPLOYEES EXPENSES,100730759,29.43,
United Kingdom Atomic energy Authority,United Kingdom Atomic energy Authority,25/07/2014,TAXIS,25204,FUSION,EMPLOYEES EXPENSES,100732876,37.34,
United Kingdom Atomic energy Authority,United Kingdom Atomic energy Authority,03/07/2014,SUBSISTENCE,25204,FUSION,EMPLOYEES EXPENSES,100730360,10.2,
United Kingdom Atomic energy Authority,United Kingdom Atomic energy Authority,25/07/2014,SUBSISTENCE,25204,FUSION,EMPLOYEES EXPENSES,100732876,672.14,
United Kingdom Atomic energy Authority,United Kingdom Atomic energy Authority,25/07/2014,SUBSISTENCE,25204,FUSION,EMPLOYEES EXPENSES,100732877,343.25,
United Kingdom Atomic energy Authority,United Kingdom Atomic energy Authority,03/07/2014,MILEAGE ALLOWANCE,25204,FUSION,EMPLOYEES EXPENSES,100730360,144.96,
United Kingdom Atomic energy Authority,United Kingdom Atomic energy Authority,05/07/2014,MILEAGE ALLOWANCE,25204,FUSION,EMPLOYEES EXPENSES,100730461,137.7,
United Kingdom Atomic energy Authority,United Kingdom Atomic energy Authority,25/07/2014,ROAD TRAVEL,25204,FUSION,EMPLOYEES EXPENSES,100732877,23,
United Kingdom Atomic energy Authority,United Kingdom Atomic energy Authority,25/07/2014,ROAD TRAVEL,25204,FUSION,EMPLOYEES EXPENSES,100732877,6.49,
United Kingdom Atomic energy Authority,United Kingdom Atomic energy Authority,03/07/2014,SUBSISTENCE,25205,FUSION,EMPLOYEES EXPENSES,100730367,365.83,
United Kingdom Atomic energy Authority,United Kingdom Atomic energy Authority,03/07/2014,SUBSISTENCE,25205,FUSION,EMPLOYEES EXPENSES,100730367,9.04,
United Kingdom Atomic energy Authority,United Kingdom Atomic energy Authority,05/07/2014,SUBSISTENCE,25205,FUSION,EMPLOYEES EXPENSES,100730474,414.34,
United Kingdom Atomic energy Authority,United Kingdom Atomic energy Authority,05/07/2014,SUBSISTENCE,25205,FUSION,EMPLOYEES EXPENSES,100730474,6.33,
United Kingdom Atomic energy Authority,United Kingdom Atomic energy Authority,24/07/2014,SUBSISTENCE,25205,FUSION,EMPLOYEES EXPENSES,100730769,383.62,
United Kingdom Atomic energy Authority,United Kingdom Atomic energy Authority,03/07/2014,RAIL TRAVEL,25205,FUSION,EMPLOYEES EXPENSES,100730367,15.9,
United Kingdom Atomic energy Authority,United Kingdom Atomic energy Authority,03/07/2014,RAIL TRAVEL,25205,FUSION,EMPLOYEES EXPENSES,100730367,11.3,
United Kingdom Atomic energy Authority,United Kingdom Atomic energy Authority,05/07/2014,RAIL TRAVEL,25205,FUSION,EMPLOYEES EXPENSES,100730474,6.56,
United Kingdom Atomic energy Authority,United Kingdom Atomic energy Authority,05/07/2014,ROAD TRAVEL,25205,FUSION,EMPLOYEES EXPENSES,100730474,35.2,
United Kingdom Atomic energy Authority,United Kingdom Atomic energy Authority,18/07/2014,TAXIS,25402,FUSION,EMPLOYEES EXPENSES,100730666,44.84,
United Kingdom Atomic energy Authority,United Kingdom Atomic energy Authority,03/07/2014,SUBSISTENCE,25402,FUSION,EMPLOYEES EXPENSES,100730357,1424.82,
United Kingdom Atomic energy Authority,United Kingdom Atomic energy Authority,18/07/2014,SUBSISTENCE,25402,FUSION,EMPLOYEES EXPENSES,100730666,386.72,
United Kingdom Atomic energy Authority,United Kingdom Atomic energy Authority,18/07/2014,SUBSISTENCE,25402,FUSION,EMPLOYEES EXPENSES,100730686,5,
United Kingdom Atomic energy Authority,United Kingdom Atomic energy Authority,18/07/2014,SUBSISTENCE,25402,FUSION,EMPLOYEES EXPENSES,100730686,55.4,
United Kingdom Atomic energy Authority,United Kingdom Atomic energy Authority,24/07/2014,SUBSISTENCE,25402,FUSION,EMPLOYEES EXPENSES,100730771,333.31,
United Kingdom Atomic energy Authority,United Kingdom Atomic energy Authority,18/07/2014,AIR TRAVEL,25402,FUSION,EMPLOYEES EXPENSES,100730666,182.48,
United Kingdom Atomic energy Authority,United Kingdom Atomic energy Authority,18/07/2014,AIR TRAVEL,25402,FUSION,EMPLOYEES EXPENSES,100730666,28.02,
United Kingdom Atomic energy Authority,United Kingdom Atomic energy Authority,18/07/2014,RAIL TRAVEL,25402,FUSION,EMPLOYEES EXPENSES,100730666,40.1,
United Kingdom Atomic energy Authority,United Kingdom Atomic energy Authority,03/07/2014,ROAD TRAVEL,25402,FUSION,EMPLOYEES EXPENSES,100730357,100.97,
United Kingdom Atomic energy Authority,United Kingdom Atomic energy Authority,18/07/2014,ROAD TRAVEL,25402,FUSION,EMPLOYEES EXPENSES,100730666,28,
United Kingdom Atomic energy Authority,United Kingdom Atomic energy Authority,24/07/2014,ROAD TRAVEL,25402,FUSION,EMPLOYEES EXPENSES,100730771,40.1,
United Kingdom Atomic energy Authority,United Kingdom Atomic energy Authority,24/07/2014,ROAD TRAVEL,25402,FUSION,EMPLOYEES EXPENSES,100730771,3.57,
United Kingdom Atomic energy Authority,United Kingdom Atomic energy Authority,03/07/2014,OTHER EMPLOYEE EXPENSES,25402,FUSION,EMPLOYEES EXPENSES,100730357,1.32,
United Kingdom Atomic energy Authority,United Kingdom Atomic energy Authority,18/07/2014,OTHER EMPLOYEE EXPENSES,25402,FUSION,EMPLOYEES EXPENSES,100730666,30,
United Kingdom Atomic energy Authority,United Kingdom Atomic energy Authority,18/07/2014,OTHER EMPLOYEE EXPENSES,25402,FUSION,EMPLOYEES EXPENSES,100730686,2.5,
United Kingdom Atomic energy Authority,United Kingdom Atomic energy Authority,03/07/2014,TAXIS,25403,FUSION,EMPLOYEES EXPENSES,100730369,47.9,
United Kingdom Atomic energy Authority,United Kingdom Atomic energy Authority,05/07/2014,TAXIS,25403,FUSION,EMPLOYEES EXPENSES,100730459,96.31,
United Kingdom Atomic energy Authority,United Kingdom Atomic energy Authority,05/07/2014,TAXIS,25403,FUSION,EMPLOYEES EXPENSES,100730473,16.4,
United Kingdom Atomic energy Authority,United Kingdom Atomic energy Authority,03/07/2014,SUBSISTENCE,25403,FUSION,EMPLOYEES EXPENSES,100730369,318.45,
United Kingdom Atomic energy Authority,United Kingdom Atomic energy Authority,05/07/2014,SUBSISTENCE,25403,FUSION,EMPLOYEES EXPENSES,100730459,428.27,
United Kingdom Atomic energy Authority,United Kingdom Atomic energy Authority,05/07/2014,SUBSISTENCE,25403,FUSION,EMPLOYEES EXPENSES,100730473,84.9,
United Kingdom Atomic energy Authority,United Kingdom Atomic energy Authority,18/07/2014,SUBSISTENCE,25403,FUSION,EMPLOYEES EXPENSES,100730677,389.17,
United Kingdom Atomic energy Authority,United Kingdom Atomic energy Authority,24/07/2014,SUBSISTENCE,25403,FUSION,EMPLOYEES EXPENSES,100730767,384.51,
United Kingdom Atomic energy Authority,United Kingdom Atomic energy Authority,05/07/2014,MILEAGE ALLOWANCE,25403,FUSION,EMPLOYEES EXPENSES,100730459,54,
United Kingdom Atomic energy Authority,United Kingdom Atomic energy Authority,05/07/2014,ROAD TRAVEL,25403,FUSION,EMPLOYEES EXPENSES,100730459,119.9,
United Kingdom Atomic energy Authority,United Kingdom Atomic energy Authority,03/07/2014,SUBSISTENCE,25500,FUSION,EMPLOYEES EXPENSES,100730359,3.33,
United Kingdom Atomic energy Authority,United Kingdom Atomic energy Authority,10/07/2014,SUBSISTENCE,25500,FUSION,EMPLOYEES EXPENSES,100730525,9.8,
United Kingdom Atomic energy Authority,United Kingdom Atomic energy Authority,10/07/2014,SUBSISTENCE,25500,FUSION,EMPLOYEES EXPENSES,100730525,20.1,
United Kingdom Atomic energy Authority,United Kingdom Atomic energy Authority,12/07/2014,SUBSISTENCE,25500,FUSION,EMPLOYEES EXPENSES,100730570,22.73,
United Kingdom Atomic energy Authority,United Kingdom Atomic energy Authority,12/07/2014,SUBSISTENCE,25500,FUSION,EMPLOYEES EXPENSES,100730573,9.5,
United Kingdom Atomic energy Authority,United Kingdom Atomic energy Authority,12/07/2014,SUBSISTENCE,25500,FUSION,EMPLOYEES EXPENSES,100730573,17.6,
United Kingdom Atomic energy Authority,United Kingdom Atomic energy Authority,18/07/2014,SUBSISTENCE,25500,FUSION,EMPLOYEES EXPENSES,100730656,65.58,
United Kingdom Atomic energy Authority,United Kingdom Atomic energy Authority,18/07/2014,SUBSISTENCE,25500,FUSION,EMPLOYEES EXPENSES,100730681,11,
United Kingdom Atomic energy Authority,United Kingdom Atomic energy Authority,18/07/2014,SUBSISTENCE,25500,FUSION,EMPLOYEES EXPENSES,100730681,8.58,
United Kingdom Atomic energy Authority,United Kingdom Atomic energy Authority,18/07/2014,SUBSISTENCE,25500,FUSION,EMPLOYEES EXPENSES,100730694,4,
United Kingdom Atomic energy Authority,United Kingdom Atomic energy Authority,18/07/2014,SUBSISTENCE,25500,FUSION,EMPLOYEES EXPENSES,100730694,18.56,
United Kingdom Atomic energy Authority,United Kingdom Atomic energy Authority,03/07/2014,MILEAGE ALLOWANCE,25500,FUSION,EMPLOYEES EXPENSES,100730359,14.4,
United Kingdom Atomic energy Authority,United Kingdom Atomic energy Authority,03/07/2014,ROAD TRAVEL,25500,FUSION,EMPLOYEES EXPENSES,100730359,1.5,
United Kingdom Atomic energy Authority,United Kingdom Atomic energy Authority,10/07/2014,ROAD TRAVEL,25500,FUSION,EMPLOYEES EXPENSES,100730525,20.06,
United Kingdom Atomic energy Authority,United Kingdom Atomic energy Authority,12/07/2014,ROAD TRAVEL,25500,FUSION,EMPLOYEES EXPENSES,100730573,26.67,
United Kingdom Atomic energy Authority,United Kingdom Atomic energy Authority,05/07/2014,TAXIS,25501,FUSION,EMPLOYEES EXPENSES,100730456,45.32,
United Kingdom Atomic energy Authority,United Kingdom Atomic energy Authority,03/07/2014,SUBSISTENCE,25501,FUSION,EMPLOYEES EXPENSES,100730378,488.93,
United Kingdom Atomic energy Authority,United Kingdom Atomic energy Authority,03/07/2014,SUBSISTENCE,25501,FUSION,EMPLOYEES EXPENSES,100730378,3.79,
United Kingdom Atomic energy Authority,United Kingdom Atomic energy Authority,05/07/2014,SUBSISTENCE,25501,FUSION,EMPLOYEES EXPENSES,100730456,675.69,
United Kingdom Atomic energy Authority,United Kingdom Atomic energy Authority,10/07/2014,SUBSISTENCE,25501,FUSION,EMPLOYEES EXPENSES,100730519,5,
United Kingdom Atomic energy Authority,United Kingdom Atomic energy Authority,10/07/2014,SUBSISTENCE,25501,FUSION,EMPLOYEES EXPENSES,100730519,145.83,
United Kingdom Atomic energy Authority,United Kingdom Atomic energy Authority,10/07/2014,SUBSISTENCE,25501,FUSION,EMPLOYEES EXPENSES,100730526,22.5,
United Kingdom Atomic energy Authority,United Kingdom Atomic energy Authority,10/07/2014,SUBSISTENCE,25501,FUSION,EMPLOYEES EXPENSES,100730526,65.04,
United Kingdom Atomic energy Authority,United Kingdom Atomic energy Authority,18/07/2014,SUBSISTENCE,25501,FUSION,EMPLOYEES EXPENSES,100730688,58.95,
United Kingdom Atomic energy Authority,United Kingdom Atomic energy Authority,18/07/2014,SUBSISTENCE,25501,FUSION,EMPLOYEES EXPENSES,100730688,121.25,
United Kingdom Atomic energy Authority,United Kingdom Atomic energy Authority,18/07/2014,SUBSISTENCE,25501,FUSION,EMPLOYEES EXPENSES,100730692,33.49,
United Kingdom Atomic energy Authority,United Kingdom Atomic energy Authority,18/07/2014,SUBSISTENCE,25501,FUSION,EMPLOYEES EXPENSES,100730692,142.46,
United Kingdom Atomic energy Authority,United Kingdom Atomic energy Authority,25/07/2014,SUBSISTENCE,25501,FUSION,EMPLOYEES EXPENSES,100732880,4.5,
United Kingdom Atomic energy Authority,United Kingdom Atomic energy Authority,25/07/2014,SUBSISTENCE,25501,FUSION,EMPLOYEES EXPENSES,100732880,15.07,
United Kingdom Atomic energy Authority,United Kingdom Atomic energy Authority,10/07/2014,MILEAGE ALLOWANCE,25501,FUSION,EMPLOYEES EXPENSES,100730519,88.2,
United Kingdom Atomic energy Authority,United Kingdom Atomic energy Authority,12/07/2014,MILEAGE ALLOWANCE,25501,FUSION,EMPLOYEES EXPENSES,100730565,80,
United Kingdom Atomic energy Authority,United Kingdom Atomic energy Authority,03/07/2014,RAIL TRAVEL,25501,FUSION,EMPLOYEES EXPENSES,100730378,8.9,
United Kingdom Atomic energy Authority,United Kingdom Atomic energy Authority,03/07/2014,RAIL TRAVEL,25501,FUSION,EMPLOYEES EXPENSES,100730378,14.08,
United Kingdom Atomic energy Authority,United Kingdom Atomic energy Authority,18/07/2014,RAIL TRAVEL,25501,FUSION,EMPLOYEES EXPENSES,100730658,30.4,
United Kingdom Atomic energy Authority,United Kingdom Atomic energy Authority,18/07/2014,RAIL TRAVEL,25501,FUSION,EMPLOYEES EXPENSES,100730687,3.8,
United Kingdom Atomic energy Authority,United Kingdom Atomic energy Authority,18/07/2014,RAIL TRAVEL,25501,FUSION,EMPLOYEES EXPENSES,100730693,3.3,
United Kingdom Atomic energy Authority,United Kingdom Atomic energy Authority,25/07/2014,RAIL TRAVEL,25501,FUSION,EMPLOYEES EXPENSES,100732879,15.9,
United Kingdom Atomic energy Authority,United Kingdom Atomic energy Authority,03/07/2014,ROAD TRAVEL,25501,FUSION,EMPLOYEES EXPENSES,100730378,3.2,
United Kingdom Atomic energy Authority,United Kingdom Atomic energy Authority,05/07/2014,ROAD TRAVEL,25501,FUSION,EMPLOYEES EXPENSES,100730456,29,
United Kingdom Atomic energy Authority,United Kingdom Atomic energy Authority,10/07/2014,ROAD TRAVEL,25501,FUSION,EMPLOYEES EXPENSES,100730513,5.42,
United Kingdom Atomic energy Authority,United Kingdom Atomic energy Authority,10/07/2014,ROAD TRAVEL,25501,FUSION,EMPLOYEES EXPENSES,100730514,5.17,
United Kingdom Atomic energy Authority,United Kingdom Atomic energy Authority,18/07/2014,ROAD TRAVEL,25501,FUSION,EMPLOYEES EXPENSES,100730658,3.8,
United Kingdom Atomic energy Authority,United Kingdom Atomic energy Authority,18/07/2014,ROAD TRAVEL,25501,FUSION,EMPLOYEES EXPENSES,100730670,16.73,
United Kingdom Atomic energy Authority,United Kingdom Atomic energy Authority,18/07/2014,ROAD TRAVEL,25501,FUSION,EMPLOYEES EXPENSES,100730688,53.81,
United Kingdom Atomic energy Authority,United Kingdom Atomic energy Authority,18/07/2014,ROAD TRAVEL,25501,FUSION,EMPLOYEES EXPENSES,100730688,12.08,
United Kingdom Atomic energy Authority,United Kingdom Atomic energy Authority,05/07/2014,OTHER EMPLOYEE EXPENSES,25501,FUSION,EMPLOYEES EXPENSES,100730456,15.17,
United Kingdom Atomic energy Authority,United Kingdom Atomic energy Authority,05/07/2014,OTHER EMPLOYEE EXPENSES,25501,FUSION,EMPLOYEES EXPENSES,100730457,2.76,
United Kingdom Atomic energy Authority,United Kingdom Atomic energy Authority,18/07/2014,OTHER EMPLOYEE EXPENSES,25501,FUSION,EMPLOYEES EXPENSES,100730674,19.37,
United Kingdom Atomic energy Authority,United Kingdom Atomic energy Authority,18/07/2014,OTHER EMPLOYEE EXPENSES,25501,FUSION,EMPLOYEES EXPENSES,100730688,3,
United Kingdom Atomic energy Authority,United Kingdom Atomic energy Authority,18/07/2014,OTHER EMPLOYEE EXPENSES,25501,FUSION,EMPLOYEES EXPENSES,100730692,3,
United Kingdom Atomic energy Authority,United Kingdom Atomic energy Authority,03/07/2014,PROFESSIONAL SUBSCRIPTION,25501,FUSION,EMPLOYEES EXPENSES,100730376,68,
United Kingdom Atomic energy Authority,United Kingdom Atomic energy Authority,05/07/2014,PROFESSIONAL SUBSCRIPTION,25501,FUSION,EMPLOYEES EXPENSES,100730457,92.36,
United Kingdom Atomic energy Authority,United Kingdom Atomic energy Authority,25/07/2014,CAR HIRE,25502,FUSION,EMPLOYEES EXPENSES,100732862,386.89,
United Kingdom Atomic energy Authority,United Kingdom Atomic energy Authority,25/07/2014,SUBSISTENCE,25502,FUSION,EMPLOYEES EXPENSES,100732862,392.65,
United Kingdom Atomic energy Authority,United Kingdom Atomic energy Authority,25/07/2014,SUBSISTENCE,25502,FUSION,EMPLOYEES EXPENSES,100732862,3.5,
United Kingdom Atomic energy Authority,United Kingdom Atomic energy Authority,25/07/2014,MILEAGE ALLOWANCE,25502,FUSION,EMPLOYEES EXPENSES,100732862,55.8,
United Kingdom Atomic energy Authority,United Kingdom Atomic energy Authority,25/07/2014,ROAD TRAVEL,25502,FUSION,EMPLOYEES EXPENSES,100732862,29.24,
United Kingdom Atomic energy Authority,United Kingdom Atomic energy Authority,25/07/2014,ROAD TRAVEL,25502,FUSION,EMPLOYEES EXPENSES,100732862,70.83,
United Kingdom Atomic energy Authority,United Kingdom Atomic energy Authority,25/07/2014,OTHER EMPLOYEE EXPENSES,25502,FUSION,EMPLOYEES EXPENSES,100732862,78.43,
United Kingdom Atomic energy Authority,United Kingdom Atomic energy Authority,05/07/2014,TAXIS,25603,FUSION,EMPLOYEES EXPENSES,100730455,89.54,
United Kingdom Atomic energy Authority,United Kingdom Atomic energy Authority,05/07/2014,SUBSISTENCE,25603,FUSION,EMPLOYEES EXPENSES,100730455,335.76,
United Kingdom Atomic energy Authority,United Kingdom Atomic energy Authority,05/07/2014,SUBSISTENCE,25603,FUSION,EMPLOYEES EXPENSES,100730455,3.16,
United Kingdom Atomic energy Authority,United Kingdom Atomic energy Authority,05/07/2014,AIR TRAVEL,25603,FUSION,EMPLOYEES EXPENSES,100730455,222.19,
United Kingdom Atomic energy Authority,United Kingdom Atomic energy Authority,05/07/2014,ROAD TRAVEL,25603,FUSION,EMPLOYEES EXPENSES,100730455,11.86,
United Kingdom Atomic energy Authority,United Kingdom Atomic energy Authority,05/07/2014,OTHER EMPLOYEE EXPENSES,25603,FUSION,EMPLOYEES EXPENSES,100730455,8.53,
United Kingdom Atomic energy Authority,United Kingdom Atomic energy Authority,10/07/2014,CAR HIRE,25700,FUSION,EMPLOYEES EXPENSES,100730516,376.43,
United Kingdom Atomic energy Authority,United Kingdom Atomic energy Authority,03/07/2014,TAXIS,25700,FUSION,EMPLOYEES EXPENSES,100730356,19.89,
United Kingdom Atomic energy Authority,United Kingdom Atomic energy Authority,03/07/2014,TAXIS,25700,FUSION,EMPLOYEES EXPENSES,100730361,19.16,
United Kingdom Atomic energy Authority,United Kingdom Atomic energy Authority,03/07/2014,TAXIS,25700,FUSION,EMPLOYEES EXPENSES,100730365,30,
United Kingdom Atomic energy Authority,United Kingdom Atomic energy Authority,03/07/2014,TAXIS,25700,FUSION,EMPLOYEES EXPENSES,100730365,21.55,
United Kingdom Atomic energy Authority,United Kingdom Atomic energy Authority,10/07/2014,TAXIS,25700,FUSION,EMPLOYEES EXPENSES,100730517,48.98,
United Kingdom Atomic energy Authority,United Kingdom Atomic energy Authority,18/07/2014,TAXIS,25700,FUSION,EMPLOYEES EXPENSES,100730668,63.22,
United Kingdom Atomic energy Authority,United Kingdom Atomic energy Authority,18/07/2014,TAXIS,25700,FUSION,EMPLOYEES EXPENSES,100730671,20.78,
United Kingdom Atomic energy Authority,United Kingdom Atomic energy Authority,18/07/2014,TAXIS,25700,FUSION,EMPLOYEES EXPENSES,100730689,19.22,
United Kingdom Atomic energy Authority,United Kingdom Atomic energy Authority,25/07/2014,TAXIS,25700,FUSION,EMPLOYEES EXPENSES,100732868,28.04,
United Kingdom Atomic energy Authority,United Kingdom Atomic energy Authority,03/07/2014,SUBSISTENCE,25700,FUSION,EMPLOYEES EXPENSES,100730352,270.7,
United Kingdom Atomic energy Authority,United Kingdom Atomic energy Authority,03/07/2014,SUBSISTENCE,25700,FUSION,EMPLOYEES EXPENSES,100730352,11.42,
United Kingdom Atomic energy Authority,United Kingdom Atomic energy Authority,03/07/2014,SUBSISTENCE,25700,FUSION,EMPLOYEES EXPENSES,100730356,640.43,
United Kingdom Atomic energy Authority,United Kingdom Atomic energy Authority,03/07/2014,SUBSISTENCE,25700,FUSION,EMPLOYEES EXPENSES,100730356,8.7,
United Kingdom Atomic energy Authority,United Kingdom Atomic energy Authority,03/07/2014,SUBSISTENCE,25700,FUSION,EMPLOYEES EXPENSES,100730358,507.43,
United Kingdom Atomic energy Authority,United Kingdom Atomic energy Authority,03/07/2014,SUBSISTENCE,25700,FUSION,EMPLOYEES EXPENSES,100730361,504.74,
United Kingdom Atomic energy Authority,United Kingdom Atomic energy Authority,03/07/2014,SUBSISTENCE,25700,FUSION,EMPLOYEES EXPENSES,100730361,4.17,
United Kingdom Atomic energy Authority,United Kingdom Atomic energy Authority,03/07/2014,SUBSISTENCE,25700,FUSION,EMPLOYEES EXPENSES,100730365,3.87,
United Kingdom Atomic energy Authority,United Kingdom Atomic energy Authority,03/07/2014,SUBSISTENCE,25700,FUSION,EMPLOYEES EXPENSES,100730366,574.25,
United Kingdom Atomic energy Authority,United Kingdom Atomic energy Authority,03/07/2014,SUBSISTENCE,25700,FUSION,EMPLOYEES EXPENSES,100730366,4.82,
United Kingdom Atomic energy Authority,United Kingdom Atomic energy Authority,05/07/2014,SUBSISTENCE,25700,FUSION,EMPLOYEES EXPENSES,100730465,348.55,
United Kingdom Atomic energy Authority,United Kingdom Atomic energy Authority,10/07/2014,SUBSISTENCE,25700,FUSION,EMPLOYEES EXPENSES,100730516,55.85,
United Kingdom Atomic energy Authority,United Kingdom Atomic energy Authority,10/07/2014,SUBSISTENCE,25700,FUSION,EMPLOYEES EXPENSES,100730516,1094.49,
United Kingdom Atomic energy Authority,United Kingdom Atomic energy Authority,10/07/2014,SUBSISTENCE,25700,FUSION,EMPLOYEES EXPENSES,100730516,12.5,
United Kingdom Atomic energy Authority,United Kingdom Atomic energy Authority,10/07/2014,SUBSISTENCE,25700,FUSION,EMPLOYEES EXPENSES,100730517,342.81,
United Kingdom Atomic energy Authority,United Kingdom Atomic energy Authority,12/07/2014,SUBSISTENCE,25700,FUSION,EMPLOYEES EXPENSES,100730561,292.44,
United Kingdom Atomic energy Authority,United Kingdom Atomic energy Authority,12/07/2014,SUBSISTENCE,25700,FUSION,EMPLOYEES EXPENSES,100730561,3.16,
United Kingdom Atomic energy Authority,United Kingdom Atomic energy Authority,18/07/2014,SUBSISTENCE,25700,FUSION,EMPLOYEES EXPENSES,100730668,471.72,
United Kingdom Atomic energy Authority,United Kingdom Atomic energy Authority,18/07/2014,SUBSISTENCE,25700,FUSION,EMPLOYEES EXPENSES,100730668,2.58,
United Kingdom Atomic energy Authority,United Kingdom Atomic energy Authority,18/07/2014,SUBSISTENCE,25700,FUSION,EMPLOYEES EXPENSES,100730671,577.32,
United Kingdom Atomic energy Authority,United Kingdom Atomic energy Authority,18/07/2014,SUBSISTENCE,25700,FUSION,EMPLOYEES EXPENSES,100730671,5.04,
United Kingdom Atomic energy Authority,United Kingdom Atomic energy Authority,18/07/2014,SUBSISTENCE,25700,FUSION,EMPLOYEES EXPENSES,100730689,168.85,
United Kingdom Atomic energy Authority,United Kingdom Atomic energy Authority,24/07/2014,SUBSISTENCE,25700,FUSION,EMPLOYEES EXPENSES,100730757,580.81,
United Kingdom Atomic energy Authority,United Kingdom Atomic energy Authority,24/07/2014,SUBSISTENCE,25700,FUSION,EMPLOYEES EXPENSES,100730757,8.33,
United Kingdom Atomic energy Authority,United Kingdom Atomic energy Authority,25/07/2014,SUBSISTENCE,25700,FUSION,EMPLOYEES EXPENSES,100732868,527.45,
United Kingdom Atomic energy Authority,United Kingdom Atomic energy Authority,25/07/2014,SUBSISTENCE,25700,FUSION,EMPLOYEES EXPENSES,100732868,2.46,
United Kingdom Atomic energy Authority,United Kingdom Atomic energy Authority,03/07/2014,MILEAGE ALLOWANCE,25700,FUSION,EMPLOYEES EXPENSES,100730352,55.8,
United Kingdom Atomic energy Authority,United Kingdom Atomic energy Authority,03/07/2014,AIR TRAVEL,25700,FUSION,EMPLOYEES EXPENSES,100730352,64.98,
United Kingdom Atomic energy Authority,United Kingdom Atomic energy Authority,10/07/2014,AIR TRAVEL,25700,FUSION,EMPLOYEES EXPENSES,100730516,769.79,
United Kingdom Atomic energy Authority,United Kingdom Atomic energy Authority,03/07/2014,RAIL TRAVEL,25700,FUSION,EMPLOYEES EXPENSES,100730352,15.63,
United Kingdom Atomic energy Authority,United Kingdom Atomic energy Authority,12/07/2014,RAIL TRAVEL,25700,FUSION,EMPLOYEES EXPENSES,100730561,15.22,
United Kingdom Atomic energy Authority,United Kingdom Atomic energy Authority,18/07/2014,RAIL TRAVEL,25700,FUSION,EMPLOYEES EXPENSES,100730668,9.87,
United Kingdom Atomic energy Authority,United Kingdom Atomic energy Authority,18/07/2014,RAIL TRAVEL,25700,FUSION,EMPLOYEES EXPENSES,100730689,8.32,
United Kingdom Atomic energy Authority,United Kingdom Atomic energy Authority,25/07/2014,RAIL TRAVEL,25700,FUSION,EMPLOYEES EXPENSES,100732868,9.93,
United Kingdom Atomic energy Authority,United Kingdom Atomic energy Authority,03/07/2014,ROAD TRAVEL,25700,FUSION,EMPLOYEES EXPENSES,100730352,24.99,
United Kingdom Atomic energy Authority,United Kingdom Atomic energy Authority,03/07/2014,ROAD TRAVEL,25700,FUSION,EMPLOYEES EXPENSES,100730356,29,
United Kingdom Atomic energy Authority,United Kingdom Atomic energy Authority,03/07/2014,ROAD TRAVEL,25700,FUSION,EMPLOYEES EXPENSES,100730361,2.4,
United Kingdom Atomic energy Authority,United Kingdom Atomic energy Authority,03/07/2014,ROAD TRAVEL,25700,FUSION,EMPLOYEES EXPENSES,100730365,29,
United Kingdom Atomic energy Authority,United Kingdom Atomic energy Authority,03/07/2014,ROAD TRAVEL,25700,FUSION,EMPLOYEES EXPENSES,100730366,24,
United Kingdom Atomic energy Authority,United Kingdom Atomic energy Authority,05/07/2014,ROAD TRAVEL,25700,FUSION,EMPLOYEES EXPENSES,100730465,29,
United Kingdom Atomic energy Authority,United Kingdom Atomic energy Authority,05/07/2014,ROAD TRAVEL,25700,FUSION,EMPLOYEES EXPENSES,100730465,37.6,
United Kingdom Atomic energy Authority,United Kingdom Atomic energy Authority,10/07/2014,ROAD TRAVEL,25700,FUSION,EMPLOYEES EXPENSES,100730516,29,
United Kingdom Atomic energy Authority,United Kingdom Atomic energy Authority,18/07/2014,ROAD TRAVEL,25700,FUSION,EMPLOYEES EXPENSES,100730668,29,
United Kingdom Atomic energy Authority,United Kingdom Atomic energy Authority,18/07/2014,ROAD TRAVEL,25700,FUSION,EMPLOYEES EXPENSES,100730676,29,
United Kingdom Atomic energy Authority,United Kingdom Atomic energy Authority,18/07/2014,ROAD TRAVEL,25700,FUSION,EMPLOYEES EXPENSES,100730689,29,
United Kingdom Atomic energy Authority,United Kingdom Atomic energy Authority,18/07/2014,ROAD TRAVEL,25700,FUSION,EMPLOYEES EXPENSES,100730689,2.08,
United Kingdom Atomic energy Authority,United Kingdom Atomic energy Authority,03/07/2014,OTHER EMPLOYEE EXPENSES,25700,FUSION,EMPLOYEES EXPENSES,100730356,7,
United Kingdom Atomic energy Authority,United Kingdom Atomic energy Authority,03/07/2014,OTHER EMPLOYEE EXPENSES,25700,FUSION,EMPLOYEES EXPENSES,100730358,527.73,
United Kingdom Atomic energy Authority,United Kingdom Atomic energy Authority,10/07/2014,OTHER EMPLOYEE EXPENSES,25700,FUSION,EMPLOYEES EXPENSES,100730516,46.03,
United Kingdom Atomic energy Authority,United Kingdom Atomic energy Authority,10/07/2014,OTHER EMPLOYEE EXPENSES,25700,FUSION,EMPLOYEES EXPENSES,100730517,3,
United Kingdom Atomic energy Authority,United Kingdom Atomic energy Authority,18/07/2014,OTHER EMPLOYEE EXPENSES,25700,FUSION,EMPLOYEES EXPENSES,100730668,3.99,
United Kingdom Atomic energy Authority,United Kingdom Atomic energy Authority,18/07/2014,OTHER EMPLOYEE EXPENSES,25700,FUSION,EMPLOYEES EXPENSES,100730689,6,
United Kingdom Atomic energy Authority,United Kingdom Atomic energy Authority,24/07/2014,OTHER EMPLOYEE EXPENSES,25700,FUSION,EMPLOYEES EXPENSES,100730757,76.78,
United Kingdom Atomic energy Authority,United Kingdom Atomic energy Authority,12/07/2014,SUBSISTENCE,25704,FUSION,EMPLOYEES EXPENSES,100730562,3.37,
United Kingdom Atomic energy Authority,United Kingdom Atomic energy Authority,18/07/2014,SUBSISTENCE,25704,FUSION,EMPLOYEES EXPENSES,100730680,20.54,
United Kingdom Atomic energy Authority,United Kingdom Atomic energy Authority,18/07/2014,MILEAGE ALLOWANCE,25704,FUSION,EMPLOYEES EXPENSES,100730680,100.8,
United Kingdom Atomic energy Authority,United Kingdom Atomic energy Authority,12/07/2014,ROAD TRAVEL,25704,FUSION,EMPLOYEES EXPENSES,100730562,11.67,
United Kingdom Atomic energy Authority,United Kingdom Atomic energy Authority,03/07/2014,TAXIS,25821,FUSION,EMPLOYEES EXPENSES,100730368,28,
United Kingdom Atomic energy Authority,United Kingdom Atomic energy Authority,03/07/2014,SUBSISTENCE,25821,FUSION,EMPLOYEES EXPENSES,100730375,61.3,
United Kingdom Atomic energy Authority,United Kingdom Atomic energy Authority,03/07/2014,SUBSISTENCE,25821,FUSION,EMPLOYEES EXPENSES,100730375,37.24,
United Kingdom Atomic energy Authority,United Kingdom Atomic energy Authority,03/07/2014,MILEAGE ALLOWANCE,25821,FUSION,EMPLOYEES EXPENSES,100730375,54,
United Kingdom Atomic energy Authority,United Kingdom Atomic energy Authority,18/07/2014,MILEAGE ALLOWANCE,25821,FUSION,EMPLOYEES EXPENSES,100730657,59.4,
United Kingdom Atomic energy Authority,United Kingdom Atomic energy Authority,03/07/2014,RAIL TRAVEL,25821,FUSION,EMPLOYEES EXPENSES,100730375,20,
United Kingdom Atomic energy Authority,United Kingdom Atomic energy Authority,24/07/2014,PROFESSIONAL SUBSCRIPTION,25821,FUSION,EMPLOYEES EXPENSES,100730770,202.5,
United Kingdom Atomic energy Authority,United Kingdom Atomic energy Authority,25/07/2014,PROFESSIONAL SUBSCRIPTION,25821,FUSION,EMPLOYEES EXPENSES,100732873,115,
United Kingdom Atomic energy Authority,United Kingdom Atomic energy Authority,18/07/2014,TAXIS,25837,FUSION,EMPLOYEES EXPENSES,100730665,7.3,
United Kingdom Atomic energy Authority,United Kingdom Atomic energy Authority,18/07/2014,TAXIS,25837,FUSION,EMPLOYEES EXPENSES,100730667,33.32,
United Kingdom Atomic energy Authority,United Kingdom Atomic energy Authority,18/07/2014,SUBSISTENCE,25837,FUSION,EMPLOYEES EXPENSES,100730665,67.55,
United Kingdom Atomic energy Authority,United Kingdom Atomic energy Authority,18/07/2014,SUBSISTENCE,25837,FUSION,EMPLOYEES EXPENSES,100730667,252.93,
United Kingdom Atomic energy Authority,United Kingdom Atomic energy Authority,18/07/2014,SUBSISTENCE,25837,FUSION,EMPLOYEES EXPENSES,100730667,2.75,
United Kingdom Atomic energy Authority,United Kingdom Atomic energy Authority,18/07/2014,RAIL TRAVEL,25837,FUSION,EMPLOYEES EXPENSES,100730665,78.8,
United Kingdom Atomic energy Authority,United Kingdom Atomic energy Authority,18/07/2014,ROAD TRAVEL,25837,FUSION,EMPLOYEES EXPENSES,100730667,31.1,
United Kingdom Atomic energy Authority,United Kingdom Atomic energy Authority,05/07/2014,SUBSISTENCE,25952,FUSION,EMPLOYEES EXPENSES,100730462,8.18,
United Kingdom Atomic energy Authority,United Kingdom Atomic energy Authority,18/07/2014,SUBSISTENCE,25952,FUSION,EMPLOYEES EXPENSES,100730661,14,
United Kingdom Atomic energy Authority,United Kingdom Atomic energy Authority,05/07/2014,MILEAGE ALLOWANCE,25952,FUSION,EMPLOYEES EXPENSES,100730462,133.2,
United Kingdom Atomic energy Authority,United Kingdom Atomic energy Authority,18/07/2014,TAXIS,26000,,EMPLOYEES EXPENSES,100730663,24.02,
United Kingdom Atomic energy Authority,United Kingdom Atomic energy Authority,18/07/2014,TAXIS,26000,,EMPLOYEES EXPENSES,100730664,18.27,
United Kingdom Atomic energy Authority,United Kingdom Atomic energy Authority,24/07/2014,TAXIS,26000,,EMPLOYEES EXPENSES,100730765,47.6,
United Kingdom Atomic energy Authority,United Kingdom Atomic energy Authority,25/07/2014,TAXIS,26000,,EMPLOYEES EXPENSES,100732865,31.25,
United Kingdom Atomic energy Authority,United Kingdom Atomic energy Authority,25/07/2014,TAXIS,26000,,EMPLOYEES EXPENSES,100732870,38.11,
United Kingdom Atomic energy Authority,United Kingdom Atomic energy Authority,03/07/2014,SUBSISTENCE,26000,,EMPLOYEES EXPENSES,100730365,561.41,
United Kingdom Atomic energy Authority,United Kingdom Atomic energy Authority,12/07/2014,SUBSISTENCE,26000,,EMPLOYEES EXPENSES,100730558,3.95,
United Kingdom Atomic energy Authority,United Kingdom Atomic energy Authority,12/07/2014,SUBSISTENCE,26000,,EMPLOYEES EXPENSES,100730558,5.33,
United Kingdom Atomic energy Authority,United Kingdom Atomic energy Authority,12/07/2014,SUBSISTENCE,26000,,EMPLOYEES EXPENSES,100730563,278.14,
United Kingdom Atomic energy Authority,United Kingdom Atomic energy Authority,18/07/2014,SUBSISTENCE,26000,,EMPLOYEES EXPENSES,100730663,374.67,
United Kingdom Atomic energy Authority,United Kingdom Atomic energy Authority,18/07/2014,SUBSISTENCE,26000,,EMPLOYEES EXPENSES,100730663,9.79,
United Kingdom Atomic energy Authority,United Kingdom Atomic energy Authority,18/07/2014,SUBSISTENCE,26000,,EMPLOYEES EXPENSES,100730664,320.32,
United Kingdom Atomic energy Authority,United Kingdom Atomic energy Authority,18/07/2014,SUBSISTENCE,26000,,EMPLOYEES EXPENSES,100730664,2.67,
United Kingdom Atomic energy Authority,United Kingdom Atomic energy Authority,18/07/2014,SUBSISTENCE,26000,,EMPLOYEES EXPENSES,100730676,1009.5,
United Kingdom Atomic energy Authority,United Kingdom Atomic energy Authority,18/07/2014,SUBSISTENCE,26000,,EMPLOYEES EXPENSES,100730676,18.21,
United Kingdom Atomic energy Authority,United Kingdom Atomic energy Authority,18/07/2014,SUBSISTENCE,26000,,EMPLOYEES EXPENSES,100730683,469.32,
United Kingdom Atomic energy Authority,United Kingdom Atomic energy Authority,18/07/2014,SUBSISTENCE,26000,,EMPLOYEES EXPENSES,100730691,147.5,
United Kingdom Atomic energy Authority,United Kingdom Atomic energy Authority,24/07/2014,SUBSISTENCE,26000,,EMPLOYEES EXPENSES,100730752,72.69,
United Kingdom Atomic energy Authority,United Kingdom Atomic energy Authority,24/07/2014,SUBSISTENCE,26000,,EMPLOYEES EXPENSES,100730756,767.64,
United Kingdom Atomic energy Authority,United Kingdom Atomic energy Authority,24/07/2014,SUBSISTENCE,26000,,EMPLOYEES EXPENSES,100730765,484.45,
United Kingdom Atomic energy Authority,United Kingdom Atomic energy Authority,25/07/2014,SUBSISTENCE,26000,,EMPLOYEES EXPENSES,100732858,923.77,
United Kingdom Atomic energy Authority,United Kingdom Atomic energy Authority,25/07/2014,SUBSISTENCE,26000,,EMPLOYEES EXPENSES,100732864,20.54,
United Kingdom Atomic energy Authority,United Kingdom Atomic energy Authority,25/07/2014,SUBSISTENCE,26000,,EMPLOYEES EXPENSES,100732865,333.47,
United Kingdom Atomic energy Authority,United Kingdom Atomic energy Authority,25/07/2014,SUBSISTENCE,26000,,EMPLOYEES EXPENSES,100732865,2.75,
United Kingdom Atomic energy Authority,United Kingdom Atomic energy Authority,25/07/2014,SUBSISTENCE,26000,,EMPLOYEES EXPENSES,100732870,263.71,
United Kingdom Atomic energy Authority,United Kingdom Atomic energy Authority,25/07/2014,SUBSISTENCE,26000,,EMPLOYEES EXPENSES,100732870,4.21,
United Kingdom Atomic energy Authority,United Kingdom Atomic energy Authority,12/07/2014,MILEAGE ALLOWANCE,26000,,EMPLOYEES EXPENSES,100730558,54,
United Kingdom Atomic energy Authority,United Kingdom Atomic energy Authority,25/07/2014,MILEAGE ALLOWANCE,26000,,EMPLOYEES EXPENSES,100732864,55.8,
United Kingdom Atomic energy Authority,United Kingdom Atomic energy Authority,03/07/2014,RAIL TRAVEL,26000,,EMPLOYEES EXPENSES,100730365,26.55,
United Kingdom Atomic energy Authority,United Kingdom Atomic energy Authority,12/07/2014,RAIL TRAVEL,26000,,EMPLOYEES EXPENSES,100730563,13.21,
United Kingdom Atomic energy Authority,United Kingdom Atomic energy Authority,18/07/2014,RAIL TRAVEL,26000,,EMPLOYEES EXPENSES,100730663,13.9,
United Kingdom Atomic energy Authority,United Kingdom Atomic energy Authority,18/07/2014,RAIL TRAVEL,26000,,EMPLOYEES EXPENSES,100730664,5,
United Kingdom Atomic energy Authority,United Kingdom Atomic energy Authority,18/07/2014,RAIL TRAVEL,26000,,EMPLOYEES EXPENSES,100730676,7.01,
United Kingdom Atomic energy Authority,United Kingdom Atomic energy Authority,24/07/2014,RAIL TRAVEL,26000,,EMPLOYEES EXPENSES,100730756,55.72,
United Kingdom Atomic energy Authority,United Kingdom Atomic energy Authority,24/07/2014,RAIL TRAVEL,26000,,EMPLOYEES EXPENSES,100730765,11.19,
United Kingdom Atomic energy Authority,United Kingdom Atomic energy Authority,25/07/2014,RAIL TRAVEL,26000,,EMPLOYEES EXPENSES,100732858,25.46,
United Kingdom Atomic energy Authority,United Kingdom Atomic energy Authority,25/07/2014,RAIL TRAVEL,26000,,EMPLOYEES EXPENSES,100732870,10.24,
United Kingdom Atomic energy Authority,United Kingdom Atomic energy Authority,18/07/2014,ROAD TRAVEL,26000,,EMPLOYEES EXPENSES,100730663,33.1,
United Kingdom Atomic energy Authority,United Kingdom Atomic energy Authority,18/07/2014,ROAD TRAVEL,26000,,EMPLOYEES EXPENSES,100730676,31.82,
United Kingdom Atomic energy Authority,United Kingdom Atomic energy Authority,24/07/2014,ROAD TRAVEL,26000,,EMPLOYEES EXPENSES,100730765,29,
United Kingdom Atomic energy Authority,United Kingdom Atomic energy Authority,25/07/2014,ROAD TRAVEL,26000,,EMPLOYEES EXPENSES,100732864,2.2,
United Kingdom Atomic energy Authority,United Kingdom Atomic energy Authority,25/07/2014,ROAD TRAVEL,26000,,EMPLOYEES EXPENSES,100732865,4.8,
United Kingdom Atomic energy Authority,United Kingdom Atomic energy Authority,25/07/2014,ROAD TRAVEL,26000,,EMPLOYEES EXPENSES,100732870,46,
United Kingdom Atomic energy Authority,United Kingdom Atomic energy Authority,24/07/2014,OTHER EMPLOYEE EXPENSES,26000,,EMPLOYEES EXPENSES,100730765,5.5,
United Kingdom Atomic energy Authority,United Kingdom Atomic energy Authority,25/07/2014,OTHER EMPLOYEE EXPENSES,26000,,EMPLOYEES EXPENSES,100732864,7.45,
United Kingdom Atomic energy Authority,United Kingdom Atomic energy Authority,03/07/2014,EFDA TRAVEL EXPENSES,26900,,EMPLOYEES EXPENSES,100730363,393.01,
United Kingdom Atomic energy Authority,United Kingdom Atomic energy Authority,03/07/2014,EFDA TRAVEL EXPENSES,26900,,EMPLOYEES EXPENSES,100730370,171.37,
United Kingdom Atomic energy Authority,United Kingdom Atomic energy Authority,12/07/2014,EFDA TRAVEL EXPENSES,26900,,EMPLOYEES EXPENSES,100730564,80.66,
United Kingdom Atomic energy Authority,United Kingdom Atomic energy Authority,18/07/2014,EFDA TRAVEL EXPENSES,26900,,EMPLOYEES EXPENSES,100730675,156.94,
United Kingdom Atomic energy Authority,United Kingdom Atomic energy Authority,24/07/2014,PROFESSIONAL SUBSCRIPTION,26900,,EMPLOYEES EXPENSES,100730762,81,
United Kingdom Atomic energy Authority,United Kingdom Atomic energy Authority,12/07/2014,STATIONERY,29001,FUSION,EMPLOYEES EXPENSES,100730566,1.59,
United Kingdom Atomic energy Authority,United Kingdom Atomic energy Authority,12/07/2014,CAR HIRE,29001,FUSION,EMPLOYEES EXPENSES,100730567,151.64,
United Kingdom Atomic energy Authority,United Kingdom Atomic energy Authority,10/07/2014,TAXIS,29001,FUSION,EMPLOYEES EXPENSES,100730521,67.85,
United Kingdom Atomic energy Authority,United Kingdom Atomic energy Authority,10/07/2014,SUBSISTENCE,29001,FUSION,EMPLOYEES EXPENSES,100730521,279.69,
United Kingdom Atomic energy Authority,United Kingdom Atomic energy Authority,10/07/2014,SUBSISTENCE,29001,FUSION,EMPLOYEES EXPENSES,100730521,3.66,
United Kingdom Atomic energy Authority,United Kingdom Atomic energy Authority,10/07/2014,SUBSISTENCE,29001,FUSION,EMPLOYEES EXPENSES,100730523,774.97,
United Kingdom Atomic energy Authority,United Kingdom Atomic energy Authority,10/07/2014,SUBSISTENCE,29001,FUSION,EMPLOYEES EXPENSES,100730523,5.49,
United Kingdom Atomic energy Authority,United Kingdom Atomic energy Authority,12/07/2014,SUBSISTENCE,29001,FUSION,EMPLOYEES EXPENSES,100730566,411.72,
United Kingdom Atomic energy Authority,United Kingdom Atomic energy Authority,12/07/2014,SUBSISTENCE,29001,FUSION,EMPLOYEES EXPENSES,100730567,167.76,
United Kingdom Atomic energy Authority,United Kingdom Atomic energy Authority,18/07/2014,SUBSISTENCE,29001,FUSION,EMPLOYEES EXPENSES,100730662,111.36,
United Kingdom Atomic energy Authority,United Kingdom Atomic energy Authority,24/07/2014,SUBSISTENCE,29001,FUSION,EMPLOYEES EXPENSES,100730764,11.75,
United Kingdom Atomic energy Authority,United Kingdom Atomic energy Authority,25/07/2014,SUBSISTENCE,29001,FUSION,EMPLOYEES EXPENSES,100732866,185.79,
United Kingdom Atomic energy Authority,United Kingdom Atomic energy Authority,25/07/2014,MILEAGE ALLOWANCE,29001,FUSION,EMPLOYEES EXPENSES,100732875,9,
United Kingdom Atomic energy Authority,United Kingdom Atomic energy Authority,10/07/2014,RAIL TRAVEL,29001,FUSION,EMPLOYEES EXPENSES,100730521,16.12,
United Kingdom Atomic energy Authority,United Kingdom Atomic energy Authority,10/07/2014,ROAD TRAVEL,29001,FUSION,EMPLOYEES EXPENSES,100730523,9.21,
United Kingdom Atomic energy Authority,United Kingdom Atomic energy Authority,12/07/2014,ROAD TRAVEL,29001,FUSION,EMPLOYEES EXPENSES,100730567,2.54,
United Kingdom Atomic energy Authority,United Kingdom Atomic energy Authority,10/07/2014,OTHER EMPLOYEE EXPENSES,29001,FUSION,EMPLOYEES EXPENSES,100730520,3.4,
United Kingdom Atomic energy Authority,United Kingdom Atomic energy Authority,10/07/2014,OTHER EMPLOYEE EXPENSES,29001,FUSION,EMPLOYEES EXPENSES,100730521,13.05,
United Kingdom Atomic energy Authority,United Kingdom Atomic energy Authority,10/07/2014,OTHER EMPLOYEE EXPENSES,29001,FUSION,EMPLOYEES EXPENSES,100730522,2.73,
United Kingdom Atomic energy Authority,United Kingdom Atomic energy Authority,10/07/2014,OTHER EMPLOYEE EXPENSES,29001,FUSION,EMPLOYEES EXPENSES,100730523,6.9,
United Kingdom Atomic energy Authority,United Kingdom Atomic energy Authority,12/07/2014,OTHER EMPLOYEE EXPENSES,29001,FUSION,EMPLOYEES EXPENSES,100730560,81.25,
United Kingdom Atomic energy Authority,United Kingdom Atomic energy Authority,12/07/2014,OTHER EMPLOYEE EXPENSES,29001,FUSION,EMPLOYEES EXPENSES,100730566,42.2,
United Kingdom Atomic energy Authority,United Kingdom Atomic energy Authority,24/07/2014,OTHER EMPLOYEE EXPENSES,29001,FUSION,EMPLOYEES EXPENSES,100730763,27.7,
United Kingdom Atomic energy Authority,United Kingdom Atomic energy Authority,25/07/2014,OTHER EMPLOYEE EXPENSES,29001,FUSION,EMPLOYEES EXPENSES,100732866,16.91,
United Kingdom Atomic energy Authority,United Kingdom Atomic energy Authority,03/07/2014,MILEAGE ALLOWANCE,29030,FUSION,EMPLOYEES EXPENSES,100730355,9.45,
United Kingdom Atomic energy Authority,United Kingdom Atomic energy Authority,05/07/2014,MILEAGE ALLOWANCE,29030,FUSION,EMPLOYEES EXPENSES,100730454,7.2,
United Kingdom Atomic energy Authority,United Kingdom Atomic energy Authority,10/07/2014,MILEAGE ALLOWANCE,29030,FUSION,EMPLOYEES EXPENSES,100730512,14.4,
United Kingdom Atomic energy Authority,United Kingdom Atomic energy Authority,18/07/2014,MILEAGE ALLOWANCE,29030,FUSION,EMPLOYEES EXPENSES,100730655,27,
United Kingdom Atomic energy Authority,United Kingdom Atomic energy Authority,24/07/2014,MILEAGE ALLOWANCE,29030,FUSION,EMPLOYEES EXPENSES,100730751,7.2,
United Kingdom Atomic energy Authority,United Kingdom Atomic energy Authority,18/07/2014,TAXIS,29050,FUSION,EMPLOYEES EXPENSES,100730672,58.47,
United Kingdom Atomic energy Authority,United Kingdom Atomic energy Authority,18/07/2014,SUBSISTENCE,29050,FUSION,EMPLOYEES EXPENSES,100730672,119.19,
United Kingdom Atomic energy Authority,United Kingdom Atomic energy Authority,18/07/2014,SUBSISTENCE,29200,FUSION,EMPLOYEES EXPENSES,100730684,8.2,
United Kingdom Atomic energy Authority,United Kingdom Atomic energy Authority,18/07/2014,SUBSISTENCE,29200,FUSION,EMPLOYEES EXPENSES,100730684,3.12,
United Kingdom Atomic energy Authority,United Kingdom Atomic energy Authority,18/07/2014,SUBSISTENCE,29200,FUSION,EMPLOYEES EXPENSES,100730685,10.1,
United Kingdom Atomic energy Authority,United Kingdom Atomic energy Authority,18/07/2014,SUBSISTENCE,29200,FUSION,EMPLOYEES EXPENSES,100730690,9.96,
United Kingdom Atomic energy Authority,United Kingdom Atomic energy Authority,18/07/2014,MILEAGE ALLOWANCE,29200,FUSION,EMPLOYEES EXPENSES,100730684,132.3,
United Kingdom Atomic energy Authority,United Kingdom Atomic energy Authority,18/07/2014,MILEAGE ALLOWANCE,29200,FUSION,EMPLOYEES EXPENSES,100730685,132.3,
United Kingdom Atomic energy Authority,United Kingdom Atomic energy Authority,12/07/2014,TAXIS,63602,SUPPORT SERVICES,EMPLOYEES EXPENSES,100730569,59.16,
United Kingdom Atomic energy Authority,United Kingdom Atomic energy Authority,18/07/2014,TAXIS,63602,SUPPORT SERVICES,EMPLOYEES EXPENSES,100730682,55.5,
United Kingdom Atomic energy Authority,United Kingdom Atomic energy Authority,03/07/2014,SUBSISTENCE,63602,SUPPORT SERVICES,EMPLOYEES EXPENSES,100730372,96.67,
United Kingdom Atomic energy Authority,United Kingdom Atomic energy Authority,12/07/2014,SUBSISTENCE,63602,SUPPORT SERVICES,EMPLOYEES EXPENSES,100730569,69.64,
United Kingdom Atomic energy Authority,United Kingdom Atomic energy Authority,18/07/2014,SUBSISTENCE,63602,SUPPORT SERVICES,EMPLOYEES EXPENSES,100730659,10.58,
United Kingdom Atomic energy Authority,United Kingdom Atomic energy Authority,18/07/2014,SUBSISTENCE,63602,SUPPORT SERVICES,EMPLOYEES EXPENSES,100730660,1.75,
United Kingdom Atomic energy Authority,United Kingdom Atomic energy Authority,18/07/2014,SUBSISTENCE,63602,SUPPORT SERVICES,EMPLOYEES EXPENSES,100730682,91.37,
United Kingdom Atomic energy Authority,United Kingdom Atomic energy Authority,24/07/2014,SUBSISTENCE,63602,SUPPORT SERVICES,EMPLOYEES EXPENSES,100730753,5,
United Kingdom Atomic energy Authority,United Kingdom Atomic energy Authority,24/07/2014,SUBSISTENCE,63602,SUPPORT SERVICES,EMPLOYEES EXPENSES,100730754,2.92,
United Kingdom Atomic energy Authority,United Kingdom Atomic energy Authority,03/07/2014,MILEAGE ALLOWANCE,63602,SUPPORT SERVICES,EMPLOYEES EXPENSES,100730372,53.1,
United Kingdom Atomic energy Authority,United Kingdom Atomic energy Authority,10/07/2014,MILEAGE ALLOWANCE,63602,SUPPORT SERVICES,EMPLOYEES EXPENSES,100730515,7.2,
United Kingdom Atomic energy Authority,United Kingdom Atomic energy Authority,18/07/2014,MILEAGE ALLOWANCE,63602,SUPPORT SERVICES,EMPLOYEES EXPENSES,100730660,6.3,
United Kingdom Atomic energy Authority,United Kingdom Atomic energy Authority,25/07/2014,MILEAGE ALLOWANCE,63602,SUPPORT SERVICES,EMPLOYEES EXPENSES,100732872,7.2,
United Kingdom Atomic energy Authority,United Kingdom Atomic energy Authority,18/07/2014,RAIL TRAVEL,63602,SUPPORT SERVICES,EMPLOYEES EXPENSES,100730659,7.8,
United Kingdom Atomic energy Authority,United Kingdom Atomic energy Authority,18/07/2014,RAIL TRAVEL,63602,SUPPORT SERVICES,EMPLOYEES EXPENSES,100730682,15.9,
United Kingdom Atomic energy Authority,United Kingdom Atomic energy Authority,24/07/2014,RAIL TRAVEL,63602,SUPPORT SERVICES,EMPLOYEES EXPENSES,100730753,64.5,
United Kingdom Atomic energy Authority,United Kingdom Atomic energy Authority,24/07/2014,RAIL TRAVEL,63602,SUPPORT SERVICES,EMPLOYEES EXPENSES,100730754,64.5,
United Kingdom Atomic energy Authority,United Kingdom Atomic energy Authority,10/07/2014,ROAD TRAVEL,63602,SUPPORT SERVICES,EMPLOYEES EXPENSES,100730515,5.42,
United Kingdom Atomic energy Authority,United Kingdom Atomic energy Authority,12/07/2014,ROAD TRAVEL,63602,SUPPORT SERVICES,EMPLOYEES EXPENSES,100730569,14.5,
United Kingdom Atomic energy Authority,United Kingdom Atomic energy Authority,12/07/2014,ROAD TRAVEL,63602,SUPPORT SERVICES,EMPLOYEES EXPENSES,100730569,2.4,
United Kingdom Atomic energy Authority,United Kingdom Atomic energy Authority,18/07/2014,ROAD TRAVEL,63602,SUPPORT SERVICES,EMPLOYEES EXPENSES,100730660,5,
United Kingdom Atomic energy Authority,United Kingdom Atomic energy Authority,24/07/2014,ROAD TRAVEL,63602,SUPPORT SERVICES,EMPLOYEES EXPENSES,100730753,4.7,
United Kingdom Atomic energy Authority,United Kingdom Atomic energy Authority,24/07/2014,ROAD TRAVEL,63602,SUPPORT SERVICES,EMPLOYEES EXPENSES,100730754,4.7,
United Kingdom Atomic energy Authority,United Kingdom Atomic energy Authority,25/07/2014,ROAD TRAVEL,63602,SUPPORT SERVICES,EMPLOYEES EXPENSES,100732872,4,
United Kingdom Atomic energy Authority,United Kingdom Atomic energy Authority,25/07/2014,SUBSISTENCE,63605,SUPPORT SERVICES,EMPLOYEES EXPENSES,100732863,2.29,
United Kingdom Atomic energy Authority,United Kingdom Atomic energy Authority,25/07/2014,MILEAGE ALLOWANCE,63605,SUPPORT SERVICES,EMPLOYEES EXPENSES,100732863,10.35,
United Kingdom Atomic energy Authority,United Kingdom Atomic energy Authority,25/07/2014,RAIL TRAVEL,63605,SUPPORT SERVICES,EMPLOYEES EXPENSES,100732863,45.2,
United Kingdom Atomic energy Authority,United Kingdom Atomic energy Authority,25/07/2014,ROAD TRAVEL,63605,SUPPORT SERVICES,EMPLOYEES EXPENSES,100732863,1.92,
United Kingdom Atomic energy Authority,United Kingdom Atomic energy Authority,14/07/2014,MATERIALS & SPARES,25103,FUSION,Enclustra GmbH,5100306829,-376.71,
United Kingdom Atomic energy Authority,United Kingdom Atomic energy Authority,14/07/2014,MATERIALS & SPARES,25103,FUSION,Enclustra GmbH,5100306830,376.71,
United Kingdom Atomic energy Authority,United Kingdom Atomic energy Authority,30/06/2014,TRAINING COSTS,23183,FUSION,ENERGY INFORMATION CENTRE LTD,5100305990,2200,
United Kingdom Atomic energy Authority,United Kingdom Atomic energy Authority,30/06/2014,REGULATORY COSTS,25834,FUSION,ENVIRONMENT AGENCY,5100304727,1290,
United Kingdom Atomic energy Authority,United Kingdom Atomic energy Authority,30/06/2014,MATERIALS & SPARES,25103,FUSION,ERIKS UK,5100305833,243.2,
United Kingdom Atomic energy Authority,United Kingdom Atomic energy Authority,07/07/2014,PROFESSIONAL SERVICES,63523,SUPPORT SERVICES,ERNST and YOUNG LLP,5100306352,5625,
United Kingdom Atomic energy Authority,United Kingdom Atomic energy Authority,07/07/2014,PROFESSIONAL SERVICES,63523,SUPPORT SERVICES,ERNST and YOUNG LLP,5100306353,6660,
United Kingdom Atomic energy Authority,United Kingdom Atomic energy Authority,21/07/2014,PLANT & EQUIPMENT,25103,FUSION,ERODEX UK LTD,5100307016,2141.02,
United Kingdom Atomic energy Authority,United Kingdom Atomic energy Authority,07/07/2014,PROFESSIONAL SERVICES,23162,FUSION,ESR TECHNOLOGY LTD,5100306210,1150,
United Kingdom Atomic energy Authority,United Kingdom Atomic energy Authority,21/07/2014,PROFESSIONAL SERVICES,23621,FUSION,ESR TECHNOLOGY LTD,5100307015,2200,
United Kingdom Atomic energy Authority,United Kingdom Atomic energy Authority,30/06/2014,REPAIRS & MAINTENANCE,23164,FUSION,FACTAIR LTD,5100305932,295,
United Kingdom Atomic energy Authority,United Kingdom Atomic energy Authority,30/06/2014,MATERIALS & SPARES,23103,FUSION,FARNELL ELECTRONIC,5100305845,30.35,
United Kingdom Atomic energy Authority,United Kingdom Atomic energy Authority,30/06/2014,MATERIALS & SPARES,23106,FUSION,FARNELL ELECTRONIC,5100305838,69.63,
United Kingdom Atomic energy Authority,United Kingdom Atomic energy Authority,30/06/2014,MATERIALS & SPARES,23106,FUSION,FARNELL ELECTRONIC,5100305844,98.57,
United Kingdom Atomic energy Authority,United Kingdom Atomic energy Authority,30/06/2014,MATERIALS & SPARES,23106,FUSION,FARNELL ELECTRONIC,5100305849,136.24,
United Kingdom Atomic energy Authority,United Kingdom Atomic energy Authority,07/07/2014,MATERIALS & SPARES,23106,FUSION,FARNELL ELECTRONIC,5100306290,204.16,
United Kingdom Atomic energy Authority,United Kingdom Atomic energy Authority,14/07/2014,MATERIALS & SPARES,23120,FUSION,FARNELL ELECTRONIC,5100306532,117.72,
United Kingdom Atomic energy Authority,United Kingdom Atomic energy Authority,21/07/2014,MATERIALS & SPARES,23120,FUSION,FARNELL ELECTRONIC,5100306857,30.82,
United Kingdom Atomic energy Authority,United Kingdom Atomic energy Authority,07/07/2014,MATERIALS & SPARES,23121,FUSION,FARNELL ELECTRONIC,5100304855,232.8,
United Kingdom Atomic energy Authority,United Kingdom Atomic energy Authority,07/07/2014,MATERIALS & SPARES,23121,FUSION,FARNELL ELECTRONIC,5100304864,26.45,
United Kingdom Atomic energy Authority,United Kingdom Atomic energy Authority,30/06/2014,MATERIALS & SPARES,23121,FUSION,FARNELL ELECTRONIC,5100306062,254.72,
United Kingdom Atomic energy Authority,United Kingdom Atomic energy Authority,07/07/2014,MATERIALS & SPARES,23122,FUSION,FARNELL ELECTRONIC,5100306270,296.65,
United Kingdom Atomic energy Authority,United Kingdom Atomic energy Authority,02/07/2014,MATERIALS & SPARES,23128,FUSION,FARNELL ELECTRONIC,5100305348,113.74,
United Kingdom Atomic energy Authority,United Kingdom Atomic energy Authority,30/06/2014,MATERIALS & SPARES,23128,FUSION,FARNELL ELECTRONIC,5100305834,30,
United Kingdom Atomic energy Authority,United Kingdom Atomic energy Authority,30/06/2014,MATERIALS & SPARES,23128,FUSION,FARNELL ELECTRONIC,5100305850,7.06,
United Kingdom Atomic energy Authority,United Kingdom Atomic energy Authority,02/07/2014,MATERIALS & SPARES,23128,FUSION,FARNELL ELECTRONIC,5100305855,314.06,
United Kingdom Atomic energy Authority,United Kingdom Atomic energy Authority,14/07/2014,MATERIALS & SPARES,23128,FUSION,FARNELL ELECTRONIC,5100306522,34.66,
United Kingdom Atomic energy Authority,United Kingdom Atomic energy Authority,02/07/2014,MATERIALS & SPARES,23129,FUSION,FARNELL ELECTRONIC,5100305349,48.67,
United Kingdom Atomic energy Authority,United Kingdom Atomic energy Authority,02/07/2014,MATERIALS & SPARES,23129,FUSION,FARNELL ELECTRONIC,5100305369,150.46,
United Kingdom Atomic energy Authority,United Kingdom Atomic energy Authority,02/07/2014,MATERIALS & SPARES,23129,FUSION,FARNELL ELECTRONIC,5100305465,21.55,
United Kingdom Atomic energy Authority,United Kingdom Atomic energy Authority,02/07/2014,MATERIALS & SPARES,23129,FUSION,FARNELL ELECTRONIC,5100305758,66.15,
United Kingdom Atomic energy Authority,United Kingdom Atomic energy Authority,02/07/2014,MATERIALS & SPARES,23129,FUSION,FARNELL ELECTRONIC,5100305759,27.01,
United Kingdom Atomic energy Authority,United Kingdom Atomic energy Authority,02/07/2014,MATERIALS & SPARES,23129,FUSION,FARNELL ELECTRONIC,5100305764,21.07,
United Kingdom Atomic energy Authority,United Kingdom Atomic energy Authority,30/06/2014,MATERIALS & SPARES,23129,FUSION,FARNELL ELECTRONIC,5100305828,3.89,
United Kingdom Atomic energy Authority,United Kingdom Atomic energy Authority,30/06/2014,MATERIALS & SPARES,23129,FUSION,FARNELL ELECTRONIC,5100305830,286.19,
United Kingdom Atomic energy Authority,United Kingdom Atomic energy Authority,02/07/2014,MATERIALS & SPARES,23129,FUSION,FARNELL ELECTRONIC,5100305842,61.29,
United Kingdom Atomic energy Authority,United Kingdom Atomic energy Authority,02/07/2014,MATERIALS & SPARES,23129,FUSION,FARNELL ELECTRONIC,5100305843,206.75,
United Kingdom Atomic energy Authority,United Kingdom Atomic energy Authority,30/06/2014,MATERIALS & SPARES,23129,FUSION,FARNELL ELECTRONIC,5100305846,239.41,
United Kingdom Atomic energy Authority,United Kingdom Atomic energy Authority,02/07/2014,MATERIALS & SPARES,23129,FUSION,FARNELL ELECTRONIC,5100305847,994.5,
United Kingdom Atomic energy Authority,United Kingdom Atomic energy Authority,30/06/2014,MATERIALS & SPARES,23129,FUSION,FARNELL ELECTRONIC,5100305852,120.15,
United Kingdom Atomic energy Authority,United Kingdom Atomic energy Authority,07/07/2014,MATERIALS & SPARES,23129,FUSION,FARNELL ELECTRONIC,5100306217,178.48,
United Kingdom Atomic energy Authority,United Kingdom Atomic energy Authority,07/07/2014,MATERIALS & SPARES,23129,FUSION,FARNELL ELECTRONIC,5100306280,27.68,
United Kingdom Atomic energy Authority,United Kingdom Atomic energy Authority,07/07/2014,MATERIALS & SPARES,23129,FUSION,FARNELL ELECTRONIC,5100306288,74.98,
United Kingdom Atomic energy Authority,United Kingdom Atomic energy Authority,14/07/2014,MATERIALS & SPARES,23129,FUSION,FARNELL ELECTRONIC,5100306519,5.28,
United Kingdom Atomic energy Authority,United Kingdom Atomic energy Authority,14/07/2014,MATERIALS & SPARES,23129,FUSION,FARNELL ELECTRONIC,5100306520,597.63,
United Kingdom Atomic energy Authority,United Kingdom Atomic energy Authority,14/07/2014,MATERIALS & SPARES,23129,FUSION,FARNELL ELECTRONIC,5100306521,36.9,
United Kingdom Atomic energy Authority,United Kingdom Atomic energy Authority,14/07/2014,MATERIALS & SPARES,23129,FUSION,FARNELL ELECTRONIC,5100306525,3.66,
United Kingdom Atomic energy Authority,United Kingdom Atomic energy Authority,21/07/2014,MATERIALS & SPARES,23129,FUSION,FARNELL ELECTRONIC,5100306534,124.02,
United Kingdom Atomic energy Authority,United Kingdom Atomic energy Authority,14/07/2014,MATERIALS & SPARES,23129,FUSION,FARNELL ELECTRONIC,5100306547,191.52,
United Kingdom Atomic energy Authority,United Kingdom Atomic energy Authority,21/07/2014,MATERIALS & SPARES,23129,FUSION,FARNELL ELECTRONIC,5100306548,49.25,
United Kingdom Atomic energy Authority,United Kingdom Atomic energy Authority,21/07/2014,MATERIALS & SPARES,23129,FUSION,FARNELL ELECTRONIC,5100306549,67.52,
United Kingdom Atomic energy Authority,United Kingdom Atomic energy Authority,30/06/2014,MATERIALS & SPARES,23131,FUSION,FARNELL ELECTRONIC,5100305662,32.63,
United Kingdom Atomic energy Authority,United Kingdom Atomic energy Authority,30/06/2014,MATERIALS & SPARES,23134,FUSION,FARNELL ELECTRONIC,5100305835,6.93,
United Kingdom Atomic energy Authority,United Kingdom Atomic energy Authority,30/06/2014,MATERIALS & SPARES,23134,FUSION,FARNELL ELECTRONIC,5100305837,19.02,
United Kingdom Atomic energy Authority,United Kingdom Atomic energy Authority,30/06/2014,MATERIALS & SPARES,23134,FUSION,FARNELL ELECTRONIC,5100305856,367.04,
United Kingdom Atomic energy Authority,United Kingdom Atomic energy Authority,30/06/2014,MATERIALS & SPARES,23134,FUSION,FARNELL ELECTRONIC,5100305935,-263.44,
United Kingdom Atomic energy Authority,United Kingdom Atomic energy Authority,30/06/2014,MATERIALS & SPARES,23134,FUSION,FARNELL ELECTRONIC,5100306061,263.44,
United Kingdom Atomic energy Authority,United Kingdom Atomic energy Authority,07/07/2014,MATERIALS & SPARES,23134,FUSION,FARNELL ELECTRONIC,5100306215,504.55,
United Kingdom Atomic energy Authority,United Kingdom Atomic energy Authority,07/07/2014,MATERIALS & SPARES,23134,FUSION,FARNELL ELECTRONIC,5100306285,179.09,
United Kingdom Atomic energy Authority,United Kingdom Atomic energy Authority,14/07/2014,MATERIALS & SPARES,23134,FUSION,FARNELL ELECTRONIC,5100306528,139.05,
United Kingdom Atomic energy Authority,United Kingdom Atomic energy Authority,21/07/2014,MATERIALS & SPARES,23134,FUSION,FARNELL ELECTRONIC,5100306862,8.7,
United Kingdom Atomic energy Authority,United Kingdom Atomic energy Authority,30/06/2014,MATERIALS & SPARES,23150,FUSION,FARNELL ELECTRONIC,5100305853,70.11,
United Kingdom Atomic energy Authority,United Kingdom Atomic energy Authority,07/07/2014,MATERIALS & SPARES,23150,FUSION,FARNELL ELECTRONIC,5100306283,22.58,
United Kingdom Atomic energy Authority,United Kingdom Atomic energy Authority,14/07/2014,MATERIALS & SPARES,23150,FUSION,FARNELL ELECTRONIC,5100306535,18.42,
United Kingdom Atomic energy Authority,United Kingdom Atomic energy Authority,21/07/2014,MATERIALS & SPARES,23150,FUSION,FARNELL ELECTRONIC,5100306890,58.37,
United Kingdom Atomic energy Authority,United Kingdom Atomic energy Authority,21/07/2014,MATERIALS & SPARES,23150,FUSION,FARNELL ELECTRONIC,5100306909,25.25,
United Kingdom Atomic energy Authority,United Kingdom Atomic energy Authority,07/07/2014,MATERIALS & SPARES,23152,FUSION,FARNELL ELECTRONIC,5100306216,18.56,
United Kingdom Atomic energy Authority,United Kingdom Atomic energy Authority,09/07/2014,MATERIALS & SPARES,23152,FUSION,FARNELL ELECTRONIC,5100306261,34.5,
United Kingdom Atomic energy Authority,United Kingdom Atomic energy Authority,09/07/2014,MATERIALS & SPARES,23152,FUSION,FARNELL ELECTRONIC,5100306263,9.4,
United Kingdom Atomic energy Authority,United Kingdom Atomic energy Authority,21/07/2014,MATERIALS & SPARES,23152,FUSION,FARNELL ELECTRONIC,5100306907,583.41,
United Kingdom Atomic energy Authority,United Kingdom Atomic energy Authority,30/06/2014,MATERIALS & SPARES,23161,FUSION,FARNELL ELECTRONIC,5100305634,17.59,
United Kingdom Atomic energy Authority,United Kingdom Atomic energy Authority,07/07/2014,MATERIALS & SPARES,23161,FUSION,FARNELL ELECTRONIC,5100306220,9.81,
United Kingdom Atomic energy Authority,United Kingdom Atomic energy Authority,07/07/2014,MATERIALS & SPARES,23161,FUSION,FARNELL ELECTRONIC,5100306221,37.95,
United Kingdom Atomic energy Authority,United Kingdom Atomic energy Authority,14/07/2014,MATERIALS & SPARES,23161,FUSION,FARNELL ELECTRONIC,5100306523,277.58,
United Kingdom Atomic energy Authority,United Kingdom Atomic energy Authority,16/07/2014,MATERIALS & SPARES,25103,FUSION,FARNELL ELECTRONIC,5100305639,156.45,
United Kingdom Atomic energy Authority,United Kingdom Atomic energy Authority,30/06/2014,MATERIALS & SPARES,25103,FUSION,FARNELL ELECTRONIC,5100305763,138.63,
United Kingdom Atomic energy Authority,United Kingdom Atomic energy Authority,30/06/2014,MATERIALS & SPARES,25103,FUSION,FARNELL ELECTRONIC,5100305829,177.18,
United Kingdom Atomic energy Authority,United Kingdom Atomic energy Authority,30/06/2014,MATERIALS & SPARES,25103,FUSION,FARNELL ELECTRONIC,5100305840,280.95,
United Kingdom Atomic energy Authority,United Kingdom Atomic energy Authority,14/07/2014,MATERIALS & SPARES,25103,FUSION,FARNELL ELECTRONIC,5100306060,109.55,
United Kingdom Atomic energy Authority,United Kingdom Atomic energy Authority,07/07/2014,MATERIALS & SPARES,25103,FUSION,FARNELL ELECTRONIC,5100306219,164.28,
United Kingdom Atomic energy Authority,United Kingdom Atomic energy Authority,07/07/2014,MATERIALS & SPARES,25103,FUSION,FARNELL ELECTRONIC,5100306276,73.55,
United Kingdom Atomic energy Authority,United Kingdom Atomic energy Authority,14/07/2014,MATERIALS & SPARES,25103,FUSION,FARNELL ELECTRONIC,5100306530,624.33,
United Kingdom Atomic energy Authority,United Kingdom Atomic energy Authority,14/07/2014,MATERIALS & SPARES,25103,FUSION,FARNELL ELECTRONIC,5100306544,81.23,
United Kingdom Atomic energy Authority,United Kingdom Atomic energy Authority,14/07/2014,MATERIALS & SPARES,25103,FUSION,FARNELL ELECTRONIC,5100306545,24.76,
United Kingdom Atomic energy Authority,United Kingdom Atomic energy Authority,14/07/2014,MATERIALS & SPARES,25103,FUSION,FARNELL ELECTRONIC,5100306546,79,
United Kingdom Atomic energy Authority,United Kingdom Atomic energy Authority,21/07/2014,MATERIALS & SPARES,25103,FUSION,FARNELL ELECTRONIC,5100306905,68,
United Kingdom Atomic energy Authority,United Kingdom Atomic energy Authority,14/07/2014,MATERIALS & SPARES,25701,FUSION,FARNELL ELECTRONIC,5100306531,733.58,
United Kingdom Atomic energy Authority,United Kingdom Atomic energy Authority,14/07/2014,MATERIALS & SPARES,25701,FUSION,FARNELL ELECTRONIC,5100306533,151.3,
United Kingdom Atomic energy Authority,United Kingdom Atomic energy Authority,30/06/2014,MATERIALS & SPARES,25702,FUSION,FARNELL ELECTRONIC,5100305839,143.74,
United Kingdom Atomic energy Authority,United Kingdom Atomic energy Authority,21/07/2014,MATERIALS & SPARES,25702,FUSION,FARNELL ELECTRONIC,5100306898,147.44,
United Kingdom Atomic energy Authority,United Kingdom Atomic energy Authority,30/06/2014,MATERIALS & SPARES,25704,FUSION,FARNELL ELECTRONIC,5100305760,2.2,
United Kingdom Atomic energy Authority,United Kingdom Atomic energy Authority,30/06/2014,MATERIALS & SPARES,25704,FUSION,FARNELL ELECTRONIC,5100306059,69.76,
United Kingdom Atomic energy Authority,United Kingdom Atomic energy Authority,23/07/2014,SOFTWARE,29030,FUSION,FARO UK LTD,5100306994,29150,
United Kingdom Atomic energy Authority,United Kingdom Atomic energy Authority,07/07/2014,MATERIALS & SPARES,23151,FUSION,FASTFIX,5100306358,554.05,
United Kingdom Atomic energy Authority,United Kingdom Atomic energy Authority,07/07/2014,MATERIALS & SPARES,23151,FUSION,FASTFIX,5100306359,233.29,
United Kingdom Atomic energy Authority,United Kingdom Atomic energy Authority,07/07/2014,MATERIALS & SPARES,23151,FUSION,FASTFIX,5100306360,199.96,
United Kingdom Atomic energy Authority,United Kingdom Atomic energy Authority,07/07/2014,MATERIALS & SPARES,23134,FUSION,FC LANE ELECTRONICS LTD,5100306338,186.26,
United Kingdom Atomic energy Authority,United Kingdom Atomic energy Authority,21/07/2014,PLANT & EQUIPMENT,25836,FUSION,FEI UK,5100306896,1698,
United Kingdom Atomic energy Authority,United Kingdom Atomic energy Authority,16/07/2014,MATERIALS & SPARES,23150,FUSION,FILEDER FILTER LTD,5100306650,520,
United Kingdom Atomic energy Authority,United Kingdom Atomic energy Authority,21/07/2014,PROFESSIONAL SERVICES,63523,SUPPORT SERVICES,Financial Reporting Council,5100307023,1084.06,
United Kingdom Atomic energy Authority,United Kingdom Atomic energy Authority,14/07/2014,PLANT & EQUIPMENT,23150,FUSION,FISHER SCIENTIFIC UK LTD,5100306537,1638.78,
United Kingdom Atomic energy Authority,United Kingdom Atomic energy Authority,21/07/2014,PLANT & EQUIPMENT,23150,FUSION,FISHER SCIENTIFIC UK LTD,5100307027,766.7,
United Kingdom Atomic energy Authority,United Kingdom Atomic energy Authority,21/07/2014,PLANT & EQUIPMENT,23150,FUSION,FISHER SCIENTIFIC UK LTD,5100307095,347.94,
United Kingdom Atomic energy Authority,United Kingdom Atomic energy Authority,30/06/2014,PLANT & EQUIPMENT,23151,FUSION,FISHER SCIENTIFIC UK LTD,5100305773,30.28,
United Kingdom Atomic energy Authority,United Kingdom Atomic energy Authority,30/06/2014,PLANT & EQUIPMENT,23151,FUSION,FISHER SCIENTIFIC UK LTD,5100305812,179.52,
United Kingdom Atomic energy Authority,United Kingdom Atomic energy Authority,14/07/2014,PLANT & EQUIPMENT,23151,FUSION,FISHER SCIENTIFIC UK LTD,5100306536,213.26,
United Kingdom Atomic energy Authority,United Kingdom Atomic energy Authority,21/07/2014,PLANT & EQUIPMENT,23151,FUSION,FISHER SCIENTIFIC UK LTD,5100306882,82.74,
United Kingdom Atomic energy Authority,United Kingdom Atomic energy Authority,07/07/2014,PLANT & EQUIPMENT,23161,FUSION,FISHER SCIENTIFIC UK LTD,5100306357,146.37,
United Kingdom Atomic energy Authority,United Kingdom Atomic energy Authority,21/07/2014,PLANT & EQUIPMENT,23161,FUSION,FISHER SCIENTIFIC UK LTD,5100306883,513,
United Kingdom Atomic energy Authority,United Kingdom Atomic energy Authority,14/07/2014,PLANT & EQUIPMENT,23164,FUSION,FISHER SCIENTIFIC UK LTD,5100306538,2310.47,
United Kingdom Atomic energy Authority,United Kingdom Atomic energy Authority,21/07/2014,PLANT & EQUIPMENT,23164,FUSION,FISHER SCIENTIFIC UK LTD,5100306950,51.98,
United Kingdom Atomic energy Authority,United Kingdom Atomic energy Authority,21/07/2014,PLANT & EQUIPMENT,23164,FUSION,FISHER SCIENTIFIC UK LTD,5100307028,38.19,
United Kingdom Atomic energy Authority,United Kingdom Atomic energy Authority,21/07/2014,STATIONERY,21034,FUSION,FLAPS ENVELOPES LTD,5100304654,217.04,
United Kingdom Atomic energy Authority,United Kingdom Atomic energy Authority,21/07/2014,MATERIALS & SPARES,23161,FUSION,FLEXIBLE REINFORCEMENT LIMITED,5100306864,737.5,
United Kingdom Atomic energy Authority,United Kingdom Atomic energy Authority,21/07/2014,MATERIALS & SPARES,23161,FUSION,FLEXIBLE REINFORCEMENT LIMITED,5100306865,737.5,
United Kingdom Atomic energy Authority,United Kingdom Atomic energy Authority,23/07/2014,EFDA SECONDEE CONTRACT,0,,FOM,5100306231,43825.75,
United Kingdom Atomic energy Authority,United Kingdom Atomic energy Authority,14/07/2014,MATERIALS & SPARES,23103,FUSION,FORGEWELD LTD,5100304071,1100,
United Kingdom Atomic energy Authority,United Kingdom Atomic energy Authority,30/06/2014,MATERIALS & SPARES,23103,FUSION,FORGEWELD LTD,5100305798,122.82,
United Kingdom Atomic energy Authority,United Kingdom Atomic energy Authority,30/06/2014,MATERIALS & SPARES,23103,FUSION,FORGEWELD LTD,5100305799,1830,
United Kingdom Atomic energy Authority,United Kingdom Atomic energy Authority,21/07/2014,MATERIALS & SPARES,23103,FUSION,FORGEWELD LTD,5100306797,169,
United Kingdom Atomic energy Authority,United Kingdom Atomic energy Authority,21/07/2014,MATERIALS & SPARES,23103,FUSION,FORGEWELD LTD,5100306798,451.18,
United Kingdom Atomic energy Authority,United Kingdom Atomic energy Authority,21/07/2014,MATERIALS & SPARES,23103,FUSION,FORGEWELD LTD,5100306799,347.6,
United Kingdom Atomic energy Authority,United Kingdom Atomic energy Authority,07/07/2014,MATERIALS & SPARES,23104,FUSION,FORGEWELD LTD,5100306181,168,
United Kingdom Atomic energy Authority,United Kingdom Atomic energy Authority,14/07/2014,MATERIALS & SPARES,23128,FUSION,FORWARD 2000 LTD,5100306518,62,
United Kingdom Atomic energy Authority,United Kingdom Atomic energy Authority,09/07/2014,RESEARCH & DEVELOPMENT,21037,FUSION,FRAZER NASH CONSULTANCY,5100306021,44641,
United Kingdom Atomic energy Authority,United Kingdom Atomic energy Authority,14/07/2014,MATERIALS & SPARES,23129,FUSION,GARNER OSBORNE CIRCUITS LTD,5100306251,344.04,
United Kingdom Atomic energy Authority,United Kingdom Atomic energy Authority,21/07/2014,MATERIALS & SPARES,23129,FUSION,GARNER OSBORNE CIRCUITS LTD,5100306984,303.96,
United Kingdom Atomic energy Authority,United Kingdom Atomic energy Authority,02/07/2014,PLANT SPARES,23128,FUSION,GD RECTIFIERS LTD,5100305226,1271.2,
United Kingdom Atomic energy Authority,United Kingdom Atomic energy Authority,21/07/2014,PROFESSIONAL SERVICES,23125,FUSION,GE SENSING,5100307002,262,
United Kingdom Atomic energy Authority,United Kingdom Atomic energy Authority,09/07/2014,HIRED STAFF,0,FUSION,GENTLE ASSOCIATES LTD,5100306361,5316.04,
United Kingdom Atomic energy Authority,United Kingdom Atomic energy Authority,25/07/2014,OTHER EXTERNAL COSTS,23104,FUSION,GGR Group Ltd,1900060040,882,CUL13423
United Kingdom Atomic energy Authority,United Kingdom Atomic energy Authority,21/07/2014,MATERIALS & SPARES,23151,FUSION,GILBERTS BLACKPOOL LTD,5100306698,49.13,
United Kingdom Atomic energy Authority,United Kingdom Atomic energy Authority,14/07/2014,MATERIALS & SPARES,23151,FUSION,GILBERTS BLACKPOOL LTD,5100306768,85.02,
United Kingdom Atomic energy Authority,United Kingdom Atomic energy Authority,07/07/2014,PROFESSIONAL SERVICES,23167,FUSION,GLANVILLE CONSULTANTS,5100306301,388.35,
United Kingdom Atomic energy Authority,United Kingdom Atomic energy Authority,09/07/2014,PROFESSIONAL SERVICES,25836,FUSION,GLANVILLE CONSULTANTS,5100306349,553.32,
United Kingdom Atomic energy Authority,United Kingdom Atomic energy Authority,07/07/2014,PROFESSIONAL SERVICES,28200,PROPERTY,GLANVILLE CONSULTANTS,5100306302,765.35,
United Kingdom Atomic energy Authority,United Kingdom Atomic energy Authority,16/07/2014,MATERIALS & SPARES,29200,FUSION,Gleed Energy Ltd,5100305079,10715.36,
United Kingdom Atomic energy Authority,United Kingdom Atomic energy Authority,16/07/2014,MATERIALS & SPARES,29200,FUSION,Gleed Energy Ltd,5100306934,-768.75,
United Kingdom Atomic energy Authority,United Kingdom Atomic energy Authority,14/07/2014,ENTERTAINMENT - STAFF,21033,SUPPORT SERVICES,GM Draycott t/a Wells Stores,1900059969,153,CUL13353
United Kingdom Atomic energy Authority,United Kingdom Atomic energy Authority,21/07/2014,MATERIALS & SPARES,23120,FUSION,GOODMAND STEEL SERVICES LTD,5100306801,141.54,
United Kingdom Atomic energy Authority,United Kingdom Atomic energy Authority,21/07/2014,MATERIALS & SPARES,23124,FUSION,GOODMAND STEEL SERVICES LTD,5100306990,71.19,
United Kingdom Atomic energy Authority,United Kingdom Atomic energy Authority,07/07/2014,INSURANCE,21033,SUPPORT SERVICES,GROUPAMA INSURANCE COMPANY LTD,5100306337,6209.88,
United Kingdom Atomic energy Authority,United Kingdom Atomic energy Authority,07/07/2014,REPAIRS & MAINTENANCE,25103,FUSION,GUYSON INTERNATIONAL,5100306124,1075.52,
United Kingdom Atomic energy Authority,United Kingdom Atomic energy Authority,07/07/2014,REPAIRS & MAINTENANCE,25103,FUSION,GUYSON INTERNATIONAL,5100306415,170.55,
United Kingdom Atomic energy Authority,United Kingdom Atomic energy Authority,23/07/2014,MATERIALS & SPARES,25838,FUSION,H C Starck INC.,5100306827,1050.73,
United Kingdom Atomic energy Authority,United Kingdom Atomic energy Authority,07/07/2014,TAXIS,21035,FUSION,HAROLDS CARS,5100306437,6402.96,
United Kingdom Atomic energy Authority,United Kingdom Atomic energy Authority,21/07/2014,MATERIALS & SPARES,23129,FUSION,HAVEN AUTOMATION LTD,5100307090,120,
United Kingdom Atomic energy Authority,United Kingdom Atomic energy Authority,02/07/2014,PROFESSIONAL SERVICES,21033,SUPPORT SERVICES,Hays Specialist Recruitment Ltd.,5100305974,10900,
United Kingdom Atomic energy Authority,United Kingdom Atomic energy Authority,07/07/2014,PLANT & EQUIPMENT,23103,FUSION,HEWDEN,5100306159,1035,
United Kingdom Atomic energy Authority,United Kingdom Atomic energy Authority,09/07/2014,PLANT & EQUIPMENT,23151,FUSION,HEWDEN,5100304685,1820.04,
United Kingdom Atomic energy Authority,United Kingdom Atomic energy Authority,09/07/2014,PLANT & EQUIPMENT,23151,FUSION,HEWDEN,5100306104,105,
United Kingdom Atomic energy Authority,United Kingdom Atomic energy Authority,09/07/2014,PLANT & EQUIPMENT,23151,FUSION,HEWDEN,5100306566,-105,
United Kingdom Atomic energy Authority,United Kingdom Atomic energy Authority,21/07/2014,MATERIALS & SPARES,23150,FUSION,HIDEN ANALYTICAL LTD,5100306866,1000,
United Kingdom Atomic energy Authority,United Kingdom Atomic energy Authority,07/07/2014,PROFESSIONAL SERVICES,23151,FUSION,HILLS WASTE SOLUTIONS LTD,5100306272,2098.02,
United Kingdom Atomic energy Authority,United Kingdom Atomic energy Authority,07/07/2014,PROFESSIONAL SERVICES,23151,FUSION,HILLS WASTE SOLUTIONS LTD,5100306273,430,
United Kingdom Atomic energy Authority,United Kingdom Atomic energy Authority,07/07/2014,PROFESSIONAL SERVICES,23151,FUSION,HILLS WASTE SOLUTIONS LTD,5100306275,10,
United Kingdom Atomic energy Authority,United Kingdom Atomic energy Authority,07/07/2014,PROFESSIONAL SERVICES,23151,FUSION,HILLS WASTE SOLUTIONS LTD,5100306277,200,
United Kingdom Atomic energy Authority,United Kingdom Atomic energy Authority,21/07/2014,PROFESSIONAL SERVICES,23151,FUSION,HILLS WASTE SOLUTIONS LTD,5100306912,1125,
United Kingdom Atomic energy Authority,United Kingdom Atomic energy Authority,23/07/2014,PLANT SPARES,25103,FUSION,HILTI GB LTD,5100304857,71.25,
United Kingdom Atomic energy Authority,United Kingdom Atomic energy Authority,30/06/2014,PLANT SPARES,25103,FUSION,HILTI GB LTD,5100306103,61.25,
United Kingdom Atomic energy Authority,United Kingdom Atomic energy Authority,30/06/2014,MATERIALS & SPARES,25701,FUSION,Himag Planar Magnetics Ltd,5100305917,315,
United Kingdom Atomic energy Authority,United Kingdom Atomic energy Authority,02/07/2014,STATIONERY,21034,FUSION,HOBS REPROGRAPHICS PLC,5100305973,61.75,
United Kingdom Atomic energy Authority,United Kingdom Atomic energy Authority,14/07/2014,STATIONERY,21034,FUSION,HOBS REPROGRAPHICS PLC,5100306182,20,
United Kingdom Atomic energy Authority,United Kingdom Atomic energy Authority,16/07/2014,STATIONERY,21034,FUSION,HOBS REPROGRAPHICS PLC,5100306222,64.51,
United Kingdom Atomic energy Authority,United Kingdom Atomic energy Authority,21/07/2014,STATIONERY,21034,FUSION,HOBS REPROGRAPHICS PLC,5100306442,156,
United Kingdom Atomic energy Authority,United Kingdom Atomic energy Authority,14/07/2014,STATIONERY,21034,FUSION,HOBS REPROGRAPHICS PLC,5100306580,18,
United Kingdom Atomic energy Authority,United Kingdom Atomic energy Authority,14/07/2014,STATIONERY,21034,FUSION,HOBS REPROGRAPHICS PLC,5100306581,4.8,
United Kingdom Atomic energy Authority,United Kingdom Atomic energy Authority,09/07/2014,TRAVEL,0,,Hogg Robinson(Travel)Ltd T/A HRG UK,5100306385,26039.63,
United Kingdom Atomic energy Authority,United Kingdom Atomic energy Authority,02/07/2014,MATERIALS & SPARES,23161,FUSION,HOTCHKISS AIR SUPPLY,5100306160,130.36,
United Kingdom Atomic energy Authority,United Kingdom Atomic energy Authority,21/07/2014,MATERIALS & SPARES,23161,FUSION,HOTCHKISS AIR SUPPLY,5100306943,60.36,
United Kingdom Atomic energy Authority,United Kingdom Atomic energy Authority,30/06/2014,MATERIALS & SPARES,25103,FUSION,Hoverdale (UK) Ltd,5100305865,3150,
United Kingdom Atomic energy Authority,United Kingdom Atomic energy Authority,30/06/2014,PLANT & EQUIPMENT,23103,FUSION,HSS Hire Services Ltd,5100305076,1035,
United Kingdom Atomic energy Authority,United Kingdom Atomic energy Authority,07/07/2014,PLANT & EQUIPMENT,23103,FUSION,HSS Hire Services Ltd,5100306187,183,
United Kingdom Atomic energy Authority,United Kingdom Atomic energy Authority,09/07/2014,PLANT & EQUIPMENT,23617,FUSION,HT SERVO LTD,5100305285,8031,
United Kingdom Atomic energy Authority,United Kingdom Atomic energy Authority,09/07/2014,PLANT & EQUIPMENT,23617,FUSION,HT SERVO LTD,5100305380,6431,
United Kingdom Atomic energy Authority,United Kingdom Atomic energy Authority,09/07/2014,PLANT & EQUIPMENT,23617,FUSION,HT SERVO LTD,5100305985,32183,
United Kingdom Atomic energy Authority,United Kingdom Atomic energy Authority,14/07/2014,PLANT & EQUIPMENT,23617,FUSION,HT SERVO LTD,5100306539,2612,
United Kingdom Atomic energy Authority,United Kingdom Atomic energy Authority,14/07/2014,PROFESSIONAL SERVICES,23124,FUSION,HUTTON ENGINEERING (PRECISION) LTD,5100306615,2257.85,
United Kingdom Atomic energy Authority,United Kingdom Atomic energy Authority,21/07/2014,PROFESSIONAL SERVICES,23124,FUSION,HUTTON ENGINEERING (PRECISION) LTD,5100306940,1164.93,
United Kingdom Atomic energy Authority,United Kingdom Atomic energy Authority,07/07/2014,PROFESSIONAL SERVICES,25103,FUSION,HUTTON ENGINEERING (PRECISION) LTD,5100306260,166.8,
United Kingdom Atomic energy Authority,United Kingdom Atomic energy Authority,14/07/2014,PROFESSIONAL SERVICES,25103,FUSION,HUTTON ENGINEERING (PRECISION) LTD,5100306611,131.6,
United Kingdom Atomic energy Authority,United Kingdom Atomic energy Authority,16/07/2014,PROFESSIONAL SERVICES,25103,FUSION,HUTTON ENGINEERING (PRECISION) LTD,5100306612,429,
United Kingdom Atomic energy Authority,United Kingdom Atomic energy Authority,23/07/2014,MATERIALS & SPARES,25103,FUSION,HV WOODING LIMITED,5100307020,475.2,
United Kingdom Atomic energy Authority,United Kingdom Atomic energy Authority,21/07/2014,MATERIALS & SPARES,25103,FUSION,HV WOODING LIMITED,5100307021,294.6,
United Kingdom Atomic energy Authority,United Kingdom Atomic energy Authority,21/07/2014,CLEANING,25103,FUSION,HYDROBLAST,5100306594,385,
United Kingdom Atomic energy Authority,United Kingdom Atomic energy Authority,21/07/2014,CLEANING,25103,FUSION,HYDROBLAST,5100306955,1480,
United Kingdom Atomic energy Authority,United Kingdom Atomic energy Authority,16/07/2014,RAW MATERIALS & CONSUMABLES,25103,FUSION,ILF Ltd,1900059895,5673,CUL13285
United Kingdom Atomic energy Authority,United Kingdom Atomic energy Authority,23/07/2014,DELIVERY & CARRIAGE,25103,FUSION,ILF Ltd,1900060013,714,CUL13418
United Kingdom Atomic energy Authority,United Kingdom Atomic energy Authority,14/07/2014,MEDICAL EXPENSES,21032,SUPPORT SERVICES,IMASS LTD,5100306645,1531.5,
United Kingdom Atomic energy Authority,United Kingdom Atomic energy Authority,14/07/2014,MEDICAL EXPENSES,21032,SUPPORT SERVICES,IMASS LTD,5100306648,2243.7,
United Kingdom Atomic energy Authority,United Kingdom Atomic energy Authority,14/07/2014,MEDICAL EXPENSES,23162,FUSION,IMASS LTD,5100306639,656,
United Kingdom Atomic energy Authority,United Kingdom Atomic energy Authority,14/07/2014,MEDICAL EXPENSES,23162,FUSION,IMASS LTD,5100306644,950,
United Kingdom Atomic energy Authority,United Kingdom Atomic energy Authority,14/07/2014,MEDICAL EXPENSES,23162,FUSION,IMASS LTD,5100306647,161.24,
United Kingdom Atomic energy Authority,United Kingdom Atomic energy Authority,16/07/2014,MEDICAL EXPENSES,23162,FUSION,IMASS LTD,5100306763,3387.2,
United Kingdom Atomic energy Authority,United Kingdom Atomic energy Authority,16/07/2014,MEDICAL EXPENSES,23162,FUSION,IMASS LTD,5100306764,1220.08,
United Kingdom Atomic energy Authority,United Kingdom Atomic energy Authority,07/07/2014,UNIVERSITY PLACEMENT,25501,FUSION,IMPERIAL COLLEGE,5100306426,4372.2,
United Kingdom Atomic energy Authority,United Kingdom Atomic energy Authority,14/07/2014,UNIVERSITY PLACEMENT,25501,FUSION,IMPERIAL COLLEGE,5100306599,1646,
United Kingdom Atomic energy Authority,United Kingdom Atomic energy Authority,30/06/2014,PLANT & EQUIPMENT,23162,FUSION,INDUSTRIAL APPARATUS CONSULTANTS LTD,5100305542,3155,
United Kingdom Atomic energy Authority,United Kingdom Atomic energy Authority,16/07/2014,MATERIALS & SPARES,23161,FUSION,Industrial Technical Ltd,5100306189,142,
United Kingdom Atomic energy Authority,United Kingdom Atomic energy Authority,16/07/2014,MATERIALS & SPARES,23161,FUSION,Industrial Technical Ltd,5100306191,40.1,
United Kingdom Atomic energy Authority,United Kingdom Atomic energy Authority,23/07/2014,MATERIALS & SPARES,23161,FUSION,Industrial Technical Ltd,5100307037,295.7,
United Kingdom Atomic energy Authority,United Kingdom Atomic energy Authority,16/07/2014,MATERIALS & SPARES,28900,PROPERTY,Industrial Technical Ltd,5100306190,516.44,
United Kingdom Atomic energy Authority,United Kingdom Atomic energy Authority,30/06/2014,MATERIALS & SPARES,23617,FUSION,INFRANOR LIMITED,5100305991,1064.92,
United Kingdom Atomic energy Authority,United Kingdom Atomic energy Authority,14/07/2014,PLANT & EQUIPMENT,21034,FUSION,INSIGHT DIRECT LTD,5100306722,126.97,
United Kingdom Atomic energy Authority,United Kingdom Atomic energy Authority,14/07/2014,PLANT & EQUIPMENT,23119,FUSION,INSIGHT DIRECT LTD,5100306598,1012.98,
United Kingdom Atomic energy Authority,United Kingdom Atomic energy Authority,30/06/2014,PLANT & EQUIPMENT,23122,FUSION,INSIGHT DIRECT LTD,5100305979,822.99,
United Kingdom Atomic energy Authority,United Kingdom Atomic energy Authority,30/06/2014,PLANT & EQUIPMENT,23127,FUSION,INSIGHT DIRECT LTD,5100305978,965.97,
United Kingdom Atomic energy Authority,United Kingdom Atomic energy Authority,30/06/2014,PLANT & EQUIPMENT,23134,FUSION,INSIGHT DIRECT LTD,5100306099,58.99,
United Kingdom Atomic energy Authority,United Kingdom Atomic energy Authority,30/06/2014,PLANT & EQUIPMENT,23137,FUSION,INSIGHT DIRECT LTD,5100305977,133.96,
United Kingdom Atomic energy Authority,United Kingdom Atomic energy Authority,30/06/2014,PLANT & EQUIPMENT,23137,FUSION,INSIGHT DIRECT LTD,5100305980,1348.95,
United Kingdom Atomic energy Authority,United Kingdom Atomic energy Authority,07/07/2014,PLANT & EQUIPMENT,25821,FUSION,INSIGHT DIRECT LTD,5100306141,941.5,
United Kingdom Atomic energy Authority,United Kingdom Atomic energy Authority,09/07/2014,PROFESSIONAL SERVICES,0,,Institute of Plasma Physics,5100306228,8618.04,
United Kingdom Atomic energy Authority,United Kingdom Atomic energy Authority,07/07/2014,PLANT & EQUIPMENT,25103,FUSION,INSTRUMENT TECHNOLOGY LTD,5100303747,150,
United Kingdom Atomic energy Authority,United Kingdom Atomic energy Authority,30/06/2014,PLANT & EQUIPMENT,25103,FUSION,INSTRUMENT TECHNOLOGY LTD,5100304292,2200,
United Kingdom Atomic energy Authority,United Kingdom Atomic energy Authority,30/06/2014,PLANT & EQUIPMENT,25103,FUSION,INSTRUMENT TECHNOLOGY LTD,5100304393,5077,
United Kingdom Atomic energy Authority,United Kingdom Atomic energy Authority,30/06/2014,PLANT & EQUIPMENT,25103,FUSION,INSTRUMENT TECHNOLOGY LTD,5100304771,5535,
United Kingdom Atomic energy Authority,United Kingdom Atomic energy Authority,07/07/2014,INTERVIEW EXPENSES,23136,FUSION,INTERVIEW EXPENSES,1900059931,36.7,CUL13312
United Kingdom Atomic energy Authority,United Kingdom Atomic energy Authority,24/07/2014,INTERVIEW EXPENSES,23155,FUSION,INTERVIEW EXPENSES,1900060036,69.3,CUL13421
United Kingdom Atomic energy Authority,United Kingdom Atomic energy Authority,15/07/2014,INTERVIEW EXPENSES,25204,FUSION,INTERVIEW EXPENSES,1900059980,29.24,CUL13360
United Kingdom Atomic energy Authority,United Kingdom Atomic energy Authority,14/07/2014,INTERVIEW EXPENSES,25701,FUSION,INTERVIEW EXPENSES,1900059968,218.75,CUL13354
United Kingdom Atomic energy Authority,United Kingdom Atomic energy Authority,30/06/2014,PUBLICATIONS,25821,FUSION,IOP PUBLISHING LTD,5100306078,843.75,
United Kingdom Atomic energy Authority,United Kingdom Atomic energy Authority,30/06/2014,PUBLICATIONS,25821,FUSION,IOP PUBLISHING LTD,5100306079,1312.5,
United Kingdom Atomic energy Authority,United Kingdom Atomic energy Authority,30/06/2014,PUBLICATIONS,26900,,IOP PUBLISHING LTD,5100306015,656.25,
United Kingdom Atomic energy Authority,United Kingdom Atomic energy Authority,09/07/2014,MATERIALS & SPARES,23152,FUSION,ISIS FLUID CONTROL LIMITED,5100306369,578.1,
United Kingdom Atomic energy Authority,United Kingdom Atomic energy Authority,02/07/2014,TRAINING COSTS,21033,SUPPORT SERVICES,ISIS TRAINING SERVICES LTD,5100305632,148,
United Kingdom Atomic energy Authority,United Kingdom Atomic energy Authority,30/06/2014,PROFESSIONAL SERVICES,23131,FUSION,ISLAND SCIENTIFIC,5100305983,564,
United Kingdom Atomic energy Authority,United Kingdom Atomic energy Authority,21/07/2014,PLANT & EQUIPMENT,23131,FUSION,ISOTHERMAL TECHNOLOGY LIMITED,5100306894,297,
United Kingdom Atomic energy Authority,United Kingdom Atomic energy Authority,16/07/2014,SECONDED STAFF,0,,IST,5100305778,49509.97,
United Kingdom Atomic energy Authority,United Kingdom Atomic energy Authority,07/07/2014,MATERIALS & SPARES,23106,FUSION,Itel Electrinics Ltd,5100306374,350,
United Kingdom Atomic energy Authority,United Kingdom Atomic energy Authority,07/07/2014,MATERIALS & SPARES,23617,FUSION,Itel Electrinics Ltd,5100306373,10795,
United Kingdom Atomic energy Authority,United Kingdom Atomic energy Authority,30/06/2014,MATERIALS & SPARES,23150,FUSION,ITM Power (Trading) Ltd.,5100303377,5188,
United Kingdom Atomic energy Authority,United Kingdom Atomic energy Authority,09/07/2014,PLANT & EQUIPMENT,23125,FUSION,J & J PNEUMATICS LTD,5100306218,1360.54,
United Kingdom Atomic energy Authority,United Kingdom Atomic energy Authority,02/07/2014,PLANT & EQUIPMENT,25103,FUSION,JEMA,5100305549,52413.11,
United Kingdom Atomic energy Authority,United Kingdom Atomic energy Authority,02/07/2014,PLANT & EQUIPMENT,25103,FUSION,JEMA,5100305565,9403.49,
United Kingdom Atomic energy Authority,United Kingdom Atomic energy Authority,02/07/2014,PLANT & EQUIPMENT,25103,FUSION,JEMA,5100305566,11493.16,
United Kingdom Atomic energy Authority,United Kingdom Atomic energy Authority,30/06/2014,MATERIALS & SPARES,23161,FUSION,JEWSON LTD,5100305823,66.2,
United Kingdom Atomic energy Authority,United Kingdom Atomic energy Authority,02/07/2014,PROFESSIONAL SERVICES,25950,FUSION,JM ENGRAVING,5100306109,343.44,
United Kingdom Atomic energy Authority,United Kingdom Atomic energy Authority,21/07/2014,COMPUTER REPAIRS,23124,FUSION,KEE SYSTEMS LTD,5100306859,1390.79,
United Kingdom Atomic energy Authority,United Kingdom Atomic energy Authority,09/07/2014,PROFESSIONAL SERVICES,28201,PROPERTY,KEMP & KEMP,5100306267,4822.5,
United Kingdom Atomic energy Authority,United Kingdom Atomic energy Authority,07/07/2014,COMPENSATION ,63511,SUPPORT SERVICES,KEOGHS,5100306318,992,
United Kingdom Atomic energy Authority,United Kingdom Atomic energy Authority,14/07/2014,COMPENSATION ,63511,SUPPORT SERVICES,KEOGHS,5100306746,448,
United Kingdom Atomic energy Authority,United Kingdom Atomic energy Authority,14/07/2014,COMPENSATION ,63511,SUPPORT SERVICES,KEOGHS,5100306751,288,
United Kingdom Atomic energy Authority,United Kingdom Atomic energy Authority,14/07/2014,COMPENSATION ,63511,SUPPORT SERVICES,KEOGHS,5100306752,208,
United Kingdom Atomic energy Authority,United Kingdom Atomic energy Authority,14/07/2014,COMPENSATION ,63511,SUPPORT SERVICES,KEOGHS,5100306755,1040,
United Kingdom Atomic energy Authority,United Kingdom Atomic energy Authority,21/07/2014,COMPENSATION ,63511,SUPPORT SERVICES,KEOGHS,5100307026,128,
United Kingdom Atomic energy Authority,United Kingdom Atomic energy Authority,07/07/2014,COMPENSATION ,63605,SUPPORT SERVICES,KEOGHS,5100306319,272,
United Kingdom Atomic energy Authority,United Kingdom Atomic energy Authority,07/07/2014,COMPENSATION ,63605,SUPPORT SERVICES,KEOGHS,5100306320,208,
United Kingdom Atomic energy Authority,United Kingdom Atomic energy Authority,14/07/2014,COMPENSATION ,63605,SUPPORT SERVICES,KEOGHS,5100306747,160,
United Kingdom Atomic energy Authority,United Kingdom Atomic energy Authority,14/07/2014,COMPENSATION ,63605,SUPPORT SERVICES,KEOGHS,5100306748,160,
United Kingdom Atomic energy Authority,United Kingdom Atomic energy Authority,14/07/2014,COMPENSATION ,63605,SUPPORT SERVICES,KEOGHS,5100306749,288,
United Kingdom Atomic energy Authority,United Kingdom Atomic energy Authority,14/07/2014,COMPENSATION ,63605,SUPPORT SERVICES,KEOGHS,5100306750,656,
United Kingdom Atomic energy Authority,United Kingdom Atomic energy Authority,14/07/2014,MATERIALS & SPARES,21033,SUPPORT SERVICES,KEY INDUSTRIAL EQUIPMENT LTD,5100306481,185.25,
United Kingdom Atomic energy Authority,United Kingdom Atomic energy Authority,07/07/2014,MATERIALS & SPARES,23151,FUSION,KEY INDUSTRIAL EQUIPMENT LTD,5100306143,382.57,
United Kingdom Atomic energy Authority,United Kingdom Atomic energy Authority,14/07/2014,MATERIALS & SPARES,23161,FUSION,KEY INDUSTRIAL EQUIPMENT LTD,5100306479,304,
United Kingdom Atomic energy Authority,United Kingdom Atomic energy Authority,30/06/2014,MATERIALS & SPARES,25103,FUSION,KEY INDUSTRIAL EQUIPMENT LTD,5100305827,614.4,
United Kingdom Atomic energy Authority,United Kingdom Atomic energy Authority,30/06/2014,BUILDING REPAIRS,21033,SUPPORT SERVICES,KNOWLES & SONS (OXFORD) LTD,5100306041,137.09,
United Kingdom Atomic energy Authority,United Kingdom Atomic energy Authority,30/06/2014,BUILDING REPAIRS,21033,SUPPORT SERVICES,KNOWLES & SONS (OXFORD) LTD,5100306044,29.99,
United Kingdom Atomic energy Authority,United Kingdom Atomic energy Authority,30/06/2014,BUILDING REPAIRS,21033,SUPPORT SERVICES,KNOWLES & SONS (OXFORD) LTD,5100306053,35.66,
United Kingdom Atomic energy Authority,United Kingdom Atomic energy Authority,30/06/2014,BUILDING REPAIRS,21033,SUPPORT SERVICES,KNOWLES & SONS (OXFORD) LTD,5100306086,74.79,
United Kingdom Atomic energy Authority,United Kingdom Atomic energy Authority,30/06/2014,BUILDING REPAIRS,23105,FUSION,KNOWLES & SONS (OXFORD) LTD,5100306056,58.84,
United Kingdom Atomic energy Authority,United Kingdom Atomic energy Authority,30/06/2014,BUILDING REPAIRS,23105,FUSION,KNOWLES & SONS (OXFORD) LTD,5100306057,41.33,
United Kingdom Atomic energy Authority,United Kingdom Atomic energy Authority,30/06/2014,BUILDING REPAIRS,23109,FUSION,KNOWLES & SONS (OXFORD) LTD,5100306054,35.66,
United Kingdom Atomic energy Authority,United Kingdom Atomic energy Authority,30/06/2014,BUILDING REPAIRS,23126,FUSION,KNOWLES & SONS (OXFORD) LTD,5100306013,23103.63,
United Kingdom Atomic energy Authority,United Kingdom Atomic energy Authority,30/06/2014,BUILDING REPAIRS,23126,FUSION,KNOWLES & SONS (OXFORD) LTD,5100306039,1147.46,
United Kingdom Atomic energy Authority,United Kingdom Atomic energy Authority,14/07/2014,BUILDING REPAIRS,23129,FUSION,KNOWLES & SONS (OXFORD) LTD,5100306767,105.93,
United Kingdom Atomic energy Authority,United Kingdom Atomic energy Authority,30/06/2014,BUILDING REPAIRS,23151,FUSION,KNOWLES & SONS (OXFORD) LTD,5100306012,16922.27,
United Kingdom Atomic energy Authority,United Kingdom Atomic energy Authority,30/06/2014,BUILDING REPAIRS,23151,FUSION,KNOWLES & SONS (OXFORD) LTD,5100306042,456.94,
United Kingdom Atomic energy Authority,United Kingdom Atomic energy Authority,30/06/2014,BUILDING REPAIRS,23161,FUSION,KNOWLES & SONS (OXFORD) LTD,5100306040,484.4,
United Kingdom Atomic energy Authority,United Kingdom Atomic energy Authority,14/07/2014,BUILDING REPAIRS,23166,FUSION,KNOWLES & SONS (OXFORD) LTD,5100306766,128.85,
United Kingdom Atomic energy Authority,United Kingdom Atomic energy Authority,30/06/2014,BUILDING REPAIRS,25821,FUSION,KNOWLES & SONS (OXFORD) LTD,5100306046,267.63,
United Kingdom Atomic energy Authority,United Kingdom Atomic energy Authority,14/07/2014,BUILDING REPAIRS,25821,FUSION,KNOWLES & SONS (OXFORD) LTD,5100306765,199.44,
United Kingdom Atomic energy Authority,United Kingdom Atomic energy Authority,30/06/2014,BUILDING REPAIRS,28000,PROPERTY,KNOWLES & SONS (OXFORD) LTD,5100304905,79051.79,
United Kingdom Atomic energy Authority,United Kingdom Atomic energy Authority,30/06/2014,BUILDING REPAIRS,28000,PROPERTY,KNOWLES & SONS (OXFORD) LTD,5100304907,33283.13,
United Kingdom Atomic energy Authority,United Kingdom Atomic energy Authority,30/06/2014,BUILDING REPAIRS,28000,PROPERTY,KNOWLES & SONS (OXFORD) LTD,5100305955,-79051.79,
United Kingdom Atomic energy Authority,United Kingdom Atomic energy Authority,30/06/2014,BUILDING REPAIRS,28000,PROPERTY,KNOWLES & SONS (OXFORD) LTD,5100305959,56783.35,
United Kingdom Atomic energy Authority,United Kingdom Atomic energy Authority,30/06/2014,BUILDING REPAIRS,28000,PROPERTY,KNOWLES & SONS (OXFORD) LTD,5100305962,-244.85,
United Kingdom Atomic energy Authority,United Kingdom Atomic energy Authority,30/06/2014,BUILDING REPAIRS,28020,PROPERTY,KNOWLES & SONS (OXFORD) LTD,5100306043,179.19,
United Kingdom Atomic energy Authority,United Kingdom Atomic energy Authority,30/06/2014,BUILDING REPAIRS,28020,PROPERTY,KNOWLES & SONS (OXFORD) LTD,5100306058,1589.56,
United Kingdom Atomic energy Authority,United Kingdom Atomic energy Authority,30/06/2014,BUILDING REPAIRS,28020,PROPERTY,KNOWLES & SONS (OXFORD) LTD,5100306094,29.52,
United Kingdom Atomic energy Authority,United Kingdom Atomic energy Authority,30/06/2014,BUILDING REPAIRS,28200,PROPERTY,KNOWLES & SONS (OXFORD) LTD,5100306084,149.58,
United Kingdom Atomic energy Authority,United Kingdom Atomic energy Authority,07/07/2014,BUILDING REPAIRS,28200,PROPERTY,KNOWLES & SONS (OXFORD) LTD,5100306398,15302.15,
United Kingdom Atomic energy Authority,United Kingdom Atomic energy Authority,07/07/2014,BUILDING REPAIRS,28200,PROPERTY,KNOWLES & SONS (OXFORD) LTD,5100306399,10029.79,
United Kingdom Atomic energy Authority,United Kingdom Atomic energy Authority,07/07/2014,RENT OF VEHICLE & EQUIPMENT,25103,FUSION,KONSTRUCTA SITE ACCOMMODATION HIRE,5100306166,402,
United Kingdom Atomic energy Authority,United Kingdom Atomic energy Authority,30/06/2014,MATERIALS & SPARES,25103,FUSION,SOLE TRADER,5100306022,1252.08,
United Kingdom Atomic energy Authority,United Kingdom Atomic energy Authority,21/07/2014,MATERIALS & SPARES,25103,FUSION,SOLE TRADER,5100306605,208.5,
United Kingdom Atomic energy Authority,United Kingdom Atomic energy Authority,21/07/2014,MATERIALS & SPARES,25103,FUSION,SOLE TRADER,5100307097,271.44,
United Kingdom Atomic energy Authority,United Kingdom Atomic energy Authority,30/06/2014,MATERIALS & SPARES,25103,FUSION,L G Kimber (Engineering) Ltd,5100306071,2278,
United Kingdom Atomic energy Authority,United Kingdom Atomic energy Authority,30/06/2014,MATERIALS & SPARES,23150,FUSION,LABORATORY IMPEX SYSTEMS LTD,5100305065,952,
United Kingdom Atomic energy Authority,United Kingdom Atomic energy Authority,25/07/2014,OTHER EXTERNAL COSTS,29200,FUSION,Land and Landscape Management Ltd,1900060038,375,CUL13425
United Kingdom Atomic energy Authority,United Kingdom Atomic energy Authority,14/07/2014,PLANT & EQUIPMENT,23125,FUSION,LC AUTOMATION LTD,5100306339,48.68,
United Kingdom Atomic energy Authority,United Kingdom Atomic energy Authority,14/07/2014,PLANT & EQUIPMENT,23125,FUSION,LC AUTOMATION LTD,5100306542,35,
United Kingdom Atomic energy Authority,United Kingdom Atomic energy Authority,07/07/2014,PLANT & EQUIPMENT,25702,FUSION,LC AUTOMATION LTD,5100306255,405,
United Kingdom Atomic energy Authority,United Kingdom Atomic energy Authority,14/07/2014,CAR HIRE,21033,SUPPORT SERVICES,LEASEDRIVE VELO,5100306720,45.61,
United Kingdom Atomic energy Authority,United Kingdom Atomic energy Authority,21/07/2014,CAR HIRE,21033,SUPPORT SERVICES,LEASEDRIVE VELO,5100307045,36.44,
United Kingdom Atomic energy Authority,United Kingdom Atomic energy Authority,02/07/2014,CAR HIRE,23150,FUSION,LEASEDRIVE VELO,5100305732,82.14,
United Kingdom Atomic energy Authority,United Kingdom Atomic energy Authority,21/07/2014,CAR HIRE,23150,FUSION,LEASEDRIVE VELO,5100307043,85.12,
United Kingdom Atomic energy Authority,United Kingdom Atomic energy Authority,07/07/2014,CAR HIRE,23151,FUSION,LEASEDRIVE VELO,5100306097,36.44,
United Kingdom Atomic energy Authority,United Kingdom Atomic energy Authority,07/07/2014,CAR HIRE,23151,FUSION,LEASEDRIVE VELO,5100306128,33.64,
United Kingdom Atomic energy Authority,United Kingdom Atomic energy Authority,14/07/2014,CAR HIRE,23151,FUSION,LEASEDRIVE VELO,5100306715,61.36,
United Kingdom Atomic energy Authority,United Kingdom Atomic energy Authority,14/07/2014,CAR HIRE,23151,FUSION,LEASEDRIVE VELO,5100306718,71.2,
United Kingdom Atomic energy Authority,United Kingdom Atomic energy Authority,14/07/2014,CAR HIRE,23151,FUSION,LEASEDRIVE VELO,5100306719,34.39,
United Kingdom Atomic energy Authority,United Kingdom Atomic energy Authority,14/07/2014,CAR HIRE,23151,FUSION,LEASEDRIVE VELO,5100306772,17.38,
United Kingdom Atomic energy Authority,United Kingdom Atomic energy Authority,21/07/2014,CAR HIRE,23151,FUSION,LEASEDRIVE VELO,5100307042,72.88,
United Kingdom Atomic energy Authority,United Kingdom Atomic energy Authority,09/07/2014,CAR HIRE,23621,FUSION,LEASEDRIVE VELO,5100306435,36.44,
United Kingdom Atomic energy Authority,United Kingdom Atomic energy Authority,14/07/2014,CAR HIRE,23621,FUSION,LEASEDRIVE VELO,5100306716,36.44,
United Kingdom Atomic energy Authority,United Kingdom Atomic energy Authority,14/07/2014,CAR HIRE,23621,FUSION,LEASEDRIVE VELO,5100306717,59.57,
United Kingdom Atomic energy Authority,United Kingdom Atomic energy Authority,30/06/2014,CAR HIRE,25103,FUSION,LEASEDRIVE VELO,5100305920,75.16,
United Kingdom Atomic energy Authority,United Kingdom Atomic energy Authority,09/07/2014,CAR HIRE,25103,FUSION,LEASEDRIVE VELO,5100306091,44.18,
United Kingdom Atomic energy Authority,United Kingdom Atomic energy Authority,07/07/2014,CAR HIRE,25103,FUSION,LEASEDRIVE VELO,5100306095,63.13,
United Kingdom Atomic energy Authority,United Kingdom Atomic energy Authority,30/06/2014,CAR HIRE,25103,FUSION,LEASEDRIVE VELO,5100306098,36.44,
United Kingdom Atomic energy Authority,United Kingdom Atomic energy Authority,07/07/2014,CAR HIRE,25103,FUSION,LEASEDRIVE VELO,5100306131,88.36,
United Kingdom Atomic energy Authority,United Kingdom Atomic energy Authority,07/07/2014,CAR HIRE,25103,FUSION,LEASEDRIVE VELO,5100306434,36.44,
United Kingdom Atomic energy Authority,United Kingdom Atomic energy Authority,07/07/2014,CAR HIRE,25103,FUSION,LEASEDRIVE VELO,5100306436,36.44,
United Kingdom Atomic energy Authority,United Kingdom Atomic energy Authority,14/07/2014,CAR HIRE,25103,FUSION,LEASEDRIVE VELO,5100306457,63.13,
United Kingdom Atomic energy Authority,United Kingdom Atomic energy Authority,21/07/2014,CAR HIRE,25103,FUSION,LEASEDRIVE VELO,5100307029,36.44,
United Kingdom Atomic energy Authority,United Kingdom Atomic energy Authority,21/07/2014,CAR HIRE,25103,FUSION,LEASEDRIVE VELO,5100307041,410.48,
United Kingdom Atomic energy Authority,United Kingdom Atomic energy Authority,21/07/2014,CAR HIRE,25500,FUSION,LEASEDRIVE VELO,5100307039,68.78,
United Kingdom Atomic energy Authority,United Kingdom Atomic energy Authority,21/07/2014,CAR HIRE,25500,FUSION,LEASEDRIVE VELO,5100307040,68.78,
United Kingdom Atomic energy Authority,United Kingdom Atomic energy Authority,14/07/2014,CAR HIRE,25501,FUSION,LEASEDRIVE VELO,5100306541,36.44,
United Kingdom Atomic energy Authority,United Kingdom Atomic energy Authority,21/07/2014,CAR HIRE,25501,FUSION,LEASEDRIVE VELO,5100307044,82.14,
United Kingdom Atomic energy Authority,United Kingdom Atomic energy Authority,09/07/2014,CAR HIRE,25704,FUSION,LEASEDRIVE VELO,5100306093,72.88,
United Kingdom Atomic energy Authority,United Kingdom Atomic energy Authority,14/07/2014,CAR HIRE,25704,FUSION,LEASEDRIVE VELO,5100306721,45.86,
United Kingdom Atomic energy Authority,United Kingdom Atomic energy Authority,21/07/2014,CAR HIRE,25837,FUSION,LEASEDRIVE VELO,5100307038,130.35,
United Kingdom Atomic energy Authority,United Kingdom Atomic energy Authority,30/06/2014,CAR HIRE,25838,FUSION,LEASEDRIVE VELO,5100305921,43.96,
United Kingdom Atomic energy Authority,United Kingdom Atomic energy Authority,30/06/2014,CAR HIRE,29001,FUSION,LEASEDRIVE VELO,5100305922,120.18,
United Kingdom Atomic energy Authority,United Kingdom Atomic energy Authority,16/07/2014,MATERIALS & SPARES,23161,FUSION,Lennox Uk Ltd,5100305934,549,
United Kingdom Atomic energy Authority,United Kingdom Atomic energy Authority,09/07/2014,MATERIALS & SPARES,23123,FUSION,LINDE KRYOTECHNIK AG,5100305796,757.39,
United Kingdom Atomic energy Authority,United Kingdom Atomic energy Authority,09/07/2014,PROFESSIONAL SERVICES,21032,SUPPORT SERVICES,LOGICA CMG UK LTD,5100306246,2103.17,
United Kingdom Atomic energy Authority,United Kingdom Atomic energy Authority,21/07/2014,BUILDING REPAIRS,23151,FUSION,LORNE STEWART PLC,5100306924,1382.28,
United Kingdom Atomic energy Authority,United Kingdom Atomic energy Authority,21/07/2014,BUILDING REPAIRS,23161,FUSION,LORNE STEWART PLC,5100306915,19606.1,
United Kingdom Atomic energy Authority,United Kingdom Atomic energy Authority,21/07/2014,BUILDING REPAIRS,23161,FUSION,LORNE STEWART PLC,5100306917,2416.73,
United Kingdom Atomic energy Authority,United Kingdom Atomic energy Authority,21/07/2014,BUILDING REPAIRS,23161,FUSION,LORNE STEWART PLC,5100306927,19633.48,
United Kingdom Atomic energy Authority,United Kingdom Atomic energy Authority,21/07/2014,BUILDING REPAIRS,23161,FUSION,LORNE STEWART PLC,5100306928,1745.05,
United Kingdom Atomic energy Authority,United Kingdom Atomic energy Authority,21/07/2014,BUILDING REPAIRS,28000,PROPERTY,LORNE STEWART PLC,5100306913,13301.58,
United Kingdom Atomic energy Authority,United Kingdom Atomic energy Authority,21/07/2014,BUILDING REPAIRS,28000,PROPERTY,LORNE STEWART PLC,5100306919,690.49,
United Kingdom Atomic energy Authority,United Kingdom Atomic energy Authority,21/07/2014,BUILDING REPAIRS,28000,PROPERTY,LORNE STEWART PLC,5100306926,26532.53,
United Kingdom Atomic energy Authority,United Kingdom Atomic energy Authority,21/07/2014,BUILDING REPAIRS,28000,PROPERTY,LORNE STEWART PLC,5100306929,1437.06,
United Kingdom Atomic energy Authority,United Kingdom Atomic energy Authority,21/07/2014,BUILDING REPAIRS,28020,PROPERTY,LORNE STEWART PLC,5100306914,3748.52,
United Kingdom Atomic energy Authority,United Kingdom Atomic energy Authority,21/07/2014,BUILDING REPAIRS,28020,PROPERTY,LORNE STEWART PLC,5100306920,345.24,
United Kingdom Atomic energy Authority,United Kingdom Atomic energy Authority,21/07/2014,BUILDING REPAIRS,28020,PROPERTY,LORNE STEWART PLC,5100306925,4706.97,
United Kingdom Atomic energy Authority,United Kingdom Atomic energy Authority,21/07/2014,BUILDING REPAIRS,28030,PROPERTY,LORNE STEWART PLC,5100306922,181.23,
United Kingdom Atomic energy Authority,United Kingdom Atomic energy Authority,21/07/2014,BUILDING REPAIRS,28030,PROPERTY,LORNE STEWART PLC,5100306923,77.67,
United Kingdom Atomic energy Authority,United Kingdom Atomic energy Authority,21/07/2014,BUILDING REPAIRS,28200,PROPERTY,LORNE STEWART PLC,5100306921,4203.44,
United Kingdom Atomic energy Authority,United Kingdom Atomic energy Authority,02/07/2014,MATERIALS & SPARES,23128,FUSION,LOUTH TRANSFORMERS,5100305224,2516,
United Kingdom Atomic energy Authority,United Kingdom Atomic energy Authority,30/06/2014,STATIONERY,23161,FUSION,LYRECO UK LIMITED,5100305981,481.93,
United Kingdom Atomic energy Authority,United Kingdom Atomic energy Authority,30/06/2014,STATIONERY,23161,FUSION,LYRECO UK LIMITED,5100305982,152.27,
United Kingdom Atomic energy Authority,United Kingdom Atomic energy Authority,07/07/2014,STATIONERY,23161,FUSION,LYRECO UK LIMITED,5100306350,356.58,
United Kingdom Atomic energy Authority,United Kingdom Atomic energy Authority,07/07/2014,STATIONERY,23161,FUSION,LYRECO UK LIMITED,5100306351,339.43,
United Kingdom Atomic energy Authority,United Kingdom Atomic energy Authority,14/07/2014,STATIONERY,23161,FUSION,LYRECO UK LIMITED,5100306712,249.12,
United Kingdom Atomic energy Authority,United Kingdom Atomic energy Authority,14/07/2014,STATIONERY,23161,FUSION,LYRECO UK LIMITED,5100306713,340.31,
United Kingdom Atomic energy Authority,United Kingdom Atomic energy Authority,14/07/2014,STATIONERY,23161,FUSION,LYRECO UK LIMITED,5100306714,13.04,
United Kingdom Atomic energy Authority,United Kingdom Atomic energy Authority,09/07/2014,PLANT & EQUIPMENT,28200,PROPERTY,M&J Group Ltd,5100306452,33914.4,
United Kingdom Atomic energy Authority,United Kingdom Atomic energy Authority,30/06/2014,IT EQUIPMENT NON CAPITAL,23134,FUSION,MAAINTECH,5100305831,1747,
United Kingdom Atomic energy Authority,United Kingdom Atomic energy Authority,30/06/2014,IT EQUIPMENT NON CAPITAL,23134,FUSION,MAAINTECH,5100305832,4275,
United Kingdom Atomic energy Authority,United Kingdom Atomic energy Authority,30/06/2014,IT EQUIPMENT NON CAPITAL,23134,FUSION,MAAINTECH,5100306116,1429,
United Kingdom Atomic energy Authority,United Kingdom Atomic energy Authority,30/06/2014,IT EQUIPMENT NON CAPITAL,23134,FUSION,MAAINTECH,5100306117,1706.5,
United Kingdom Atomic energy Authority,United Kingdom Atomic energy Authority,21/07/2014,IT EQUIPMENT NON CAPITAL,23134,FUSION,MAAINTECH,5100306118,219,
United Kingdom Atomic energy Authority,United Kingdom Atomic energy Authority,07/07/2014,IT EQUIPMENT NON CAPITAL,23134,FUSION,MAAINTECH,5100306130,374,
United Kingdom Atomic energy Authority,United Kingdom Atomic energy Authority,07/07/2014,IT EQUIPMENT NON CAPITAL,23134,FUSION,MAAINTECH,5100306248,440,
United Kingdom Atomic energy Authority,United Kingdom Atomic energy Authority,21/07/2014,PROFESSIONAL SERVICES,23621,FUSION,MACHINING TECHNOLOGY (MACH-TECH),5100306842,4722.45,
United Kingdom Atomic energy Authority,United Kingdom Atomic energy Authority,16/07/2014,PROFESSIONAL SERVICES,25103,FUSION,MACHINING TECHNOLOGY (MACH-TECH),5100305652,9038.92,
United Kingdom Atomic energy Authority,United Kingdom Atomic energy Authority,07/07/2014,PROFESSIONAL SERVICES,25103,FUSION,MACHINING TECHNOLOGY (MACH-TECH),5100305655,821.72,
United Kingdom Atomic energy Authority,United Kingdom Atomic energy Authority,14/07/2014,PROFESSIONAL SERVICES,25103,FUSION,MACHINING TECHNOLOGY (MACH-TECH),5100306448,876.72,
United Kingdom Atomic energy Authority,United Kingdom Atomic energy Authority,14/07/2014,PROFESSIONAL SERVICES,25103,FUSION,MACHINING TECHNOLOGY (MACH-TECH),5100306449,1370.88,
United Kingdom Atomic energy Authority,United Kingdom Atomic energy Authority,14/07/2014,PROFESSIONAL SERVICES,25103,FUSION,MACHINING TECHNOLOGY (MACH-TECH),5100306494,704.64,
United Kingdom Atomic energy Authority,United Kingdom Atomic energy Authority,21/07/2014,PROFESSIONAL SERVICES,25103,FUSION,MACHINING TECHNOLOGY (MACH-TECH),5100307011,786.96,
United Kingdom Atomic energy Authority,United Kingdom Atomic energy Authority,30/06/2014,INSURANCE,63605,SUPPORT SERVICES,MARSH UK LIMITED,5100306120,8750,
United Kingdom Atomic energy Authority,United Kingdom Atomic energy Authority,02/07/2014,MATERIALS & SPARES,23128,FUSION,MASSEY COLDBECK ENGINEERING LTD,5100305055,1698,
United Kingdom Atomic energy Authority,United Kingdom Atomic energy Authority,09/07/2014,PROFESSIONAL SERVICES,23165,FUSION,MATERIAL MEASUREMENTS LTD.,5100306113,354.15,
United Kingdom Atomic energy Authority,United Kingdom Atomic energy Authority,14/07/2014,PROFESSIONAL SERVICES,23165,FUSION,MATERIAL MEASUREMENTS LTD.,5100306495,234.84,
United Kingdom Atomic energy Authority,United Kingdom Atomic energy Authority,14/07/2014,PROFESSIONAL SERVICES,23165,FUSION,MATERIAL MEASUREMENTS LTD.,5100306497,129.9,
United Kingdom Atomic energy Authority,United Kingdom Atomic energy Authority,14/07/2014,PROFESSIONAL SERVICES,23165,FUSION,MATERIAL MEASUREMENTS LTD.,5100306498,796.8,
United Kingdom Atomic energy Authority,United Kingdom Atomic energy Authority,16/07/2014,PROFESSIONAL SERVICES,23165,FUSION,MATERIAL MEASUREMENTS LTD.,5100306562,1837.2,
United Kingdom Atomic energy Authority,United Kingdom Atomic energy Authority,16/07/2014,PROFESSIONAL SERVICES,23165,FUSION,MATERIAL MEASUREMENTS LTD.,5100306632,1224.8,
United Kingdom Atomic energy Authority,United Kingdom Atomic energy Authority,16/07/2014,PROFESSIONAL SERVICES,23165,FUSION,MATERIAL MEASUREMENTS LTD.,5100306633,656.83,
United Kingdom Atomic energy Authority,United Kingdom Atomic energy Authority,15/07/2014,PROFESSIONAL SERVICES,23165,FUSION,MATERIAL MEASUREMENTS LTD.,5100306634,354.15,
United Kingdom Atomic energy Authority,United Kingdom Atomic energy Authority,15/07/2014,PROFESSIONAL SERVICES,23165,FUSION,MATERIAL MEASUREMENTS LTD.,5100306932,-354.15,
United Kingdom Atomic energy Authority,United Kingdom Atomic energy Authority,09/07/2014,PROFESSIONAL SERVICES,0,,MAX PLANCK,5100305694,15547.74,
United Kingdom Atomic energy Authority,United Kingdom Atomic energy Authority,09/07/2014,PROFESSIONAL SERVICES,0,,MAX PLANCK,5100305695,14022.01,
United Kingdom Atomic energy Authority,United Kingdom Atomic energy Authority,09/07/2014,PROFESSIONAL SERVICES,0,,MAX PLANCK,5100305696,13225.94,
United Kingdom Atomic energy Authority,United Kingdom Atomic energy Authority,09/07/2014,PROFESSIONAL SERVICES,0,,MAX PLANCK,5100305697,13731.07,
United Kingdom Atomic energy Authority,United Kingdom Atomic energy Authority,09/07/2014,PROFESSIONAL SERVICES,23150,FUSION,SOLE TRADER,5100306110,332.93,
United Kingdom Atomic energy Authority,United Kingdom Atomic energy Authority,09/07/2014,PROFESSIONAL SERVICES,23151,FUSION,SOLE TRADER,5100306108,469.92,
United Kingdom Atomic energy Authority,United Kingdom Atomic energy Authority,09/07/2014,PROFESSIONAL SERVICES,28200,PROPERTY,SOLE TRADER,5100306105,5429.9,
United Kingdom Atomic energy Authority,United Kingdom Atomic energy Authority,09/07/2014,PROFESSIONAL SERVICES,28200,PROPERTY,SOLE TRADER,5100306106,1140.2,
United Kingdom Atomic energy Authority,United Kingdom Atomic energy Authority,09/07/2014,PROFESSIONAL SERVICES,28200,PROPERTY,SOLE TRADER,5100306107,494.97,
United Kingdom Atomic energy Authority,United Kingdom Atomic energy Authority,09/07/2014,PROFESSIONAL SERVICES,28900,PROPERTY,SOLE TRADER,5100306111,1231.66,
United Kingdom Atomic energy Authority,United Kingdom Atomic energy Authority,30/06/2014,PLANT SPARES,25103,FUSION,MERSEN UK PORTSLADE LTD,5100302613,33398.43,
United Kingdom Atomic energy Authority,United Kingdom Atomic energy Authority,30/06/2014,PLANT SPARES,25103,FUSION,MERSEN UK PORTSLADE LTD,5100302821,7442.64,
United Kingdom Atomic energy Authority,United Kingdom Atomic energy Authority,30/06/2014,PLANT SPARES,25103,FUSION,MERSEN UK PORTSLADE LTD,5100304908,38247.16,
United Kingdom Atomic energy Authority,United Kingdom Atomic energy Authority,30/06/2014,PLANT SPARES,25103,FUSION,MERSEN UK PORTSLADE LTD,5100305511,-383.45,
United Kingdom Atomic energy Authority,United Kingdom Atomic energy Authority,30/06/2014,PLANT SPARES,25103,FUSION,MERSEN UK PORTSLADE LTD,5100305814,-805.96,
United Kingdom Atomic energy Authority,United Kingdom Atomic energy Authority,30/06/2014,PLANT SPARES,25103,FUSION,MERSEN UK PORTSLADE LTD,5100305821,-1014.13,
United Kingdom Atomic energy Authority,United Kingdom Atomic energy Authority,30/06/2014,MATERIALS & SPARES,23104,FUSION,METALFAST (A DIVISION OF,5100305996,147.4,
United Kingdom Atomic energy Authority,United Kingdom Atomic energy Authority,07/07/2014,MATERIALS & SPARES,23104,FUSION,METALFAST (A DIVISION OF,5100306129,102.4,
United Kingdom Atomic energy Authority,United Kingdom Atomic energy Authority,07/07/2014,MATERIALS & SPARES,23104,FUSION,METALFAST (A DIVISION OF,5100306323,39,
United Kingdom Atomic energy Authority,United Kingdom Atomic energy Authority,21/07/2014,MATERIALS & SPARES,23104,FUSION,METALFAST (A DIVISION OF,5100306840,60.15,
United Kingdom Atomic energy Authority,United Kingdom Atomic energy Authority,07/07/2014,MATERIALS & SPARES,23150,FUSION,METALFAST (A DIVISION OF,5100306324,548.25,
United Kingdom Atomic energy Authority,United Kingdom Atomic energy Authority,21/07/2014,MATERIALS & SPARES,23152,FUSION,METALFAST (A DIVISION OF,5100307082,107.5,
United Kingdom Atomic energy Authority,United Kingdom Atomic energy Authority,07/07/2014,PROFESSIONAL SERVICES,23106,FUSION,METRO ENGINEERING AND PLATING WORKS,5100306212,100,
United Kingdom Atomic energy Authority,United Kingdom Atomic energy Authority,14/07/2014,PLANT & EQUIPMENT,23104,FUSION,MILLHILL TOOLS LTD,5100306602,119.56,
United Kingdom Atomic energy Authority,United Kingdom Atomic energy Authority,14/07/2014,PLANT & EQUIPMENT,23104,FUSION,MILLHILL TOOLS LTD,5100306603,7.04,
United Kingdom Atomic energy Authority,United Kingdom Atomic energy Authority,14/07/2014,PLANT & EQUIPMENT,23104,FUSION,MILLHILL TOOLS LTD,5100306613,67.9,
United Kingdom Atomic energy Authority,United Kingdom Atomic energy Authority,14/07/2014,PLANT & EQUIPMENT,23104,FUSION,MILLHILL TOOLS LTD,5100306617,41.56,
United Kingdom Atomic energy Authority,United Kingdom Atomic energy Authority,14/07/2014,PLANT & EQUIPMENT,23104,FUSION,MILLHILL TOOLS LTD,5100306618,363.27,
United Kingdom Atomic energy Authority,United Kingdom Atomic energy Authority,14/07/2014,PLANT & EQUIPMENT,23104,FUSION,MILLHILL TOOLS LTD,5100306620,70.49,
United Kingdom Atomic energy Authority,United Kingdom Atomic energy Authority,14/07/2014,PLANT & EQUIPMENT,23104,FUSION,MILLHILL TOOLS LTD,5100306621,21.85,
United Kingdom Atomic energy Authority,United Kingdom Atomic energy Authority,14/07/2014,PLANT & EQUIPMENT,23104,FUSION,MILLHILL TOOLS LTD,5100306622,32.26,
United Kingdom Atomic energy Authority,United Kingdom Atomic energy Authority,14/07/2014,PLANT & EQUIPMENT,23104,FUSION,MILLHILL TOOLS LTD,5100306646,319.2,
United Kingdom Atomic energy Authority,United Kingdom Atomic energy Authority,23/07/2014,PLANT & EQUIPMENT,23104,FUSION,MILLHILL TOOLS LTD,5100307221,65.22,
United Kingdom Atomic energy Authority,United Kingdom Atomic energy Authority,14/07/2014,PLANT & EQUIPMENT,23152,FUSION,MILLHILL TOOLS LTD,5100306614,40.41,
United Kingdom Atomic energy Authority,United Kingdom Atomic energy Authority,14/07/2014,PLANT & EQUIPMENT,25103,FUSION,MILLHILL TOOLS LTD,5100306595,96.66,
United Kingdom Atomic energy Authority,United Kingdom Atomic energy Authority,14/07/2014,PLANT & EQUIPMENT,25103,FUSION,MILLHILL TOOLS LTD,5100306597,20.58,
United Kingdom Atomic energy Authority,United Kingdom Atomic energy Authority,14/07/2014,PLANT & EQUIPMENT,25103,FUSION,MILLHILL TOOLS LTD,5100306600,153.92,
United Kingdom Atomic energy Authority,United Kingdom Atomic energy Authority,14/07/2014,PLANT & EQUIPMENT,25103,FUSION,MILLHILL TOOLS LTD,5100306604,39.39,
United Kingdom Atomic energy Authority,United Kingdom Atomic energy Authority,14/07/2014,PLANT & EQUIPMENT,25103,FUSION,MILLHILL TOOLS LTD,5100306606,35.8,
United Kingdom Atomic energy Authority,United Kingdom Atomic energy Authority,14/07/2014,PLANT & EQUIPMENT,25103,FUSION,MILLHILL TOOLS LTD,5100306608,38.93,
United Kingdom Atomic energy Authority,United Kingdom Atomic energy Authority,14/07/2014,PLANT & EQUIPMENT,25103,FUSION,MILLHILL TOOLS LTD,5100306609,319.2,
United Kingdom Atomic energy Authority,United Kingdom Atomic energy Authority,14/07/2014,PLANT & EQUIPMENT,25103,FUSION,MILLHILL TOOLS LTD,5100306616,40.46,
United Kingdom Atomic energy Authority,United Kingdom Atomic energy Authority,14/07/2014,PLANT & EQUIPMENT,25103,FUSION,MILLHILL TOOLS LTD,5100306619,143.2,
United Kingdom Atomic energy Authority,United Kingdom Atomic energy Authority,23/07/2014,PLANT & EQUIPMENT,25103,FUSION,MILLHILL TOOLS LTD,5100307220,5.68,
United Kingdom Atomic energy Authority,United Kingdom Atomic energy Authority,07/07/2014,PLANT & EQUIPMENT,23132,FUSION,MISCO,5100306162,123.99,
United Kingdom Atomic energy Authority,United Kingdom Atomic energy Authority,30/06/2014,PLANT & EQUIPMENT,23106,FUSION,MOOG CONTROLS LTD,5100305836,62.65,
United Kingdom Atomic energy Authority,United Kingdom Atomic energy Authority,30/06/2014,PLANT & EQUIPMENT,23106,FUSION,MOOG CONTROLS LTD,5100306007,1169,
United Kingdom Atomic energy Authority,United Kingdom Atomic energy Authority,04/07/2014,PLANT & EQUIPMENT,23106,FUSION,MOOG CONTROLS LTD,5100306153,917.65,
United Kingdom Atomic energy Authority,United Kingdom Atomic energy Authority,07/07/2014,PLANT & EQUIPMENT,23106,FUSION,MOOG CONTROLS LTD,5100306344,898,
United Kingdom Atomic energy Authority,United Kingdom Atomic energy Authority,04/07/2014,PLANT & EQUIPMENT,23106,FUSION,MOOG CONTROLS LTD,5100306439,-917.65,
United Kingdom Atomic energy Authority,United Kingdom Atomic energy Authority,07/07/2014,PLANT & EQUIPMENT,23106,FUSION,MOOG CONTROLS LTD,5100306440,917.65,
United Kingdom Atomic energy Authority,United Kingdom Atomic energy Authority,16/07/2014,COMPENSATION AND LEGAL FEES,28010,PROPERTY,MORGAN COLE,5100306960,79,
United Kingdom Atomic energy Authority,United Kingdom Atomic energy Authority,07/07/2014,HIRED STAFF,23103,FUSION,MORSON INTERNATIONAL,5100306122,-78.69,
United Kingdom Atomic energy Authority,United Kingdom Atomic energy Authority,07/07/2014,HIRED STAFF,23103,FUSION,MORSON INTERNATIONAL,5100306239,274998.26,
United Kingdom Atomic energy Authority,United Kingdom Atomic energy Authority,23/07/2014,HIRED STAFF,23103,FUSION,MORSON INTERNATIONAL,5100307222,78.69,
United Kingdom Atomic energy Authority,United Kingdom Atomic energy Authority,23/07/2014,HIRED STAFF,23103,FUSION,MORSON INTERNATIONAL,5100307223,78.69,
United Kingdom Atomic energy Authority,United Kingdom Atomic energy Authority,23/07/2014,HIRED STAFF,23103,FUSION,MORSON INTERNATIONAL,5100307224,-157.38,
United Kingdom Atomic energy Authority,United Kingdom Atomic energy Authority,21/07/2014,MATERIALS & SPARES,25103,FUSION,MOSS PLASTIC PARTS LTD,5100307010,316.32,
United Kingdom Atomic energy Authority,United Kingdom Atomic energy Authority,14/07/2014,OTHER EXTERNAL COSTS,25500,FUSION,Motiv,1900059970,253,CUL13352
United Kingdom Atomic energy Authority,United Kingdom Atomic energy Authority,21/07/2014,MATERIALS & SPARES,23129,FUSION,MOUSER ELECTRONICS,5100307022,20.78,
United Kingdom Atomic energy Authority,United Kingdom Atomic energy Authority,30/06/2014,MATERIALS & SPARES,25704,FUSION,MOUSER ELECTRONICS,5100306045,507.8,
United Kingdom Atomic energy Authority,United Kingdom Atomic energy Authority,09/07/2014,MATERIALS & SPARES,25704,FUSION,MOUSER ELECTRONICS,5100306490,155.4,
United Kingdom Atomic energy Authority,United Kingdom Atomic energy Authority,30/06/2014,STATIONERY,21034,FUSION,MPS SERVICES LTD,5100305913,640,
United Kingdom Atomic energy Authority,United Kingdom Atomic energy Authority,16/07/2014,STATIONERY,21034,FUSION,MPS SERVICES LTD,5100306508,334.4,
United Kingdom Atomic energy Authority,United Kingdom Atomic energy Authority,30/06/2014,PLANT & EQUIPMENT,23106,FUSION,MSC/J & L INDUSTRIAL SUPPLY,5100305897,247.51,
United Kingdom Atomic energy Authority,United Kingdom Atomic energy Authority,02/07/2014,PLANT & EQUIPMENT,25103,FUSION,MULTI-CONTACT (UK) LTD,5100306121,7778.51,
United Kingdom Atomic energy Authority,United Kingdom Atomic energy Authority,07/07/2014,PLANT & EQUIPMENT,25103,FUSION,MULTI-CONTACT (UK) LTD,5100306322,441.24,
United Kingdom Atomic energy Authority,United Kingdom Atomic energy Authority,14/07/2014,AUDIT FEES,63605,SUPPORT SERVICES,NATIONAL AUDIT OFFICE,5100306584,50000,
United Kingdom Atomic energy Authority,United Kingdom Atomic energy Authority,07/07/2014,ELECTRICITY,23101,FUSION,NATIONAL GRID TRANSCO,5100306214,3786.94,
United Kingdom Atomic energy Authority,United Kingdom Atomic energy Authority,02/07/2014,PLANT & EQUIPMENT,23121,FUSION,NATIONAL INSTRUMENTS LTD,5100305826,1407.2,
United Kingdom Atomic energy Authority,United Kingdom Atomic energy Authority,02/07/2014,PLANT & EQUIPMENT,23121,FUSION,NATIONAL INSTRUMENTS LTD,5100305915,3284.55,
United Kingdom Atomic energy Authority,United Kingdom Atomic energy Authority,21/07/2014,PLANT & EQUIPMENT,25702,FUSION,NATIONAL INSTRUMENTS LTD,5100307048,37.25,
United Kingdom Atomic energy Authority,United Kingdom Atomic energy Authority,21/07/2014,PROFESSIONAL SERVICES,25103,FUSION,NATIONAL PHYSICAL LABORATORY MGT LT,5100306995,1200,
United Kingdom Atomic energy Authority,United Kingdom Atomic energy Authority,21/07/2014,MATERIALS & SPARES,29030,FUSION,NeoNickle(Blackburn)Ltd,5100306947,1082.32,
United Kingdom Atomic energy Authority,United Kingdom Atomic energy Authority,30/06/2014,SAFETY STORES,23119,FUSION,NETWORK SIGNS,5100305984,23.5,
United Kingdom Atomic energy Authority,United Kingdom Atomic energy Authority,07/07/2014,PLANT & EQUIPMENT,23131,FUSION,NEW PIG LTD,5100306155,143.02,
United Kingdom Atomic energy Authority,United Kingdom Atomic energy Authority,07/07/2014,PLANT & EQUIPMENT,25103,FUSION,NEW PIG LTD,5100306152,391.58,
United Kingdom Atomic energy Authority,United Kingdom Atomic energy Authority,16/07/2014,MATERIALS & SPARES,23128,FUSION,NEWBURY ELECTRONICS,5100306625,62.38,
United Kingdom Atomic energy Authority,United Kingdom Atomic energy Authority,30/06/2014,MATERIALS & SPARES,25103,FUSION,NEWBURY ELECTRONICS,5100305607,314.1,
United Kingdom Atomic energy Authority,United Kingdom Atomic energy Authority,07/07/2014,MATERIALS & SPARES,23161,FUSION,NEWEY & EYRE LTD,5100305629,3.98,
United Kingdom Atomic energy Authority,United Kingdom Atomic energy Authority,07/07/2014,MATERIALS & SPARES,23161,FUSION,NEWEY & EYRE LTD,5100306321,-3.98,
United Kingdom Atomic energy Authority,United Kingdom Atomic energy Authority,16/07/2014,MATERIALS & SPARES,23161,FUSION,NEWEY & EYRE LTD,5100306596,322.45,
United Kingdom Atomic energy Authority,United Kingdom Atomic energy Authority,21/07/2014,MATERIALS & SPARES,25702,FUSION,NEWEY & EYRE LTD,5100307004,28.25,
United Kingdom Atomic energy Authority,United Kingdom Atomic energy Authority,10/07/2014,OTHER EXTERNAL COSTS,28010,PROPERTY,Newsquest Media Group Ltd,1900059964,1000,CUL13349
United Kingdom Atomic energy Authority,United Kingdom Atomic energy Authority,14/07/2014,REPAIRS & MAINTENANCE,23134,FUSION,NORTHERN DRIVES & CONTROLS,5100306796,500,
United Kingdom Atomic energy Authority,United Kingdom Atomic energy Authority,14/07/2014,REPAIRS & MAINTENANCE,25102,FUSION,NORTHERN DRIVES & CONTROLS,5100304975,425,
United Kingdom Atomic energy Authority,United Kingdom Atomic energy Authority,14/07/2014,REPAIRS & MAINTENANCE,25102,FUSION,NORTHERN DRIVES & CONTROLS,5100306783,222.45,
United Kingdom Atomic energy Authority,United Kingdom Atomic energy Authority,14/07/2014,REPAIRS & MAINTENANCE,25102,FUSION,NORTHERN DRIVES & CONTROLS,5100306785,-425,
United Kingdom Atomic energy Authority,United Kingdom Atomic energy Authority,14/07/2014,REPAIRS & MAINTENANCE,25102,FUSION,NORTHERN DRIVES & CONTROLS,5100306790,-222.45,
United Kingdom Atomic energy Authority,United Kingdom Atomic energy Authority,14/07/2014,REPAIRS & MAINTENANCE,25102,FUSION,NORTHERN DRIVES & CONTROLS,5100306793,340,
United Kingdom Atomic energy Authority,United Kingdom Atomic energy Authority,14/07/2014,REPAIRS & MAINTENANCE,25102,FUSION,NORTHERN DRIVES & CONTROLS,5100306794,500,
United Kingdom Atomic energy Authority,United Kingdom Atomic energy Authority,14/07/2014,REPAIRS & MAINTENANCE,25102,FUSION,NORTHERN DRIVES & CONTROLS,5100306795,500,
United Kingdom Atomic energy Authority,United Kingdom Atomic energy Authority,09/07/2014,PROFESSIONAL SERVICES,23162,FUSION,NUCLEAR MANAGEMENT CONSULTANCE LTD,5100306192,800,
United Kingdom Atomic energy Authority,United Kingdom Atomic energy Authority,30/06/2014,HEALTH PHYSICS,23151,FUSION,NUVIA LIMITED,5100305220,598.45,
United Kingdom Atomic energy Authority,United Kingdom Atomic energy Authority,30/06/2014,HEALTH PHYSICS,23164,FUSION,NUVIA LIMITED,5100305180,25543.49,
United Kingdom Atomic energy Authority,United Kingdom Atomic energy Authority,14/07/2014,HEALTH PHYSICS,63608,SUPPORT SERVICES,NUVIA LIMITED,5100306651,3110.07,
United Kingdom Atomic energy Authority,United Kingdom Atomic energy Authority,30/06/2014,MATERIALS & SPARES,25103,FUSION,NYPLAS ENG LTD,5100305815,258.38,
United Kingdom Atomic energy Authority,United Kingdom Atomic energy Authority,07/07/2014,CLEANING,23103,FUSION,OCS CLEANING & SUPPORT SERVICES,5100305797,3283.87,
United Kingdom Atomic energy Authority,United Kingdom Atomic energy Authority,09/07/2014,CLEANING,25701,FUSION,OCS CLEANING & SUPPORT SERVICES,5100306564,14.86,
United Kingdom Atomic energy Authority,United Kingdom Atomic energy Authority,07/07/2014,CLEANING,28025,PROPERTY,OCS CLEANING & SUPPORT SERVICES,5100305539,1996.99,
United Kingdom Atomic energy Authority,United Kingdom Atomic energy Authority,23/07/2014,CLEANING,28025,PROPERTY,OCS CLEANING & SUPPORT SERVICES,5100306441,27343.33,
United Kingdom Atomic energy Authority,United Kingdom Atomic energy Authority,14/07/2014,MATERIALS & SPARES,23123,FUSION,OERLIKON LEYBOLD VACUUM UK LTD,5100306011,7889.79,
United Kingdom Atomic energy Authority,United Kingdom Atomic energy Authority,21/07/2014,MATERIALS & SPARES,23123,FUSION,OERLIKON LEYBOLD VACUUM UK LTD,5100306483,13927.07,
United Kingdom Atomic energy Authority,United Kingdom Atomic energy Authority,21/07/2014,MATERIALS & SPARES,23123,FUSION,OERLIKON LEYBOLD VACUUM UK LTD,5100306826,9274.24,
United Kingdom Atomic energy Authority,United Kingdom Atomic energy Authority,09/07/2014,MATERIALS & SPARES,23152,FUSION,OERLIKON LEYBOLD VACUUM UK LTD,5100306259,197.97,
United Kingdom Atomic energy Authority,United Kingdom Atomic energy Authority,21/07/2014,MATERIALS & SPARES,23152,FUSION,OERLIKON LEYBOLD VACUUM UK LTD,5100307078,417.5,
United Kingdom Atomic energy Authority,United Kingdom Atomic energy Authority,21/07/2014,PROFESSIONAL SERVICES,28030,PROPERTY,Office of NUCLEAR Regulation,5100306803,367.38,
United Kingdom Atomic energy Authority,United Kingdom Atomic energy Authority,14/07/2014,PLANT SPARES,29200,FUSION,Oliver Crispin Robotics Ltd,5100306450,8000,
United Kingdom Atomic energy Authority,United Kingdom Atomic energy Authority,07/07/2014,PLANT & EQUIPMENT,23131,FUSION,OMEGA ENGINEERING LTD,5100306125,398.1,
United Kingdom Atomic energy Authority,United Kingdom Atomic energy Authority,09/07/2014,PROFESSIONAL SERVICES,21037,FUSION,ONE FIX RECRUITMENT,5100306367,275,
United Kingdom Atomic energy Authority,United Kingdom Atomic energy Authority,09/07/2014,PROFESSIONAL SERVICES,23105,FUSION,ONE FIX RECRUITMENT,5100306368,1925,
United Kingdom Atomic energy Authority,United Kingdom Atomic energy Authority,07/07/2014,PROFESSIONAL SERVICES,23125,FUSION,ONE FIX RECRUITMENT,5100306364,299,
United Kingdom Atomic energy Authority,United Kingdom Atomic energy Authority,09/07/2014,PROFESSIONAL SERVICES,25501,FUSION,ONE FIX RECRUITMENT,5100306366,674,
United Kingdom Atomic energy Authority,United Kingdom Atomic energy Authority,07/07/2014,MATERIALS & SPARES,25103,FUSION,OUTOKUMPU STAINLESS,5100305867,4230,
